{"text_format":"1","workbook":"xlsx","n_sheets":12,"sheets":["EMPRESAS ELABORADORAS","CAPA","INFORMAÇÕES GERAIS","LISTA_PATRIMÔNIO","LISTAS","IMÓVEIS","MANUAL IDE-SISEMA","ORÇAMENTO","DEMONSTRATIVO DE VIABILIDADE","CAPACIDADE DE PAGAMENTO","PATRIMÔNIO","REGRAS"],"not_rendered":{"charts":0,"images":16,"macros":1,"external_links":3,"defined_names":107,"comments":2,"pivot_tables":0},"unopened":[],"bounds":{"document_bytes":16777216,"sheet_cells":100000,"rows_first":2000,"rows_last":500,"rows_between":2000,"halvings":0,"cell_chars":16384,"cell_head_chars":4096},"cells_cut":0,"cells_raw":0,"read":"whole","date_system":"1900"}

{"sheet":"EMPRESAS ELABORADORAS","index":0,"n_rows":14,"n_cols":6,"rows_kept":14,"cut":false,"hidden":true,"merged":[]}
["NOME","CNPJ","ENDEREÇO","CIDADE","TELEFONE","EMAIL"]
["AGROMINAS - APA ASSESSORIA E PLANEJAMENTO AGROPECUÁRIO LTDA",7357636000134,"RUA DO BÁLSAMO, Nº 500, BAIRRO CAMPESTRE","SÃO GOTARDO","(34)  3671-3425","AGROMINASSG@YAHOO.COM.BR"]
["AGROSOLUÇÕES - AFA ASSESSORIA PROJETOS E PLANEJAMENTOS LTDA",33478456000110,"PRAÇA SAGRADO CORAÇÃO DE JESUS n. 80, CENTRO ","SÃO GOTARDO","(34) 3671-3334","AGROSOLUCOES@AGROSOLUCOESLTDA.COM.BR"]
["COOPADAP - COOPERATIVA AGROPECUÁRIA DO ALTO PARANAÍBA",86675642000106,"ROD MG 235 KM 89, 443 - GUARDA DOS FERREIROS","SÃO GOTARDO","(34) 3616-1200","DEBORAPRATES@COOPADAP.COM.BR"]
["ÉLCIO EDUARDO URBANO JÚNIOR",7244640692,"RUA CORONEL FONTE BOA - Nº 725 - CENTRO","SÃO GOTARDO","(34) 99823-4210","URBANOELCIO@YAHOO.COM.BR"]
["EMATER-MG",19198118000102,"RUA BENTO FERREIRA DOS SANTOS, 160 S02, CENTRO","SÃO GOTARDO","(34) 3671-1355","SAO.GOTARDO@EMATER.MG.GOV.BR"]
["FORTPLAN - VICTOR SATORU ALVES MUKAEDA 10149154658",41465317000180,"AV. TABELIÃO JOÃO LOPES, Nº 1064, CAMPESTRE","SÃO GOTARDO","(34) 99944-7158","FORTPLAN@OUTLOOK.COM"]
["NIVALDO LUCAS MARTINS",10839110669,"RUA CURITIBA, N° 95, BAIRRO SANTA TEREZINHA","SÃO GOTARDO","(34) 99931-0052","THIAGOFERNANDES@SHIMADAAGRO.COM.BR"]
["NOVA CONSULTORIA - JUSCELINO ALEXANDRINO MACHADO EIRELI",14409336000117,"AV. PRESIDENTE VARGAS, 245, CENTRO","SÃO GOTARDO","(34) 3671-2396","NOVACONSULTORIAEPROJETOS@HOTMAIL.COM"]
["PAULO MITURU YAMAGAMI",97037680834,"AV. RIO TOCANTINS, N° 70, BAIRRO SOL NASCENTE","SÃO GOTARDO","(34) 99983-0655","AGROLOGICA@YMAIL.COM"]
["Rural Credi - ECRM Assessoria e projetos para o agronegócio Ltda.",50623756000165,"RUA PINHEIRO MACHADO Nº 245","SÃO GOTARDO","(34) 99815-1120","ruralcredicreditorural@hotmail.com"]
["PROGEO - ISAIAS DE SOUZA SANTOS",29368223000198,"RUA TRISTAO FURTADO, Nº 114, CENTRO","RIO PARANAÍBA","(34) 99961-9993","PROGEORP@GMAIL.COM"]
["VALOR SERVICOS FINANCEIROS LTDA",26311957000142,"RUA JOÃO ALVES FRANCO Nº 50,CENTRO","SÃO GOTARDO","(34) 99904-2818","VALOR.CREDITORURAL@GMAIL.COM"]
["G&R SOLUCOES AGROPECUARIAS LTDA",21784507000153,"AV. ALBERTO CALDEIRA, N° 155, CENTRO ","GUANHÃES","(33) 3421-7071","GRSOLUCOES@HOTMAIL.COM"]

{"sheet":"CAPA","index":1,"n_rows":42,"n_cols":32,"rows_kept":42,"cut":false,"hidden":false,"merged":[[20,4,21,19],[20,0,21,3],[30,0,31,44],[41,26,41,36],[37,7,37,12],[37,31,37,35],[39,8,39,13],[41,7,41,14],[39,26,39,37],[35,8,35,20],[35,0,35,7],[35,27,35,30],[35,23,35,26],[33,5,33,19],[33,23,33,28],[33,29,33,33],[14,23,15,44],[17,0,18,3],[17,4,18,21],[26,0,27,5],[26,6,27,21],[26,23,27,29],[26,30,27,44],[23,0,24,3],[23,4,24,21],[14,0,15,21],[23,23,24,26],[23,27,24,44],[17,23,18,25],[17,26,18,44],[20,23,21,26],[20,27,21,44]]}
[]
[]
[]
[]
[]
[]
[null,null,null,null,null,null,null,null,null,null,null,null,2]
[]
[]
[]
[]
[]
[]
[]
["EMPRESA ELABORADORA",null,null,null,null,null,null,null,null,null,null,null,null,null,null,null,null,null,null,null,null,null,null,"PROPONENTE"]
[]
[]
["EMPRESA:",null,null,null,{"$f":"IF('INFORMAÇÕES GERAIS'!G9=0,\"-\",UPPER('INFORMAÇÕES GERAIS'!G9))","v":"-"},null,null,null,null,null,null,null,null,null,null,null,null,null,null,null,null,null,null,"NOME:",null,null,{"$f":"IF('INFORMAÇÕES GERAIS'!F19=0,\"-\",UPPER('INFORMAÇÕES GERAIS'!F19))","v":"-"}]
[]
[]
["CPF/CNPJ:",null,null,null,{"$f":"IF('INFORMAÇÕES GERAIS'!AJ9=0,\"-\",'INFORMAÇÕES GERAIS'!AJ9)","v":"-"},null,null,null,null,null,null,null,null,null,null,null,null,null,null,null,null,null,null,"CPF/CNPJ:",null,null,null,{"$f":"IF('INFORMAÇÕES GERAIS'!AJ19=0,\"-\",'INFORMAÇÕES GERAIS'!AJ19)","v":"-"}]
[]
[]
["TELEFONE:",null,null,null,{"$f":"IF('INFORMAÇÕES GERAIS'!F13=\"\",\"-\",'INFORMAÇÕES GERAIS'!F13)","v":"-"},null,null,null,null,null,null,null,null,null,null,null,null,null,null,null,null,null,null,"TELEFONE:",null,null,null,{"$f":"IF('INFORMAÇÕES GERAIS'!T23=\"\",\"-\",'INFORMAÇÕES GERAIS'!T23)","v":"-"}]
[]
[]
["RESP. TÉCNICO:",null,null,null,null,null,{"$f":"IF('INFORMAÇÕES GERAIS'!H15=0,\"-\",UPPER('INFORMAÇÕES GERAIS'!H15))","v":"-"},null,null,null,null,null,null,null,null,null,null,null,null,null,null,null,null,"CONTA CORRENTE:",null,null,null,null,null,null,{"$f":"IF('INFORMAÇÕES GERAIS'!I23=0,\"-\",'INFORMAÇÕES GERAIS'!I23)","v":"-"}]
[]
[]
[]
["INFORMAÇÕES DO PROJETO"]
[]
[]
["ATIVIDADE:",null,null,null,null,{"$f":"IF(ATIVIDADE_FINANCIADA=0,\"-\",UPPER(ATIVIDADE_FINANCIADA))","v":"BOVINOCULTURA DE CORTE"},null,null,null,null,null,null,null,null,null,null,null,null,null,null,null,null,null,"TAXA DE JUROS:",null,null,null,null,null,{"$f":"IF('INFORMAÇÕES GERAIS'!J57=\"\",\"-\",'INFORMAÇÕES GERAIS'!J57)","v":"-"}]
[]
["LINHA DE CRÉDITO:",null,null,null,null,null,null,null,{"$f":"IF(LINHA_CRÉDITO=\"\",\"-\",LINHA_CRÉDITO)","v":"-"},null,null,null,null,null,null,null,null,null,null,null,null,null,null,"PRAZO:",null,null,null,{"$f":"IF('INFORMAÇÕES GERAIS'!I63=0,\"-\",'INFORMAÇÕES GERAIS'!I63)","v":"24 MESES"}]
[]
["VALOR ORÇADO:",null,null,null,null,null,null,{"$f":"IF(VALOR_ORÇADO=0,\"-\",VALOR_ORÇADO)","v":"-"},null,null,null,null,null,null,null,null,null,null,null,null,null,null,null,"VALOR FINANCIADO:",null,null,null,null,null,null,null,{"$f":"IF(VALOR_FINANCIADO=0,\"-\",VALOR_FINANCIADO)","v":"-"}]
[]
["RECEITA ESTIMADA:",null,null,null,null,null,null,null,{"$f":"IF(RECEITA_ESTIMADA=0,\"-\",RECEITA_ESTIMADA)","v":"-"},null,null,null,null,null,null,null,null,null,null,null,null,null,null,"FASE:",null,null,{"$f":"IF(FASE_FINANCIADA=0,\"-\",UPPER(FASE_FINANCIADA))","v":"RECRIA / ENGORDA"}]
[]
["PRODUTIVIDADE:",null,null,null,null,null,null,{"$f":"IF(ATIVIDADE_FINANCIADA=\"BOVINOCULTURA DE CORTE\",_xlfn.CONCAT(TEXT('INFORMAÇÕES GERAIS'!S67,\"#.##\"),\" CABEÇAS\"),_xlfn.CONCAT(TEXT('INFORMAÇÕES GERAIS'!S67,\"#.##\"),IF(ATIVIDADE_FINANCIADA=\"BOVINOCULTURA DE LEITE\",\"LITROS\",\"-\")))","v":" CABEÇAS"},null,null,null,null,null,null,null,null,null,null,null,null,null,null,null,"DATA:",null,null,{"$f":"IF('INFORMAÇÕES GERAIS'!AF55=\"\",\"-\",CONCATENATE(IF('INFORMAÇÕES GERAIS'!AF55<10,CONCATENATE(\"0\",'INFORMAÇÕES GERAIS'!AF55),'INFORMAÇÕES GERAIS'!AF55),\" DE \",'INFORMAÇÕES GERAIS'!AI55,\" DE \",'INFORMAÇÕES GERAIS'!AO55))","v":"-"}]

{"sheet":"INFORMAÇÕES GERAIS","index":2,"n_rows":133,"n_cols":53,"rows_kept":133,"cut":false,"hidden":true,"merged":[[119,0,119,7],[119,8,119,44],[121,0,121,7],[121,8,121,44],[123,0,123,7],[123,8,123,44],[125,8,125,44],[68,9,68,15],[113,0,113,3],[113,4,113,15],[113,16,113,24],[113,25,113,31],[113,32,113,38],[113,39,113,44],[114,0,114,44],[115,0,115,44],[117,0,117,44],[111,4,111,15],[111,16,111,24],[111,25,111,31],[111,32,111,38],[111,39,111,44],[112,0,112,3],[112,4,112,15],[60,0,60,6],[60,7,60,16],[60,23,60,30],[68,41,68,44],[66,23,66,36],[78,18,78,21],[78,23,78,32],[78,33,78,36],[68,0,68,8],[72,23,72,38],[72,39,72,44],[112,25,112,31],[112,32,112,38],[112,39,112,44],[64,0,64,13],[64,14,64,21],[64,23,64,36],[64,37,64,44],[62,23,62,34],[62,35,62,44],[80,0,80,14],[80,15,80,18],[80,23,80,37],[80,38,80,41],[70,0,70,13],[70,15,70,19],[70,23,70,30],[70,31,70,44],[76,10,76,13],[76,0,76,9],[74,23,74,35],[74,0,74,6],[74,7,74,21],[74,36,74,39],[66,38,66,43],[132,0,132,19],[130,25,130,44],[131,25,131,44],[132,25,132,44],[46,0,46,6],[46,7,46,28],[46,29,46,34],[46,35,46,44],[44,0,44,44],[48,0,48,5],[48,6,48,27],[48,33,48,44],[48,28,48,32],[58,9,58,21],[52,0,52,44],[54,0,54,7],[54,8,54,21],[54,23,54,30],[54,31,54,32],[54,34,54,38],[54,40,54,42],[130,0,130,19],[131,0,131,19],[56,0,56,8],[40,28,40,32],[38,0,38,6],[36,0,36,44],[32,33,32,44],[32,28,32,32],[28,0,28,44],[30,0,30,6],[62,8,62,11],[38,7,38,28],[38,29,38,34],[38,35,38,44],[40,0,40,5],[40,6,40,27],[40,33,40,44],[56,9,56,12],[56,23,56,27],[56,28,56,44],[58,30,58,41],[58,0,58,8],[58,23,58,29],[34,0,34,4],[34,5,34,15],[34,26,34,29],[34,41,34,44],[8,31,8,34],[8,35,8,45],[10,0,10,4],[10,29,10,32],[10,33,10,44],[22,14,22,18],[6,0,6,44],[16,0,16,44],[22,26,22,29],[18,0,18,4],[18,35,18,44],[20,0,20,4],[20,29,20,32],[8,6,8,30],[10,5,10,28],[12,5,12,18],[14,7,14,29],[18,5,18,29],[20,5,20,28],[22,19,22,25],[22,30,22,44],[22,0,22,7],[8,0,8,5],[125,0,125,7],[60,31,60,37],[62,0,62,7],[68,23,68,40],[108,0,108,44],[109,0,110,3],[109,4,110,15],[109,16,110,24],[109,25,110,31],[109,32,110,38],[109,39,110,44],[111,0,111,3],[66,18,66,21],[66,0,66,17],[72,0,72,13],[72,14,72,18],[82,0,82,13],[82,14,82,17],[82,23,82,40],[82,41,82,44],[76,23,76,31],[76,32,76,35],[78,0,78,17],[112,16,112,24],[34,16,34,25],[34,30,34,40],[22,8,22,13],[12,0,12,4],[12,19,12,22],[12,23,12,44],[18,30,18,34],[14,0,14,6],[20,33,20,44],[26,0,26,9],[26,10,26,11],[32,0,32,5],[32,6,32,27],[24,0,24,44],[30,35,30,44],[30,7,30,28],[30,29,30,34],[14,30,14,34],[14,35,14,44],[42,0,42,4],[42,5,42,15],[42,16,42,25],[42,26,42,29],[42,30,42,40],[42,41,42,44],[50,5,50,15],[50,0,50,4],[50,16,50,25],[50,26,50,29],[50,30,50,40],[50,41,50,44],[85,0,85,44],[86,0,86,6],[86,7,86,12],[86,13,86,18],[86,19,86,25],[86,26,86,32],[86,33,86,38],[86,39,86,44],[87,0,87,6],[87,7,87,12],[87,13,87,18],[87,19,87,25],[87,26,87,32],[87,33,87,38],[87,39,87,44],[88,0,88,6],[88,7,88,12],[88,13,88,18],[88,19,88,25],[88,26,88,32],[88,33,88,38],[88,39,88,44],[89,0,89,6],[89,7,89,12],[89,13,89,18],[89,19,89,25],[89,26,89,32],[89,33,89,38],[89,39,89,44],[90,0,90,6],[90,7,90,12],[90,13,90,18],[90,19,90,25],[90,26,90,32],[90,33,90,38],[90,39,90,44],[91,0,91,6],[91,7,91,12],[91,13,91,18],[91,19,91,25],[91,26,91,32],[91,33,91,38],[91,39,91,44],[92,0,92,6],[92,7,92,12],[92,13,92,18],[92,19,92,25],[92,26,92,32],[92,33,92,38],[92,39,92,44],[93,0,93,6],[93,7,93,12],[93,13,93,18],[93,19,93,25],[93,26,93,32],[93,33,93,38],[93,39,93,44],[94,0,94,6],[94,7,94,12],[94,13,94,18],[94,19,94,25],[94,26,94,32],[94,33,94,38],[94,39,94,44],[95,0,95,6],[95,7,95,12],[95,13,95,18],[95,19,95,25],[95,26,95,32],[95,33,95,38],[95,39,95,44],[96,0,96,6],[96,7,96,12],[96,13,96,18],[96,19,96,25],[96,26,96,32],[96,33,96,38],[96,39,96,44],[97,0,97,6],[97,7,97,12],[97,13,97,18],[97,19,97,25],[97,26,97,32],[97,33,97,38],[97,39,97,44],[98,0,98,6],[98,7,98,12],[98,13,98,18],[98,19,98,25],[98,26,98,32],[98,33,98,38],[98,39,98,44],[99,0,99,6],[99,7,99,12],[99,13,99,18],[99,19,99,25],[99,26,99,32],[99,33,99,38],[99,39,99,44],[100,0,100,6],[100,7,100,12],[100,13,100,18],[100,19,100,25],[100,26,100,32],[100,33,100,38],[100,39,100,44],[101,0,101,6],[101,7,101,12],[101,13,101,18],[101,19,101,25],[101,26,101,32],[101,33,101,38],[101,39,101,44],[102,0,102,6],[102,7,102,12],[102,13,102,18],[102,19,102,25],[102,26,102,32],[102,33,102,38],[102,39,102,44],[103,0,103,6],[103,7,103,12],[103,13,103,18],[103,19,103,25],[103,26,103,32],[103,33,103,38],[103,39,103,44],[106,0,106,6],[106,7,106,12],[106,13,106,18],[106,19,106,25],[106,26,106,32],[106,33,106,38],[106,39,106,44],[104,0,104,6],[104,7,104,12],[104,13,104,18],[104,19,104,25],[104,26,104,32],[104,33,104,38],[104,39,104,44],[105,0,105,6],[105,7,105,12],[105,13,105,18],[105,19,105,25],[105,26,105,32],[105,33,105,38],[105,39,105,44]]}
[]
[]
[]
[]
[]
[]
["REPONSÁVEL PELA ELABORAÇÃO",null,null,null,null,null,null,null,null,null,null,null,null,null,null,null,null,null,null,null,null,null,null,null,null,null,null,null,null,null,null,null,null,null,null,null,null,null,null,null,null,null,null,null,null,{"$f":"IF(OR(G9=\"\",AJ9=\"\",F11=\"\",AH11=\"\",F13=\"\",X13=\"\",H15=\"\",AJ15=\"\"),\"AUSENTE\",\"OK\")","v":"AUSENTE"}]
[]
["ELABORADOR:",null,null,null,null,null,null,null,null,null,null,null,null,null,null,null,null,null,null,null,null,null,null,null,null,null,null,null,null,null,null,"CPF/CNPJ:",null,null,null,{"$f":"IFERROR(VLOOKUP(G9,'EMPRESAS ELABORADORAS'!A2:F14,2,0),\"-\")","v":"-"}]
[]
["ENDEREÇO:",null,null,null,null,{"$f":"IFERROR(VLOOKUP(G9,'EMPRESAS ELABORADORAS'!A2:F14,3,0),\"-\")","v":"-"},null,null,null,null,null,null,null,null,null,null,null,null,null,null,null,null,null,null,null,null,null,null,null,"CIDADE:",null,null,null,{"$f":"IFERROR(VLOOKUP(G9,'EMPRESAS ELABORADORAS'!A2:F14,4,0),\"-\")","v":"-"}]
[]
["TELEFONE:",null,null,null,null,{"$f":"IFERROR(VLOOKUP(G9,'EMPRESAS ELABORADORAS'!A2:F14,5,0),\"-\")","v":"-"},null,null,null,null,null,null,null,null,null,null,null,null,null,"EMAIL:",null,null,null,{"$f":"IFERROR(VLOOKUP(G9,'EMPRESAS ELABORADORAS'!A2:F14,6,0),\"-\")","v":"-"}]
[]
["RESP. TÉCNICO:",null,null,null,null,null,null,null,null,null,null,null,null,null,null,null,null,null,null,null,null,null,null,null,null,null,null,null,null,null,"CREA / CFTA:"]
[]
["IDENTIFICAÇÃO DO PROPONENTE",null,null,null,null,null,null,null,null,null,null,null,null,null,null,null,null,null,null,null,null,null,null,null,null,null,null,null,null,null,null,null,null,null,null,null,null,null,null,null,null,null,null,null,null,{"$f":"IF(OR(F19=\"\",AJ19=\"\",F21=\"\",AH21=\"\",I23=\"\",T23=\"\",AE23=\"\"),\"AUSENTE\",\"OK\")","v":"AUSENTE"}]
[]
["NOME:",null,null,null,null,null,null,null,null,null,null,null,null,null,null,null,null,null,null,null,null,null,null,null,null,null,null,null,null,null,"CPF/CNPJ:"]
[]
["ENDEREÇO:",null,null,null,null,null,null,null,null,null,null,null,null,null,null,null,null,null,null,null,null,null,null,null,null,null,null,null,null,"CIDADE:"]
[]
["CONTA CORRENTE:",null,null,null,null,null,null,null,null,null,null,null,null,null,"TELEFONE:",null,null,null,null,null,null,null,null,null,null,null,"EMAIL:"]
[]
["IMÓVEIS DE LOCALIZAÇÃO DO EMPREENDIMENTO"]
[]
["QUANTIDADE DE IMÓVEIS:",null,null,null,null,null,null,null,null,null,2]
[]
["IMÓVEL 1",null,null,null,null,null,null,null,null,null,null,null,null,null,null,null,null,null,null,null,null,null,null,null,null,null,null,null,null,null,null,null,null,null,null,null,null,null,null,null,null,null,null,null,null,{"$f":"IF(OR(H31=\"\",AJ31=\"\",G33=\"\",AH33=\"\",F35=\"\",AP35=\"\"),\"AUSENTE\",\"OK\")","v":"AUSENTE"}]
[]
["PROPRIEDADE:",null,null,null,null,null,null,null,null,null,null,null,null,null,null,null,null,null,null,null,null,null,null,null,null,null,null,null,null,"MATRÍCULA:"]
[]
["PROPRIETÁRIO:",null,null,null,null,null,null,null,null,null,null,null,null,null,null,null,null,null,null,null,null,null,null,null,null,null,null,null,"CPF/CNPJ:"]
[]
["MUNICÍPIO:",null,null,null,null,null,null,null,null,null,null,null,null,null,null,null,"ÁREA TOTAL IMÓVEL (ha):",null,null,null,null,null,null,null,null,null,null,null,null,null,"ÁREA A SER BENEFICIADA (ha):"]
[]
["IMÓVEL 2",null,null,null,null,null,null,null,null,null,null,null,null,null,null,null,null,null,null,null,null,null,null,null,null,null,null,null,null,null,null,null,null,null,null,null,null,null,null,null,null,null,null,null,null,{"$f":"IF(OR(H39=\"\",AJ39=\"\",G41=\"\",AH41=\"\",F43=\"\",AP43=\"\"),\"AUSENTE\",\"OK\")","v":"AUSENTE"}]
[]
["PROPRIEDADE:",null,null,null,null,null,null,null,null,null,null,null,null,null,null,null,null,null,null,null,null,null,null,null,null,null,null,null,null,"MATRÍCULA:"]
[]
["PROPRIETÁRIO:",null,null,null,null,null,null,null,null,null,null,null,null,null,null,null,null,null,null,null,null,null,null,null,null,null,null,null,"CPF/CNPJ:"]
[]
["MUNICÍPIO:",null,null,null,null,null,null,null,null,null,null,null,null,null,null,null,"ÁREA TOTAL IMÓVEL (ha):",null,null,null,null,null,null,null,null,null,null,null,null,null,"ÁREA A SER BENEFICIADA (ha):"]
[]
["IMÓVEL 3",null,null,null,null,null,null,null,null,null,null,null,null,null,null,null,null,null,null,null,null,null,null,null,null,null,null,null,null,null,null,null,null,null,null,null,null,null,null,null,null,null,null,null,null,{"$f":"IF(OR(H47=\"\",AJ47=\"\",G49=\"\",AH49=\"\",F51=\"\",AP51=\"\"),\"AUSENTE\",\"OK\")","v":"AUSENTE"}]
[]
["PROPRIEDADE:",null,null,null,null,null,null,null,null,null,null,null,null,null,null,null,null,null,null,null,null,null,null,null,null,null,null,null,null,"MATRÍCULA:"]
[]
["PROPRIETÁRIO:",null,null,null,null,null,null,null,null,null,null,null,null,null,null,null,null,null,null,null,null,null,null,null,null,null,null,null,"CPF/CNPJ:"]
[]
["MUNICÍPIO:",null,null,null,null,null,null,null,null,null,null,null,null,null,null,null,"ÁREA TOTAL IMÓVEL (ha):",null,null,null,null,null,null,null,null,null,null,null,null,null,"ÁREA A SER BENEFICIADA (ha):"]
[]
["EMPREENDIMENTO",null,null,null,null,null,null,null,null,null,null,null,null,null,null,null,null,null,null,null,null,null,null,null,null,null,null,null,null,null,null,null,null,null,null,null,null,null,null,null,null,null,null,null,null,{"$f":"IF(OR(LINHA_CRÉDITO=\"\",AF55=\"\",AI55=\"\",AO55=\"\",AC57=\"\",ATIVIDADE_FINANCIADA=\"\",J57=\"\",H61=\"\",FASE_FINANCIADA=\"\",AF61=\"\",AJ63=\"\",AL65=\"\",O65=\"\",PRAZO=\"\",PRODUÇÃO_ESTIMADA=\"\",AM67=\"\",ANIMAIS_CUSTEADOS=\"\",J69=\"\",P71=\"\",AF71=\"\",AK75=\"\",AG77=\"\",H75=\"\",K77=\"\",S79=\"\",P81=\"\",O83=\"\",AH79=\"\",AM81=\"\",AP83=\"\"),\"AUSENTE\",\"OK\")","v":"AUSENTE"}]
[]
["LINHA DE CRÉDITO:",null,null,null,null,null,null,null,null,null,null,null,null,null,null,null,null,null,null,null,null,null,null,"DATA DO PROJETO:",null,null,null,null,null,null,null,null,null,"/",null,null,null,null,null,"/",null,null,null,null,null,null,{"$f":"IF(J59=\"BOVINOCULTURA DE CORTE\",\"ATIVIDADE_CORTE\",\"ATIVIDADE_LEITE\")","v":"ATIVIDADE_CORTE"}]
[]
["TAXA DE JUROS (a.a):",null,null,null,null,null,null,null,null,null,null,null,null,null,null,null,null,null,null,null,null,null,null,"GARANTIAS:",null,null,null,null,null,null,null,null,null,null,null,null,null,null,null,null,null,null,null,null,null,null,{"$f":"_xlfn.CONCAT(\"PRAZO_\",VLOOKUP(FASE_FINANCIADA,LISTAS!I1:N7,6,0))","v":"PRAZO_24"}]
[]
["ATIVIDADE FINANCIADA:",null,null,null,null,null,null,null,null,"BOVINOCULTURA DE CORTE",null,null,null,null,null,null,null,null,null,null,null,null,null,"FASE FINANCIADA:",null,null,null,null,null,null,"RECRIA / ENGORDA"]
[]
["PORTE PRODUTOR:",null,null,null,null,null,null,null,null,null,null,null,null,null,null,null,null,null,null,null,null,null,null,"NÍVEL TÉCNOLÓGICO:"]
[]
["PRAZO DO CUSTEIO:",null,null,null,null,null,null,null,"24 MESES",null,null,null,null,null,null,null,null,null,null,null,null,null,null,"PERIODICIDADE DO REEMBOLSO:"]
[]
["VALOR ORÇADO TOTAL DO PROJETO (R$):",null,null,null,null,null,null,null,null,null,null,null,null,null,{"$f":"IF(VALOR_ORÇADO=0,\"-\",VALOR_ORÇADO)","v":"-"},null,null,null,null,null,null,null,null,"VALOR A SER FINANCIADO NO PROJETO:",null,null,null,null,null,null,null,null,null,null,null,null,null,{"$f":"IF(VALOR_FINANCIADO=0,\"-\",VALOR_FINANCIADO)","v":"-"}]
[]
[{"$f":"IFERROR(_xlfn.CONCAT(\"PRODUÇÃO DE \",VLOOKUP(FASE_FINANCIADA,LISTAS!I1:N7,2,0),\" ESTIMADA:\"),\"PRODUÇÃO ESTIMADA:\")","v":"PRODUÇÃO DE CABEÇAS DE BOI GORDO ESTIMADA:"},null,null,null,null,null,null,null,null,null,null,null,null,null,null,null,null,null,null,null,null,null,null,{"$f":"IF(FASE_FINANCIADA=\"PRODUÇÃO DE LEITE\",\"VALOR DE VENDA ESTIMADO POR LITRO:\",\"VALOR VENDA ESTIMADO POR CABEÇA:\")","v":"VALOR VENDA ESTIMADO POR CABEÇA:"}]
[]
["RECEITA PREVISTA (R$):",null,null,null,null,null,null,null,null,{"$f":"IF(PRODUÇÃO_ESTIMADA*AM67=0,\"-\",AM67*PRODUÇÃO_ESTIMADA)","v":"-"},null,null,null,null,null,null,null,null,null,null,null,null,null,"QTDE DE ANIMAIS BENEFICIADOS PELO CUSTEIO:"]
[]
["ÁREA TOTAL BENEFICIADA (ha):",null,null,null,null,null,null,null,null,null,null,null,null,null,null,null,null,null,null,null,null,null,null,"SISTEMA PRODUTIVO:"]
[]
["ÁREA BENEFICIADA ARRENDADA (ha):",null,null,null,null,null,null,null,null,null,null,null,null,null,null,null,null,null,null,null,null,null,null,"CUSTO MENSAL DO ARRENDAMENTO (R$/ha):"]
[]
["ASSISTÊNCIA TÉC.:",null,null,null,null,null,null,null,null,null,null,null,null,null,null,null,null,null,null,null,null,null,null,"ASSISTÊNCIA TÉCNICA FINANCIADA:"]
[]
["RASTREABILIDADE ANIMAL:",null,null,null,null,null,null,null,null,null,null,null,null,null,null,null,null,null,null,null,null,null,null,"MAQUINÁRIO PRÓPRIO:"]
[]
["RESERVA LEGAL , APP OU PLANO DE RECUPERAÇÃO:",null,null,null,null,null,null,null,null,null,null,null,null,null,null,null,null,null,null,null,null,null,null,"ZONEAMENTO AGRÍCOLA:",null,null,null,null,null,null,null,null,null,"NÃO"]
[]
["SEGURO AGRÍCOLA, EXCETO PROAGRO:",null,null,null,null,null,null,null,null,null,null,null,null,null,null,null,null,null,null,null,null,null,null,"CONTRATOS FUTUROS OU DE OPÇÕES:"]
[]
["SISTEMA ORGÂNICO DE PRODUÇÃO:",null,null,null,null,null,null,null,null,null,null,null,null,null,null,null,null,null,null,null,null,null,null,"PARTICIPA DO SAPI E CERTIFICAÇÃO DO INMETRO:"]
[]
[]
["REBANHO CUSTEADO"]
["TIPO DE ANIMAL",null,null,null,null,null,null,"IDADE MÉDIA\n(MESES)",null,null,null,null,null,"RAÇA:",null,null,null,null,null,"COR PREDOMINANTE",null,null,null,null,null,null,"QUANTIDADE \n(Nº CABEÇAS)",null,null,null,null,null,null,"VALOR  UN.\n (R$)",null,null,null,null,null,"VALOR \nTOTAL (R$)",null,null,null,null,null,null,{"$f":"SUM(AV87:AV107)","v":1},null,null,null,{"$f":"SUM(AA88:AG107)","v":0},null,"QUANTIDADE DE ANIMAIS"]
[null,null,null,null,null,null,null,null,null,null,null,null,null,null,null,null,null,null,null,null,null,null,null,null,null,null,null,null,null,null,null,null,null,null,null,null,null,null,null,{"$f":"IF(OR(AH88=\"\",AA88=\"\"),\"\",AH88*AA88)","v":""},null,null,null,null,null,null,null,1]
[null,null,null,null,null,null,null,null,null,null,null,null,null,null,null,null,null,null,null,null,null,null,null,null,null,null,null,null,null,null,null,null,null,null,null,null,null,null,null,{"$f":"IF(OR(AH89=\"\",AA89=\"\"),\"\",AH89*AA89)","v":""}]
[null,null,null,null,null,null,null,null,null,null,null,null,null,null,null,null,null,null,null,null,null,null,null,null,null,null,null,null,null,null,null,null,null,null,null,null,null,null,null,""]
[null,null,null,null,null,null,null,null,null,null,null,null,null,null,null,null,null,null,null,null,null,null,null,null,null,null,null,null,null,null,null,null,null,null,null,null,null,null,null,""]
[null,null,null,null,null,null,null,null,null,null,null,null,null,null,null,null,null,null,null,null,null,null,null,null,null,null,null,null,null,null,null,null,null,null,null,null,null,null,null,""]
[null,null,null,null,null,null,null,null,null,null,null,null,null,null,null,null,null,null,null,null,null,null,null,null,null,null,null,null,null,null,null,null,null,null,null,null,null,null,null,""]
[null,null,null,null,null,null,null,null,null,null,null,null,null,null,null,null,null,null,null,null,null,null,null,null,null,null,null,null,null,null,null,null,null,null,null,null,null,null,null,""]
[null,null,null,null,null,null,null,null,null,null,null,null,null,null,null,null,null,null,null,null,null,null,null,null,null,null,null,null,null,null,null,null,null,null,null,null,null,null,null,""]
[null,null,null,null,null,null,null,null,null,null,null,null,null,null,null,null,null,null,null,null,null,null,null,null,null,null,null,null,null,null,null,null,null,null,null,null,null,null,null,""]
[null,null,null,null,null,null,null,null,null,null,null,null,null,null,null,null,null,null,null,null,null,null,null,null,null,null,null,null,null,null,null,null,null,null,null,null,null,null,null,""]
[null,null,null,null,null,null,null,null,null,null,null,null,null,null,null,null,null,null,null,null,null,null,null,null,null,null,null,null,null,null,null,null,null,null,null,null,null,null,null,""]
[null,null,null,null,null,null,null,null,null,null,null,null,null,null,null,null,null,null,null,null,null,null,null,null,null,null,null,null,null,null,null,null,null,null,null,null,null,null,null,""]
[null,null,null,null,null,null,null,null,null,null,null,null,null,null,null,null,null,null,null,null,null,null,null,null,null,null,null,null,null,null,null,null,null,null,null,null,null,null,null,""]
[null,null,null,null,null,null,null,null,null,null,null,null,null,null,null,null,null,null,null,null,null,null,null,null,null,null,null,null,null,null,null,null,null,null,null,null,null,null,null,""]
[null,null,null,null,null,null,null,null,null,null,null,null,null,null,null,null,null,null,null,null,null,null,null,null,null,null,null,null,null,null,null,null,null,null,null,null,null,null,null,""]
[null,null,null,null,null,null,null,null,null,null,null,null,null,null,null,null,null,null,null,null,null,null,null,null,null,null,null,null,null,null,null,null,null,null,null,null,null,null,null,""]
[null,null,null,null,null,null,null,null,null,null,null,null,null,null,null,null,null,null,null,null,null,null,null,null,null,null,null,null,null,null,null,null,null,null,null,null,null,null,null,""]
[null,null,null,null,null,null,null,null,null,null,null,null,null,null,null,null,null,null,null,null,null,null,null,null,null,null,null,null,null,null,null,null,null,null,null,null,null,null,null,""]
[null,null,null,null,null,null,null,null,null,null,null,null,null,null,null,null,null,null,null,null,null,null,null,null,null,null,null,null,null,null,null,null,null,null,null,null,null,null,null,""]
[null,null,null,null,null,null,null,null,null,null,null,null,null,null,null,null,null,null,null,null,null,null,null,null,null,null,null,null,null,null,null,null,null,null,null,null,null,null,null,""]
[]
["HISTÓRICO DE PRODUTIVIDADE"]
["ANO",null,null,null,"ATIVIDADE",null,null,null,null,null,null,null,null,null,null,null,"PRODUTO",null,null,null,null,null,null,null,null,"PRODUÇÃO",null,null,null,null,null,null,"PREÇO MÉDIO UNITÁRIO (R$)",null,null,null,null,null,null,"RECEITA TOTAL (R$)"]
[]
[null,null,null,null,null,null,null,null,null,null,null,null,null,null,null,null,{"$f":"IF(E112=\"\",\"\",VLOOKUP(E112,LISTAS!$I$1:$N$7,2,0))","v":""},null,null,null,null,null,null,null,null,null,null,null,null,null,null,null,null,null,null,null,null,null,null,{"$f":"IF(OR(Z112=\"\",AG112=\"\"),\"\",AG112*Z112)","v":""},null,null,null,null,null,{"$f":"1-PRODUÇÃO_ESTIMADA/Z112","v":{"$error":"#DIV/0!"}}]
[null,null,null,null,null,null,null,null,null,null,null,null,null,null,null,null,{"$f":"IF(E113=\"\",\"\",VLOOKUP(E113,LISTAS!$I$1:$N$7,2,0))","v":""},null,null,null,null,null,null,null,null,null,null,null,null,null,null,null,null,null,null,null,null,null,null,{"$f":"IF(OR(Z113=\"\",AG113=\"\"),\"\",AG113*Z113)","v":""},null,null,null,null,null,{"$f":"1-(Z112/Z113)","v":{"$error":"#DIV/0!"}}]
[null,null,null,null,null,null,null,null,null,null,null,null,null,null,null,null,{"$f":"IF(E114=\"\",\"\",VLOOKUP(E114,LISTAS!$I$1:$N$7,2,0))","v":""},null,null,null,null,null,null,null,null,null,null,null,null,null,null,null,null,null,null,null,null,null,null,{"$f":"IF(OR(Z114=\"\",AG114=\"\"),\"\",AG114*Z114)","v":""},null,null,null,null,null,{"$f":"1-(Z113/Z114)","v":{"$error":"#DIV/0!"}}]
["OBSERVAÇÕES:"]
[]
[]
["INFORMAÇÕES COMPLEMENTARES (OPCIONAL)",null,null,null,null,null,null,null,null,null,null,null,null,null,null,null,null,null,null,null,null,null,null,null,null,null,null,null,null,null,null,null,null,null,null,null,null,null,null,null,null,null,null,null,null,{"$f":"AT120+AT122+AT124+AT126","v":0}]
[]
["SOBRE O PRODUTOR:",null,null,null,null,null,null,null,null,null,null,null,null,null,null,null,null,null,null,null,null,null,null,null,null,null,null,null,null,null,null,null,null,null,null,null,null,null,null,null,null,null,null,null,null,{"$f":"IF(I120=\"\",0,1)","v":0}]
[]
["SOBRE OS ANIMAIS:",null,null,null,null,null,null,null,null,null,null,null,null,null,null,null,null,null,null,null,null,null,null,null,null,null,null,null,null,null,null,null,null,null,null,null,null,null,null,null,null,null,null,null,null,{"$f":"IF(I122=\"\",0,1)","v":0}]
[]
["SOBRE A ESTRUTURA:",null,null,null,null,null,null,null,null,null,null,null,null,null,null,null,null,null,null,null,null,null,null,null,null,null,null,null,null,null,null,null,null,null,null,null,null,null,null,null,null,null,null,null,null,0]
[]
["SOBRE O MAQUINÁRIO E EQUIPAMENTOS:",null,null,null,null,null,null,null,null,null,null,null,null,null,null,null,null,null,null,null,null,null,null,null,null,null,null,null,null,null,null,null,null,null,null,null,null,null,null,null,null,null,null,null,null,0]
[]
[]
[]
[]
["________________________________________",null,null,null,null,null,null,null,null,null,null,null,null,null,null,null,null,null,null,null,null,null,null,null,null,"________________________________________"]
[{"$f":"UPPER('INFORMAÇÕES GERAIS'!F19)","v":""},null,null,null,null,null,null,null,null,null,null,null,null,null,null,null,null,null,null,null,null,null,null,null,null,{"$f":"UPPER('INFORMAÇÕES GERAIS'!H15)","v":""}]
["Proponente",null,null,null,null,null,null,null,null,null,null,null,null,null,null,null,null,null,null,null,null,null,null,null,null,"Responsável Técnico"]

{"sheet":"LISTA_PATRIMÔNIO","index":3,"n_rows":21,"n_cols":11,"rows_kept":21,"cut":false,"hidden":true,"merged":[]}
["LOCALIZAÇÃO","TIPO USO","TIPO BEM","TIPO BEM",null,null,null,null,"TIPO_SEMOVENTES",null,"REF"]
["URBANO","RESIDENCIAL","CASA","VEÍCULO",null,null,null,null,"SUÍNOS",null,1]
["RURAL","COMERCIAL","APARTAMENTO","MÁQUINA",null,null,null,null,"BUBALINOS",null,2]
[" ","INDUSTRIAL","PRÉDIO","EQUIPAMENTO",null,null,null,null,"EQUINOS",null,3]
[null,"RURAL","TERRENO",null,null,null,null,null,"OVINOS",null,4]
[null,null,"PRÉDIO",null,null,null,null,null,"APICULTURA",null,5]
[null,null,"TERRENO",null,null,null,null,null,"ASININOS",null,6]
[null,null,"LOJA",null,null,null,null,null,"AVICULTURA",null,7]
[null,null,"SALA",null,null,null,null,null,"CANINOS",null,8]
[null,null,"GALPÃO",null,null,null,null,null,"CAPRINOS",null,9]
[null,null,"PRÉDIO",null,null,null,null,null,"PISCICULTURA",null,10]
[null,null,"TERRENO",null,null,null,null,null,"RANICULTURA",null,11]
[null,null,"FAZENDA",null,null,null,null,null,"SERICICULTURA",null,12]
[null,null,"SÍTIO",null,null,null,null,null,null,null,13]
[null,null,"RANCHO",null,null,null,null,null,null,null,14]
[null,null,"CHÁCARA",null,null,null,null,null,null,null,15]
[null,null,"ESTÂNCIA",null,null,null,null,null,null,null,16]
[null,null,"OUTRO",null,null,null,null,null,null,null,17]
[null,null,null,null,null,null,null,null,null,null,18]
[null,null,null,null,null,null,null,null,null,null,19]
[null,null,null,null,null,null,null,null,null,null,20]

{"sheet":"LISTAS","index":4,"n_rows":32,"n_cols":29,"rows_kept":32,"cut":false,"hidden":true,"merged":[]}
["CULTURAS","UNIDADES","DIA","MÊS","ANO","ASSISTENCIA TÉCNICA","GARANTIA","ATIVIDADE FINANCIADA","ATIVIDADE","PRODUTO","MEDIDA","VALOR","FINANCIADO","PRAZO MÁXIMO","1 MÊS",1,null,null,"NÍVEL TECNOLÓGICO","SISTEMA PRODUTIVO","ANGUS","BEZERRA","BEZERRO","0 a 12",{"$f":"YEAR(TODAY())-1","v":2024},null,"PRODUTOR",null,"PERIODICIDADE"]
[null,"UN",1,"JANEIRO",{"$f":"YEAR(TODAY())","v":2025},"SOMENTE ELABORAÇÃO DO PROJETO","PENHOR DOS ANIMAIS","BOVINOCULTURA DE LEITE","CRIA","CABEÇAS DE BEZERRO","CAB/MATRIZ","(POR CABEÇA)","MATRIZ BOVINA",12,"2 MESES",2,null,null,"EXTENSIVO","PASTAGEM","BONSMARA","BEZERRO","BEZERRO","13 a 24",{"$f":"Y1-1","v":2023},null,"PEQUENO PRODUTOR",null,"MENSAL"]
[null,"KG",2,"FEVEREIRO",{"$f":"E2+1","v":2026},"PROJETO + ASSISTÊNCIA","PENHOR DOS ANIMAIS + AVAIS","BOVINOCULTURA DE CORTE","RECRIA","CABEÇAS DE BOI MAGRO","KG PV/DIA/BEZ","(POR KG)","BEZERRO P/ RECRIA",12,"3 MESES",3,null,null,"SEMI-INTENSIVO","PASTAGEM IRRIGADA","CARACU","NOVILHA","BEZERRO","25 a 36",2022,null,"MÉDIO PRODUTOR",null,"SEMESTRAL"]
[null,"TON",3,"MARÇO",{"$f":"E3+1","v":2027},null,"PENHOR DOS ANIMAIS + GARANTIA REAL",null,"ENGORDA","CABEÇAS DE BOI GORDO","KG PV (GP)/DIA","(POR KG)","BOI MAGRO P/ ENGORDA",12,"4 MESES",4,null,null,"INTENSIVO","PASTAGEM + SUPLEMENTAÇÃO","BELGIAN BLUE","NOVILHO","BEZERRO",{"$f":"TEXT(\"+ de 36\",1)","v":"+ de 36"},2021,null,"GRANDE PRODUTOR",null,"ANUAL"]
[null,"GR",4,"ABRIL",2028,null,"SOMENTE AVAIS",null,"RECRIA / ENGORDA","CABEÇAS DE BOI GORDO","KG PV (GP)/DIA","(POR KG)","BEZERRO P/ REC. E ENG.",24,"5 MESES",5,null,null,null,"PASTAGEM IRRIGADA + SUPLEMENT.","BRAFORD","VACA","BEZERRA","0 a 12",2020]
[null,"m",5,"MAIO",2029,null,"SOMENTE GARANTIA REAL",null,"ENGORDA EM CONFINAMENTO","CABEÇAS DE BOI GORDO","KGPV (GP)/DIA","(POR KG)","BOI MAGRO P/ ENGORDA",6,"6 MESES",6,null,null,null,"ESTABULAMENTO","DEVON","BOI","BEZERRA","13 a 24",2019]
[null,"SACO",6,"JUNHO",2030,null,"AVAIS + GARANTIA REAL",null,"PRODUÇÃO DE LEITE","LITROS DE LEITE","L/DIA/MATRIZ","(POR LITRO)","MATRIZ BOVINA",12,"7 MESES",7,null,null,null,null,"BRAHMAN",null,"BEZERRA","25 a 36",2018]
[null,"DOSE",7,"JULHO",2031,null,null,null,null,null,null,null,null,null,"8 MESES",8,null,null,null,null,"BRANGUS ",null,"BEZERRA",{"$f":"TEXT(\"+ de 36\",1)","v":"+ de 36"},2017]
[null,"DIÁRIA",8,"AGOSTO",2032,null,null,null,null,null,null,null,null,null,"9 MESES",9,null,null,null,null,"CANCHIM",null,"NOVILHO","0 a 12"]
[null,"HORA",9,"SETEMBRO",2033,null,null,null,null,null,null,null,null,null,"10 MESES",10,null,null,null,null,"CHAROLÊS",null,"NOVILHO","13 a 24"]
[null,"L",10,"OUTUBRO",2034,null,null,null,null,null,null,null,null,null,"11 MESES",11,null,null,null,null,"CHIANINA",null,"NOVILHO","25 a 36"]
[null,"ml",11,"NOVEMBRO",2035,null,null,null,null,null,null,null,null,null,"12 MESES",12,null,null,null,null,"GIR",null,"NOVILHO",{"$f":"TEXT(\"+ de 36\",1)","v":"+ de 36"}]
[null,null,12,"DEZEMBRO",2036,null,null,null,null,null,null,null,null,null,"13 MESES",13,null,null,null,null,"GUZERÁ",null,"NOVILHA","0 a 12"]
[null,null,13,null,null,null,null,null,"CRIA / RECRIA","BOI MAGRO (CABEÇA)","CAB/MATRIZ","(POR CABEÇA)","MATRIZ BOVINA",null,"14 MESES",14,null,null,null,null,"HEREFORD",null,"NOVILHA","13 a 24"]
[null,null,14,null,null,null,null,null,"CRIA / RECRIA / ENGORDA","BOI GORDO (CABEÇA)","CAB/MATRIZ","(POR CABEÇA)","MATRIZ BOVINA",null,"15 MESES",15,null,null,null,null,"INDUBRASIL",null,"NOVILHA","25 a 36"]
[null,null,15,null,null,null,null,null,null,null,null,null,null,null,"16 MESES",16,null,null,null,null,"LIMOUSIN",null,"NOVILHA",{"$f":"TEXT(\"+ de 36\",1)","v":"+ de 36"}]
[null,null,16,null,null,null,null,null,null,null,null,null,null,null,"17 MESES",17,null,null,null,null,"MARCHIGIANA",null,"BOI","0 a 12"]
[null,null,17,null,null,null,null,null,null,null,null,null,null,null,"18 MESES",18,null,null,null,null,"NELORE",null,"BOI","13 a 24"]
[null,null,18,null,null,null,null,null,null,null,null,null,null,null,"19 MESES",19,null,null,null,null,"PIEMONTÊS",null,"BOI","25 a 36"]
[null,null,19,null,null,null,null,null,null,null,null,null,null,null,"20 MESES",20,null,null,null,null,"RED ANGUS",null,"BOI",{"$f":"TEXT(\"+ de 36\",1)","v":"+ de 36"}]
[null,null,20,null,null,null,null,null,null,null,null,null,null,null,"21 MESES",21,null,null,null,null,"SANTA GERTRUDIS",null,"VACA","0 a 12"]
[null,null,21,null,null,null,null,null,null,null,null,null,null,null,"22 MESES",22,null,null,null,null,"SENEPOL",null,"VACA","13 a 24"]
[null,null,22,null,null,null,null,null,null,null,null,null,null,null,"23 MESES",23,null,null,null,null,"SIMENTAL",null,"VACA","25 a 36"]
[null,null,23,null,null,null,null,null,null,null,null,null,null,null,"24 MESES",24,null,null,null,null,"TABAPUÃ",null,"VACA",{"$f":"TEXT(\"+ de 36\",1)","v":"+ de 36"}]
[null,null,24,null,null,null,null,null,null,null,null,null,null,null,null,null,null,null,null,null,"CRUZ. INDUSTRIAL"]
[null,null,25,null,null,null,null,null,null,null,null,null,null,null,null,null,null,null,null,null,"OUTROS"]
[null,null,26]
[null,null,27]
[null,null,28]
[null,null,29]
[null,null,30]
[null,null,31]

{"sheet":"IMÓVEIS","index":5,"n_rows":285,"n_cols":57,"rows_kept":285,"cut":false,"hidden":true,"merged":[[12,0,12,15],[12,16,12,19],[14,0,15,3],[14,5,15,8],[14,10,15,12],[14,15,15,18],[6,0,6,58],[8,0,8,5],[8,6,8,27],[8,28,8,33],[8,34,8,40],[10,7,10,58],[16,40,16,43],[16,46,16,49],[16,51,16,54],[16,56,16,58],[17,0,17,3],[17,5,17,8],[17,10,17,12],[17,15,17,18],[17,20,17,23],[17,25,17,27],[14,51,15,54],[14,56,15,58],[16,0,16,3],[16,5,16,8],[16,10,16,12],[16,15,16,18],[16,20,16,23],[16,25,16,27],[16,30,16,33],[16,35,16,38],[14,20,15,23],[14,25,15,27],[14,30,15,33],[14,35,15,38],[14,40,15,43],[14,46,15,49],[18,30,18,33],[18,35,18,38],[18,40,18,43],[18,46,18,49],[18,51,18,54],[18,56,18,58],[18,0,18,3],[18,5,18,8],[18,10,18,12],[18,15,18,18],[18,20,18,23],[18,25,18,27],[17,30,17,33],[17,35,17,38],[17,40,17,43],[17,46,17,49],[17,51,17,54],[17,56,17,58],[20,30,20,33],[20,35,20,38],[20,40,20,43],[20,46,20,49],[20,51,20,54],[20,56,20,58],[20,0,20,3],[20,5,20,8],[20,10,20,12],[20,15,20,18],[20,20,20,23],[20,25,20,27],[19,30,19,33],[19,35,19,38],[19,40,19,43],[19,46,19,49],[19,51,19,54],[19,56,19,58],[19,0,19,3],[19,5,19,8],[19,10,19,12],[19,15,19,18],[19,20,19,23],[19,25,19,27],[22,30,22,33],[22,35,22,38],[22,40,22,43],[22,46,22,49],[22,51,22,54],[22,56,22,58],[22,0,22,3],[22,5,22,8],[22,10,22,12],[22,15,22,18],[22,20,22,23],[22,25,22,27],[21,30,21,33],[21,35,21,38],[21,40,21,43],[21,46,21,49],[21,51,21,54],[21,56,21,58],[21,0,21,3],[21,5,21,8],[21,10,21,12],[21,15,21,18],[21,20,21,23],[21,25,21,27],[24,30,24,33],[24,35,24,38],[24,40,24,43],[24,46,24,49],[24,51,24,54],[24,56,24,58],[24,0,24,3],[24,5,24,8],[24,10,24,12],[24,15,24,18],[24,20,24,23],[24,25,24,27],[23,30,23,33],[23,35,23,38],[23,40,23,43],[23,46,23,49],[23,51,23,54],[23,56,23,58],[23,0,23,3],[23,5,23,8],[23,10,23,12],[23,15,23,18],[23,20,23,23],[23,25,23,27],[26,30,26,33],[26,35,26,38],[26,40,26,43],[26,46,26,49],[26,51,26,54],[26,56,26,58],[26,0,26,3],[26,5,26,8],[26,10,26,12],[26,15,26,18],[26,20,26,23],[26,25,26,27],[25,30,25,33],[25,35,25,38],[25,40,25,43],[25,46,25,49],[25,51,25,54],[25,56,25,58],[25,0,25,3],[25,5,25,8],[25,10,25,12],[25,15,25,18],[25,20,25,23],[25,25,25,27],[28,30,28,33],[28,35,28,38],[28,40,28,43],[28,46,28,49],[28,51,28,54],[28,56,28,58],[28,0,28,3],[28,5,28,8],[28,10,28,12],[28,15,28,18],[28,20,28,23],[28,25,28,27],[27,30,27,33],[27,35,27,38],[27,40,27,43],[27,46,27,49],[27,51,27,54],[27,56,27,58],[27,0,27,3],[27,5,27,8],[27,10,27,12],[27,15,27,18],[27,20,27,23],[27,25,27,27],[30,30,30,33],[30,35,30,38],[30,40,30,43],[30,46,30,49],[30,51,30,54],[30,56,30,58],[30,0,30,3],[30,5,30,8],[30,10,30,12],[30,15,30,18],[30,20,30,23],[30,25,30,27],[29,30,29,33],[29,35,29,38],[29,40,29,43],[29,46,29,49],[29,51,29,54],[29,56,29,58],[29,0,29,3],[29,5,29,8],[29,10,29,12],[29,15,29,18],[29,20,29,23],[29,25,29,27],[32,30,32,33],[32,35,32,38],[32,40,32,43],[32,46,32,49],[32,51,32,54],[32,56,32,58],[32,0,32,3],[32,5,32,8],[32,10,32,12],[32,15,32,18],[32,20,32,23],[32,25,32,27],[31,30,31,33],[31,35,31,38],[31,40,31,43],[31,46,31,49],[31,51,31,54],[31,56,31,58],[31,0,31,3],[31,5,31,8],[31,10,31,12],[31,15,31,18],[31,20,31,23],[31,25,31,27],[34,30,34,33],[34,35,34,38],[34,40,34,43],[34,46,34,49],[34,51,34,54],[34,56,34,58],[34,0,34,3],[34,5,34,8],[34,10,34,12],[34,15,34,18],[34,20,34,23],[34,25,34,27],[33,30,33,33],[33,35,33,38],[33,40,33,43],[33,46,33,49],[33,51,33,54],[33,56,33,58],[33,0,33,3],[33,5,33,8],[33,10,33,12],[33,15,33,18],[33,20,33,23],[33,25,33,27],[36,30,36,33],[36,35,36,38],[36,40,36,43],[36,46,36,49],[36,51,36,54],[36,56,36,58],[36,0,36,3],[36,5,36,8],[36,10,36,12],[36,15,36,18],[36,20,36,23],[36,25,36,27],[35,30,35,33],[35,35,35,38],[35,40,35,43],[35,46,35,49],[35,51,35,54],[35,56,35,58],[35,0,35,3],[35,5,35,8],[35,10,35,12],[35,15,35,18],[35,20,35,23],[35,25,35,27],[38,30,38,33],[38,35,38,38],[38,40,38,43],[38,46,38,49],[38,51,38,54],[38,56,38,58],[38,0,38,3],[38,5,38,8],[38,10,38,12],[38,15,38,18],[38,20,38,23],[38,25,38,27],[37,30,37,33],[37,35,37,38],[37,40,37,43],[37,46,37,49],[37,51,37,54],[37,56,37,58],[37,0,37,3],[37,5,37,8],[37,10,37,12],[37,15,37,18],[37,20,37,23],[37,25,37,27],[40,30,40,33],[40,35,40,38],[40,40,40,43],[40,46,40,49],[40,51,40,54],[40,56,40,58],[40,0,40,3],[40,5,40,8],[40,10,40,12],[40,15,40,18],[40,20,40,23],[40,25,40,27],[39,30,39,33],[39,35,39,38],[39,40,39,43],[39,46,39,49],[39,51,39,54],[39,56,39,58],[39,0,39,3],[39,5,39,8],[39,10,39,12],[39,15,39,18],[39,20,39,23],[39,25,39,27],[42,30,42,33],[42,35,42,38],[42,40,42,43],[42,46,42,49],[42,51,42,54],[42,56,42,58],[42,0,42,3],[42,5,42,8],[42,10,42,12],[42,15,42,18],[42,20,42,23],[42,25,42,27],[41,30,41,33],[41,35,41,38],[41,40,41,43],[41,46,41,49],[41,51,41,54],[41,56,41,58],[41,0,41,3],[41,5,41,8],[41,10,41,12],[41,15,41,18],[41,20,41,23],[41,25,41,27],[44,0,44,58],[67,0,67,3],[67,5,67,8],[67,10,67,12],[67,15,67,18],[67,20,67,23],[67,25,67,27],[67,30,67,33],[67,35,67,38],[67,40,67,43],[43,30,43,33],[43,35,43,38],[43,40,43,43],[43,46,43,49],[43,51,43,54],[43,56,43,58],[43,0,43,3],[43,5,43,8],[43,10,43,12],[43,15,43,18],[43,20,43,23],[43,25,43,27],[68,35,68,38],[68,40,68,43],[68,46,68,49],[68,51,68,54],[68,56,68,58],[69,0,69,3],[69,5,69,8],[69,10,69,12],[69,15,69,18],[69,20,69,23],[67,46,67,49],[67,51,67,54],[67,56,67,58],[68,0,68,3],[68,5,68,8],[68,10,68,12],[68,15,68,18],[68,20,68,23],[68,25,68,27],[68,30,68,33],[70,46,70,49],[70,51,70,54],[70,56,70,58],[72,0,72,3],[72,5,72,8],[72,10,72,12],[72,15,72,18],[72,20,72,23],[72,25,72,27],[72,30,72,33],[69,56,69,58],[70,0,70,3],[70,5,70,8],[70,10,70,12],[70,15,70,18],[70,20,70,23],[70,25,70,27],[70,30,70,33],[70,35,70,38],[70,40,70,43],[69,25,69,27],[69,30,69,33],[69,35,69,38],[69,40,69,43],[69,46,69,49],[69,51,69,54],[73,56,73,58],[74,0,74,3],[74,5,74,8],[74,10,74,12],[74,15,74,18],[74,20,74,23],[74,25,74,27],[74,30,74,33],[74,35,74,38],[74,40,74,43],[73,25,73,27],[73,30,73,33],[73,35,73,38],[73,40,73,43],[73,46,73,49],[73,51,73,54],[72,35,72,38],[72,40,72,43],[72,46,72,49],[72,51,72,54],[72,56,72,58],[73,0,73,3],[73,5,73,8],[73,10,73,12],[73,15,73,18],[73,20,73,23],[91,0,91,40],[92,0,92,58],[93,0,93,40],[94,0,94,40],[96,22,96,39],[96,40,96,57],[75,35,75,38],[75,40,75,43],[75,46,75,49],[75,51,75,54],[75,56,75,58],[76,0,76,58],[74,46,74,49],[74,51,74,54],[74,56,74,58],[75,0,75,3],[75,5,75,8],[75,10,75,12],[75,15,75,18],[75,20,75,23],[75,25,75,27],[75,30,75,33],[103,7,103,58],[105,0,105,15],[105,16,105,19],[107,0,108,3],[107,5,108,8],[107,10,108,12],[107,15,108,18],[107,20,108,23],[107,25,108,27],[107,30,108,33],[97,22,97,39],[97,40,97,57],[98,22,98,39],[98,40,98,57],[99,0,99,58],[101,0,101,5],[101,6,101,27],[101,28,101,33],[101,34,101,40],[109,56,109,58],[110,0,110,3],[110,5,110,8],[110,10,110,12],[110,15,110,18],[110,20,110,23],[110,25,110,27],[110,30,110,33],[110,35,110,38],[110,40,110,43],[109,25,109,27],[109,30,109,33],[109,35,109,38],[109,40,109,43],[109,46,109,49],[109,51,109,54],[107,35,108,38],[107,40,108,43],[107,46,108,49],[107,51,108,54],[107,56,108,58],[109,0,109,3],[109,5,109,8],[109,10,109,12],[109,15,109,18],[109,20,109,23],[111,35,111,38],[111,40,111,43],[111,46,111,49],[111,51,111,54],[111,56,111,58],[112,0,112,3],[112,5,112,8],[112,10,112,12],[112,15,112,18],[112,20,112,23],[110,46,110,49],[110,51,110,54],[110,56,110,58],[111,0,111,3],[111,5,111,8],[111,10,111,12],[111,15,111,18],[111,20,111,23],[111,25,111,27],[111,30,111,33],[113,46,113,49],[113,51,113,54],[113,56,113,58],[114,0,114,3],[114,5,114,8],[114,10,114,12],[114,15,114,18],[114,20,114,23],[114,25,114,27],[114,30,114,33],[112,56,112,58],[113,0,113,3],[113,5,113,8],[113,10,113,12],[113,15,113,18],[113,20,113,23],[113,25,113,27],[113,30,113,33],[113,35,113,38],[113,40,113,43],[112,25,112,27],[112,30,112,33],[112,35,112,38],[112,40,112,43],[112,46,112,49],[112,51,112,54],[115,56,115,58],[116,0,116,3],[116,5,116,8],[116,10,116,12],[116,15,116,18],[116,20,116,23],[116,25,116,27],[116,30,116,33],[116,35,116,38],[116,40,116,43],[115,25,115,27],[115,30,115,33],[115,35,115,38],[115,40,115,43],[115,46,115,49],[115,51,115,54],[114,35,114,38],[114,40,114,43],[114,46,114,49],[114,51,114,54],[114,56,114,58],[115,0,115,3],[115,5,115,8],[115,10,115,12],[115,15,115,18],[115,20,115,23],[117,35,117,38],[117,40,117,43],[117,46,117,49],[117,51,117,54],[117,56,117,58],[118,0,118,3],[118,5,118,8],[118,10,118,12],[118,15,118,18],[118,20,118,23],[116,46,116,49],[116,51,116,54],[116,56,116,58],[117,0,117,3],[117,5,117,8],[117,10,117,12],[117,15,117,18],[117,20,117,23],[117,25,117,27],[117,30,117,33],[119,46,119,49],[119,51,119,54],[119,56,119,58],[120,0,120,3],[120,5,120,8],[120,10,120,12],[120,15,120,18],[120,20,120,23],[120,25,120,27],[120,30,120,33],[118,56,118,58],[119,0,119,3],[119,5,119,8],[119,10,119,12],[119,15,119,18],[119,20,119,23],[119,25,119,27],[119,30,119,33],[119,35,119,38],[119,40,119,43],[118,25,118,27],[118,30,118,33],[118,35,118,38],[118,40,118,43],[118,46,118,49],[118,51,118,54],[121,56,121,58],[122,0,122,3],[122,5,122,8],[122,10,122,12],[122,15,122,18],[122,20,122,23],[122,25,122,27],[122,30,122,33],[122,35,122,38],[122,40,122,43],[121,25,121,27],[121,30,121,33],[121,35,121,38],[121,40,121,43],[121,46,121,49],[121,51,121,54],[120,35,120,38],[120,40,120,43],[120,46,120,49],[120,51,120,54],[120,56,120,58],[121,0,121,3],[121,5,121,8],[121,10,121,12],[121,15,121,18],[121,20,121,23],[123,35,123,38],[123,40,123,43],[123,46,123,49],[123,51,123,54],[123,56,123,58],[124,0,124,3],[124,5,124,8],[124,10,124,12],[124,15,124,18],[124,20,124,23],[122,46,122,49],[122,51,122,54],[122,56,122,58],[123,0,123,3],[123,5,123,8],[123,10,123,12],[123,15,123,18],[123,20,123,23],[123,25,123,27],[123,30,123,33],[125,46,125,49],[125,51,125,54],[125,56,125,58],[126,0,126,3],[126,5,126,8],[126,10,126,12],[126,15,126,18],[126,20,126,23],[126,25,126,27],[126,30,126,33],[124,56,124,58],[125,0,125,3],[125,5,125,8],[125,10,125,12],[125,15,125,18],[125,20,125,23],[125,25,125,27],[125,30,125,33],[125,35,125,38],[125,40,125,43],[124,25,124,27],[124,30,124,33],[124,35,124,38],[124,40,124,43],[124,46,124,49],[124,51,124,54],[127,56,127,58],[128,0,128,3],[128,5,128,8],[128,10,128,12],[128,15,128,18],[128,20,128,23],[128,25,128,27],[128,30,128,33],[128,35,128,38],[128,40,128,43],[127,25,127,27],[127,30,127,33],[127,35,127,38],[127,40,127,43],[127,46,127,49],[127,51,127,54],[126,35,126,38],[126,40,126,43],[126,46,126,49],[126,51,126,54],[126,56,126,58],[127,0,127,3],[127,5,127,8],[127,10,127,12],[127,15,127,18],[127,20,127,23],[129,35,129,38],[129,40,129,43],[129,46,129,49],[129,51,129,54],[129,56,129,58],[130,0,130,3],[130,5,130,8],[130,10,130,12],[130,15,130,18],[130,20,130,23],[128,46,128,49],[128,51,128,54],[128,56,128,58],[129,0,129,3],[129,5,129,8],[129,10,129,12],[129,15,129,18],[129,20,129,23],[129,25,129,27],[129,30,129,33],[131,46,131,49],[131,51,131,54],[131,56,131,58],[132,0,132,3],[132,5,132,8],[132,10,132,12],[132,15,132,18],[132,20,132,23],[132,25,132,27],[132,30,132,33],[130,56,130,58],[131,0,131,3],[131,5,131,8],[131,10,131,12],[131,15,131,18],[131,20,131,23],[131,25,131,27],[131,30,131,33],[131,35,131,38],[131,40,131,43],[130,25,130,27],[130,30,130,33],[130,35,130,38],[130,40,130,43],[130,46,130,49],[130,51,130,54],[133,56,133,58],[134,0,134,3],[134,5,134,8],[134,10,134,12],[134,15,134,18],[134,20,134,23],[134,25,134,27],[134,30,134,33],[134,35,134,38],[134,40,134,43],[133,25,133,27],[133,30,133,33],[133,35,133,38],[133,40,133,43],[133,46,133,49],[133,51,133,54],[132,35,132,38],[132,40,132,43],[132,46,132,49],[132,51,132,54],[132,56,132,58],[133,0,133,3],[133,5,133,8],[133,10,133,12],[133,15,133,18],[133,20,133,23],[135,35,135,38],[135,40,135,43],[135,46,135,49],[135,51,135,54],[135,56,135,58],[136,0,136,3],[136,5,136,8],[136,10,136,12],[136,15,136,18],[136,20,136,23],[134,46,134,49],[134,51,134,54],[134,56,134,58],[135,0,135,3],[135,5,135,8],[135,10,135,12],[135,15,135,18],[135,20,135,23],[135,25,135,27],[135,30,135,33],[160,40,160,43],[160,46,160,49],[160,51,160,54],[160,56,160,58],[161,0,161,3],[161,5,161,8],[161,10,161,12],[161,15,161,18],[161,20,161,23],[161,25,161,27],[136,56,136,58],[137,0,137,58],[160,0,160,3],[160,5,160,8],[160,10,160,12],[160,15,160,18],[160,20,160,23],[160,25,160,27],[160,30,160,33],[160,35,160,38],[136,25,136,27],[136,30,136,33],[136,35,136,38],[136,40,136,43],[136,46,136,49],[136,51,136,54],[162,30,162,33],[162,35,162,38],[162,40,162,43],[162,46,162,49],[162,51,162,54],[162,56,162,58],[162,0,162,3],[162,5,162,8],[162,10,162,12],[162,15,162,18],[162,20,162,23],[162,25,162,27],[161,30,161,33],[161,35,161,38],[161,40,161,43],[161,46,161,49],[161,51,161,54],[161,56,161,58],[164,30,164,33],[164,35,164,38],[164,40,164,43],[164,46,164,49],[164,51,164,54],[164,56,164,58],[164,0,164,3],[164,5,164,8],[164,10,164,12],[164,15,164,18],[164,20,164,23],[164,25,164,27],[163,30,163,33],[163,35,163,38],[163,40,163,43],[163,46,163,49],[163,51,163,54],[163,56,163,58],[163,0,163,3],[163,5,163,8],[163,10,163,12],[163,15,163,18],[163,20,163,23],[163,25,163,27],[167,30,167,33],[167,35,167,38],[167,40,167,43],[167,46,167,49],[167,51,167,54],[167,56,167,58],[167,0,167,3],[167,5,167,8],[167,10,167,12],[167,15,167,18],[167,20,167,23],[167,25,167,27],[165,30,165,33],[165,35,165,38],[165,40,165,43],[165,46,165,49],[165,51,165,54],[165,56,165,58],[165,0,165,3],[165,5,165,8],[165,10,165,12],[165,15,165,18],[165,20,165,23],[165,25,165,27],[169,0,169,58],[184,0,184,40],[185,0,185,58],[186,0,186,40],[187,0,187,40],[189,22,189,39],[189,40,189,57],[168,30,168,33],[168,35,168,38],[168,40,168,43],[168,46,168,49],[168,51,168,54],[168,56,168,58],[168,0,168,3],[168,5,168,8],[168,10,168,12],[168,15,168,18],[168,20,168,23],[168,25,168,27],[196,7,196,58],[198,0,198,15],[198,16,198,19],[200,0,201,3],[200,5,201,8],[200,10,201,12],[200,15,201,18],[200,20,201,23],[200,25,201,27],[200,30,201,33],[190,22,190,39],[190,40,190,57],[191,22,191,39],[191,40,191,57],[192,0,192,58],[194,0,194,5],[194,6,194,27],[194,28,194,33],[194,34,194,40],[202,56,202,58],[203,0,203,3],[203,5,203,8],[203,10,203,12],[203,15,203,18],[203,20,203,23],[203,25,203,27],[203,30,203,33],[203,35,203,38],[203,40,203,43],[202,25,202,27],[202,30,202,33],[202,35,202,38],[202,40,202,43],[202,46,202,49],[202,51,202,54],[200,35,201,38],[200,40,201,43],[200,46,201,49],[200,51,201,54],[200,56,201,58],[202,0,202,3],[202,5,202,8],[202,10,202,12],[202,15,202,18],[202,20,202,23],[204,35,204,38],[204,40,204,43],[204,46,204,49],[204,51,204,54],[204,56,204,58],[205,0,205,3],[205,5,205,8],[205,10,205,12],[205,15,205,18],[205,20,205,23],[203,46,203,49],[203,51,203,54],[203,56,203,58],[204,0,204,3],[204,5,204,8],[204,10,204,12],[204,15,204,18],[204,20,204,23],[204,25,204,27],[204,30,204,33],[206,46,206,49],[206,51,206,54],[206,56,206,58],[207,0,207,3],[207,5,207,8],[207,10,207,12],[207,15,207,18],[207,20,207,23],[207,25,207,27],[207,30,207,33],[205,56,205,58]],"merged_total":1392,"flags":["merged_cut"]}
[]
[]
[]
[]
[]
[]
["IMÓVEL 1"]
[]
["PROPRIEDADE:",null,null,null,null,null,{"$f":"IF('INFORMAÇÕES GERAIS'!H31=\"\",\"\",'INFORMAÇÕES GERAIS'!H31)","v":""},null,null,null,null,null,null,null,null,null,null,null,null,null,null,null,null,null,null,null,null,null,"MATRÍCULA:",null,null,null,null,null,{"$f":"IF('INFORMAÇÕES GERAIS'!AJ31=\"\",\"\",'INFORMAÇÕES GERAIS'!AJ31)","v":""}]
[]
["ROTEIRO DE ACESSO:"]
[]
["COORDENADAS ENVIADAS PELO APLICATIVO:",null,null,null,null,null,null,null,null,null,null,null,null,null,null,null,"SIM"]
[]
["LATITUDE",null,null,null,null,"LONGITUDE",null,null,null,null,"ALT. (m)",null,null,null,null,"LATITUDE",null,null,null,null,"LONGITUDE",null,null,null,null,"ALT. (m)",null,null,null,null,"LATITUDE",null,null,null,null,"LONGITUDE",null,null,null,null,"ALT. (m)",null,null,null,null,null,"LATITUDE",null,null,null,null,"LONGITUDE",null,null,null,null,"ALT. (m)"]
[]
[]
[]
[]
[]
[]
[]
[]
[]
[]
[]
[]
[]
[]
[]
[]
[]
[]
[]
[]
[]
[]
[]
[]
[]
[]
[]
[]
[]
["IMAGEM DA PROPRIEDADE"]
[]
[]
[]
[]
[]
[]
[]
[]
[]
[]
[]
[]
[]
[]
[]
[]
[]
[]
[]
[]
[]
[]
[]
[]
[]
[]
[]
[]
[]
[]
[]
["CONSULTA GEOESPACIAL"]
[]
[]
[]
[]
[]
[]
[]
[]
[]
[]
[]
[]
[]
[]
["Declaro para os devidos fins que:"]
[{"$f":" \"- Realizei as consultas geoespaciais através da ferramenta IDE-SISEMA e não foram encontradas irregularidades que impeçam a utilização da área mencionada acima.\"","v":"- Realizei as consultas geoespaciais através da ferramenta IDE-SISEMA e não foram encontradas irregularidades que impeçam a utilização da área mencionada acima."}]
[{"$f":"\"- Conferi as documentações que atestam a Regularidade Ambiental e estão em conformidade com as exigências.\"","v":"- Conferi as documentações que atestam a Regularidade Ambiental e estão em conformidade com as exigências."}]
[{"$f":"\"- Conferi as documentações que atestam o uso legal dos Recursos Hídricos e estão em conformidade com as exigências.\"","v":"- Conferi as documentações que atestam o uso legal dos Recursos Hídricos e estão em conformidade com as exigências."}]
[]
[null,null,null,null,null,null,null,null,null,null,null,null,null,null,null,null,null,null,null,null,null,null,"________________________________________",null,null,null,null,null,null,null,null,null,null,null,null,null,null,null,null,null,"________________________________________"]
[null,null,null,null,null,null,null,null,null,null,null,null,null,null,null,null,null,null,null,null,null,null,{"$f":"UPPER(NOME_PROPONENTE)","v":""},null,null,null,null,null,null,null,null,null,null,null,null,null,null,null,null,null,{"$f":"UPPER(RESP_TECNICO)","v":""}]
[null,null,null,null,null,null,null,null,null,null,null,null,null,null,null,null,null,null,null,null,null,null,"Proponente",null,null,null,null,null,null,null,null,null,null,null,null,null,null,null,null,null,"Responsável Técnico"]
["IMÓVEL 2"]
[]
["PROPRIEDADE:",null,null,null,null,null,{"$f":"IF('INFORMAÇÕES GERAIS'!H39=\"\",\"\",'INFORMAÇÕES GERAIS'!H39)","v":""},null,null,null,null,null,null,null,null,null,null,null,null,null,null,null,null,null,null,null,null,null,"MATRÍCULA:",null,null,null,null,null,{"$f":"IF('INFORMAÇÕES GERAIS'!AJ39=\"\",\"\",'INFORMAÇÕES GERAIS'!AJ39)","v":""}]
[]
["ROTEIRO DE ACESSO:"]
[]
["COORDENADAS ENVIADAS PELO APLICATIVO:",null,null,null,null,null,null,null,null,null,null,null,null,null,null,null,"SIM"]
[]
["LATITUDE",null,null,null,null,"LONGITUDE",null,null,null,null,"ALT. (m)",null,null,null,null,"LATITUDE",null,null,null,null,"LONGITUDE",null,null,null,null,"ALT. (m)",null,null,null,null,"LATITUDE",null,null,null,null,"LONGITUDE",null,null,null,null,"ALT. (m)",null,null,null,null,null,"LATITUDE",null,null,null,null,"LONGITUDE",null,null,null,null,"ALT. (m)"]
[]
[]
[]
[]
[]
[]
[]
[]
[]
[]
[]
[]
[]
[]
[]
[]
[]
[]
[]
[]
[]
[]
[]
[]
[]
[]
[]
[]
[]
["IMAGEM DA PROPRIEDADE"]
[]
[]
[]
[]
[]
[]
[]
[]
[]
[]
[]
[]
[]
[]
[]
[]
[]
[]
[]
[]
[]
[]
[]
[]
[]
[]
[]
[]
[]
[]
[]
["CONSULTA GEOESPACIAL"]
[]
[]
[]
[]
[]
[]
[]
[]
[]
[]
[]
[]
[]
[]
["Declaro para os devidos fins que:"]
[{"$f":" \"- Realizei as consultas geoespaciais através da ferramenta IDE-SISEMA e não foram encontradas irregularidades que impeçam a utilização da área mencionada acima.\"","v":"- Realizei as consultas geoespaciais através da ferramenta IDE-SISEMA e não foram encontradas irregularidades que impeçam a utilização da área mencionada acima."}]
[{"$f":"\"- Conferi as documentações que atestam a Regularidade Ambiental e estão em conformidade com as exigências.\"","v":"- Conferi as documentações que atestam a Regularidade Ambiental e estão em conformidade com as exigências."}]
[{"$f":"\"- Conferi as documentações que atestam o uso legal dos Recursos Hídricos e estão em conformidade com as exigências.\"","v":"- Conferi as documentações que atestam o uso legal dos Recursos Hídricos e estão em conformidade com as exigências."}]
[]
[null,null,null,null,null,null,null,null,null,null,null,null,null,null,null,null,null,null,null,null,null,null,"________________________________________",null,null,null,null,null,null,null,null,null,null,null,null,null,null,null,null,null,"________________________________________"]
[null,null,null,null,null,null,null,null,null,null,null,null,null,null,null,null,null,null,null,null,null,null,{"$f":"UPPER(NOME_PROPONENTE)","v":""},null,null,null,null,null,null,null,null,null,null,null,null,null,null,null,null,null,{"$f":"UPPER(RESP_TECNICO)","v":""}]
[null,null,null,null,null,null,null,null,null,null,null,null,null,null,null,null,null,null,null,null,null,null,"Proponente",null,null,null,null,null,null,null,null,null,null,null,null,null,null,null,null,null,"Responsável Técnico"]
["IMÓVEL 3"]
[]
["PROPRIEDADE:",null,null,null,null,null,{"$f":"IF('INFORMAÇÕES GERAIS'!H47=\"\",\"\",'INFORMAÇÕES GERAIS'!H47)","v":""},null,null,null,null,null,null,null,null,null,null,null,null,null,null,null,null,null,null,null,null,null,"MATRÍCULA:",null,null,null,null,null,{"$f":"IF('INFORMAÇÕES GERAIS'!AJ47=\"\",\"\",'INFORMAÇÕES GERAIS'!AJ47)","v":""}]
[]
["ROTEIRO DE ACESSO:"]
[]
["COORDENADAS ENVIADAS PELO APLICATIVO:",null,null,null,null,null,null,null,null,null,null,null,null,null,null,null,"SIM"]
[]
["LATITUDE",null,null,null,null,"LONGITUDE",null,null,null,null,"ALT. (m)",null,null,null,null,"LATITUDE",null,null,null,null,"LONGITUDE",null,null,null,null,"ALT. (m)",null,null,null,null,"LATITUDE",null,null,null,null,"LONGITUDE",null,null,null,null,"ALT. (m)",null,null,null,null,null,"LATITUDE",null,null,null,null,"LONGITUDE",null,null,null,null,"ALT. (m)"]
[]
[]
[]
[]
[]
[]
[]
[]
[]
[]
[]
[]
[]
[]
[]
[]
[]
[]
[]
[]
[]
[]
[]
[]
[]
[]
[]
[]
[]
["IMAGEM DA PROPRIEDADE"]
[]
[]
[]
[]
[]
[]
[]
[]
[]
[]
[]
[]
[]
[]
[]
[]
[]
[]
[]
[]
[]
[]
[]
[]
[]
[]
[]
[]
[]
[]
[]
["CONSULTA GEOESPACIAL"]
[]
[]
[]
[]
[]
[]
[]
[]
[]
[]
[]
[]
[]
[]
["Declaro para os devidos fins que:"]
[{"$f":" \"- Realizei as consultas geoespaciais através da ferramenta IDE-SISEMA e não foram encontradas irregularidades que impeçam a utilização da área mencionada acima.\"","v":"- Realizei as consultas geoespaciais através da ferramenta IDE-SISEMA e não foram encontradas irregularidades que impeçam a utilização da área mencionada acima."}]
[{"$f":"\"- Conferi as documentações que atestam a Regularidade Ambiental e estão em conformidade com as exigências legais.\"","v":"- Conferi as documentações que atestam a Regularidade Ambiental e estão em conformidade com as exigências legais."}]
[{"$f":"\"- Conferi as documentações que atestam o uso legal dos Recursos Hídricos e estão em conformidade com as exigências legais.\"","v":"- Conferi as documentações que atestam o uso legal dos Recursos Hídricos e estão em conformidade com as exigências legais."}]
[]
[null,null,null,null,null,null,null,null,null,null,null,null,null,null,null,null,null,null,null,null,null,null,"________________________________________",null,null,null,null,null,null,null,null,null,null,null,null,null,null,null,null,null,"________________________________________"]
[null,null,null,null,null,null,null,null,null,null,null,null,null,null,null,null,null,null,null,null,null,null,{"$f":"UPPER(NOME_PROPONENTE)","v":""},null,null,null,null,null,null,null,null,null,null,null,null,null,null,null,null,null,{"$f":"UPPER(RESP_TECNICO)","v":""}]
[null,null,null,null,null,null,null,null,null,null,null,null,null,null,null,null,null,null,null,null,null,null,"Proponente",null,null,null,null,null,null,null,null,null,null,null,null,null,null,null,null,null,"Responsável Técnico"]

{"sheet":"MANUAL IDE-SISEMA","index":6,"n_rows":159,"n_cols":1,"rows_kept":159,"cut":false,"hidden":true,"merged":[[158,0,158,17],[0,0,3,17],[5,0,5,17],[6,0,6,17],[8,0,8,17],[42,0,42,17],[76,0,76,17],[110,0,110,17],[123,0,123,17],[125,0,125,17],[156,0,156,17],[157,0,157,17]]}
[]
[]
[]
[]
[]
["Acessar a plataforma IDE-SISEMA pelo link abaixo:"]
["http://idesisema.meioambiente.mg.gov.br/"]
[]
["Abrir o site importar o KML do empreendimento, conforme indicação setas amarelas na imagem abaixo:"]
[]
[]
[]
[]
[]
[]
[]
[]
[]
[]
[]
[]
[]
[]
[]
[]
[]
[]
[]
[]
[]
[]
[]
[]
[]
[]
[]
[]
[]
[]
[]
[]
[]
["Abaixo, a imagem demonstra o processo de anexar o arquivo KML."]
[]
[]
[]
[]
[]
[]
[]
[]
[]
[]
[]
[]
[]
[]
[]
[]
[]
[]
[]
[]
[]
[]
[]
[]
[]
[]
[]
[]
[]
[]
[]
[]
[]
["Ao final da inclusão, a área do empreendimento deve ficar demarcada como a imagem a abaixo:"]
[]
[]
[]
[]
[]
[]
[]
[]
[]
[]
[]
[]
[]
[]
[]
[]
[]
[]
[]
[]
[]
[]
[]
[]
[]
[]
[]
[]
[]
[]
[]
[]
[]
["Em seguida, clicar em CAMADAS, e selecionar a lista de camadas abaixo:"]
[]
["Restrição Ambiental / Terras Indígenas (FUNAI) / Terras Indígenas"]
["Restrição Ambiental / Quilombolas (Fundação Palmares INCRA) / Quilombolas"]
["Restrição Ambiental / Áreas Protegidas (IEF/ICMbio) / Propriedades Cadastradas em Áreas de Conservação"]
["Restrição Ambiental / Áreas Protegidas (IEF/ICMbio) / Unidade de Conservação Federal"]
["Restrição Ambiental / Áreas Protegidas (IEF/ICMbio) / Unidade de Conservação Estadual"]
["Restrição Ambiental / Áreas Protegidas (IEF/ICMbio) / Unidade de Conservação Municipal"]
["Restrição Ambiental / Áreas Protegidas (IEF/ICMbio) / Reserva Particular do Patrimônio Natural"]
["Restrição Ambiental / Áreas Protegidas (IEF/ICMbio) / Áreas prioritárias para criação de Unidades de Conservação"]
["Restrição Ambiental / Corredores ecológicos legalmente instituídos / Corredores Ecológicos"]
[]
[]
["Nesse momento, há que se observar se a área não se sobrepões em nenhuma das camadas, o que inviabilizaria a utilização da área."]
[]
["A imagem abaixo ilustra o procedimento:"]
[]
[]
[]
[]
[]
[]
[]
[]
[]
[]
[]
[]
[]
[]
[]
[]
[]
[]
[]
[]
[]
[]
[]
[]
[]
[]
[]
[]
[]
[]
["Em seguida, colocar o mouse sobre a área do empreendimento, de forma que as coordenadas fiquem visíveis no canto inferior da tela."]
[]
["Capturar a parte da tela, indicada pelo quadro abaixo utilizando alguma ferramenta (Print Screen, Ferramenta de Captura, etc...) depois inserir o arquivo da imagem capturada no projeto."]

{"sheet":"ORÇAMENTO","index":7,"n_rows":45,"n_cols":9,"rows_kept":45,"cut":false,"hidden":true,"merged":[[20,0,20,8],[18,0,18,6],[12,0,12,6],[6,0,6,6],[7,0,7,8],[13,0,13,8],[14,0,14,8],[19,0,19,8],[8,0,8,8],[44,3,44,6],[43,3,43,6],[42,3,42,6],[31,0,31,5],[24,0,24,6],[30,0,30,6],[44,0,44,1],[42,0,42,1],[43,0,43,1],[26,0,26,5],[25,0,25,5]]}
[]
[]
[]
[]
[]
[" "]
[" "]
["I - ALIMENTAÇÃO"]
[]
["ESPECIFICAÇÃO","UN","QTD\n(POR U.A.)","VALOR UN.\n (R$)","CUSTO POR U.A\n(R$)","CUSTO TOTAL\n(R$)","FINANCIADO\n (R$)","EM BRANCO","INICIO DA\nUTILIZAÇÃO"]
[null,null,null,null,{"$f":"Tabela1[[#This Row],[VALOR UN.\n (R$)]]*Tabela1[[#This Row],[QTD\n(POR U.A.)]]","v":0},{"$f":"Tabela1[[#This Row],[CUSTO POR U.A\n(R$)]]*ANIMAIS_CUSTEADOS","v":0}]
["Total",null,null,null,{"$f":"SUBTOTAL(109,Tabela1[CUSTO POR U.A\n(R$)])","v":0},{"$f":"SUBTOTAL(109,Tabela1[CUSTO TOTAL\n(R$)])","v":0},{"$f":"SUBTOTAL(109,Tabela1[FINANCIADO\n (R$)])","v":0},{"$f":"SUBTOTAL(109,Tabela1[EM BRANCO])","v":0}]
["   "]
["II - SANIDADE"]
[]
["ESPECIFICAÇÃO","UN","QTD\n(POR U.A.)","VALOR UN.\n (R$)","CUSTO POR U.A\n(R$)","CUSTO TOTAL\n(R$)","FINANCIADO\n (R$)","EM BRANCO","INICIO DA\nUTILIZAÇÃO"]
[null,null,null,null,{"$f":"Tabela123[[#This Row],[VALOR UN.\n (R$)]]*Tabela123[[#This Row],[QTD\n(POR U.A.)]]","v":0},{"$f":"Tabela123[[#This Row],[CUSTO POR U.A\n(R$)]]*ANIMAIS_CUSTEADOS","v":0}]
["Total",null,null,null,{"$f":"SUBTOTAL(109,Tabela123[CUSTO POR U.A\n(R$)])","v":0},{"$f":"SUBTOTAL(109,Tabela123[CUSTO TOTAL\n(R$)])","v":0},{"$f":"SUBTOTAL(109,Tabela123[FINANCIADO\n (R$)])","v":0},{"$f":"SUBTOTAL(109,Tabela123[EM BRANCO])","v":0}]
["   "]
["III - SERVIÇOS"]
[]
["ESPECIFICAÇÃO","UN","QTD\n(POR U.A.)","VALOR UN.\n (R$)","CUSTO POR U.A\n(R$)","CUSTO TOTAL\n(R$)","FINANCIADO\n (R$)","EM BRANCO","INICIO DA\nUTILIZAÇÃO"]
["TESTE",null,null,null,{"$f":"Tabela125[[#This Row],[QTD\n(POR U.A.)]]*Tabela125[[#This Row],[VALOR UN.\n (R$)]]","v":0},{"$f":"Tabela125[[#This Row],[CUSTO POR U.A\n(R$)]]*ANIMAIS_CUSTEADOS","v":0}]
["Total",null,null,null,{"$f":"SUBTOTAL(109,Tabela125[CUSTO POR U.A\n(R$)])","v":0},{"$f":"SUBTOTAL(109,Tabela125[CUSTO TOTAL\n(R$)])","v":0},{"$f":"SUBTOTAL(109,Tabela125[FINANCIADO\n (R$)])","v":0},{"$f":"SUBTOTAL(109,Tabela125[EM BRANCO])","v":0}]
["   "]
["IV - AQUISIÇÃO DE ANIMAIS"]
[]
["ESPECIFICAÇÃO","RAÇA","QTDE\n(CABEÇAS)","CUSTO UNIT.\n(R$)","CUSTO TOTAL \n(R$)","FINANCIADO\n (R$)"]
[null,null,null,null,{"$f":"Tabela1258[[#This Row],[CUSTO UNIT.\n(R$)]]*Tabela1258[[#This Row],[QTDE\n(CABEÇAS)]]","v":0}]
["Total",null,{"$f":"SUBTOTAL(109,Tabela1258[QTDE\n(CABEÇAS)])","v":0},null,{"$f":"SUBTOTAL(109,Tabela1258[CUSTO TOTAL \n(R$)])","v":0},{"$f":"SUBTOTAL(109,Tabela1258[FINANCIADO\n (R$)])","v":0}]
["   "]
["TOTAL"]
["ESPECIFICAÇÃO","ORÇAMENTO\n(POR U.A)","FINANCIAD.\n(POR U.A)","ORÇAMENTO\nTOTAL","FINANCIADO\nTOTAL","RECURSOS\nPRÓPRIOS"]
["I - ALIMENTAÇÃO",{"$f":"IFERROR(Tabela1[[#Totals],[CUSTO POR U.A\n(R$)]],0)","v":0},{"$f":"IFERROR(Tabela1[[#Totals],[FINANCIADO\n (R$)]]/ANIMAIS_CUSTEADOS,0)","v":0},{"$f":"B34*ANIMAIS_CUSTEADOS","v":0},0,{"$f":"D34-E34","v":0}]
["II - SANIDADE",{"$f":"IFERROR(Tabela123[[#Totals],[CUSTO POR U.A\n(R$)]],0)","v":0},{"$f":"IFERROR(Tabela123[[#Totals],[FINANCIADO\n (R$)]]/ANIMAIS_CUSTEADOS,0)","v":0},0,0,{"$f":"D35-E35","v":0}]
["III - SERVIÇOS",{"$f":"IFERROR(Tabela125[[#Totals],[CUSTO POR U.A\n(R$)]],0)","v":0},{"$f":"IFERROR(Tabela125[[#Totals],[FINANCIADO\n (R$)]]/ANIMAIS_CUSTEADOS,)","v":0},0,0,{"$f":"D36-E36","v":0}]
["IV - ANIMAIS",{"$f":"IFERROR(Tabela1258[[#Totals],[CUSTO TOTAL \n(R$)]]/Tabela1258[[#Totals],[QTDE\n(CABEÇAS)]],0)","v":0},{"$f":"IFERROR(Tabela1258[[#Totals],[FINANCIADO\n (R$)]]/Tabela1258[[#Totals],[QTDE\n(CABEÇAS)]],0)","v":0},{"$f":"Tabela1258[[#Totals],[CUSTO TOTAL \n(R$)]]","v":0},{"$f":"Tabela1258[[#Totals],[FINANCIADO\n (R$)]]","v":0},{"$f":"Tabela3[[#This Row],[ORÇAMENTO\nTOTAL]]-Tabela3[[#This Row],[FINANCIADO\nTOTAL]]","v":0}]
["Total",{"$f":"SUM(B34:B37)","v":0},{"$f":"C36+C35+C34+C37","v":0},{"$f":"D36+D35+D34+D37","v":0},{"$f":"SUM(E34:E37)","v":0},{"$f":"SUM(F34:F37)","v":0}]
[]
[]
[]
[]
["________________________________________",null,null,"________________________________________"]
[{"$f":"UPPER('INFORMAÇÕES GERAIS'!F19)","v":""},null,null,{"$f":"UPPER('INFORMAÇÕES GERAIS'!H15)","v":""}]
["Proponente",null,null,"Responsável Técnico"]

{"sheet":"DEMONSTRATIVO DE VIABILIDADE","index":8,"n_rows":25,"n_cols":6,"rows_kept":25,"cut":false,"hidden":true,"merged":[[23,0,23,1],[24,0,24,1],[22,4,22,5],[23,4,23,5],[24,4,24,5],[6,0,6,1],[6,4,6,5],[14,4,14,5],[0,0,0,5],[22,0,22,1]]}
[]
[]
[]
[]
[]
[]
["CUSTOS DE PRODUÇÃO",null,null,null,"RECEITA PREVISTA"]
["ESPECIFICAÇÃO","VALOR",null,null,"ESPECIFICAÇÃO","VALOR"]
["ESTE FINANCIAMENTO",{"$f":"VALOR_FINANCIADO","v":0},null,null,"PRODUÇÃO ESTIMADA (PRINCIPAL)",{"$f":"RECEITA_ESTIMADA","v":"-"}]
["RECURSOS PRÓPRIOS",{"$f":"VALOR_ORÇADO-VALOR_FINANCIADO","v":0},null,null,"PRODUTO SECUNDÁRIO:"]
["JUROS DESTE FINANCIAMENTO",{"$f":"IFERROR(((TAXA_JUROS)^1/12)*VLOOKUP(PRAZO,LISTAS!O1:P9999,2,0)*B9,0)","v":0}]
["ARRENDAMENTO",{"$f":"IFERROR(CUSTO_ARRENDAMENTO*AREA_ARRENDADA*VLOOKUP(PRAZO,LISTAS!O1:P9999,2,0),0)","v":0}]
["ASSISTÊNCIA TÉCNICA",0,null,null,"Total",{"$f":"SUBTOTAL(109,Tabela1319[VALOR])","v":0}]
["OUTRAS DESPESAS:",null,null,null," "]
[null,null,null,null,"RENTABILIDADE"]
[null,null,null,null,"ESPECIFICAÇÃO","VALOR"]
[null,null,null,null,"RECEITA - DESPESA",{"$f":"Tabela1319[[#Totals],[VALOR]]-Tabela13[[#Totals],[VALOR]]","v":0}]
["Total",{"$f":"SUBTOTAL(109,Tabela13[VALOR])","v":0},null,null,"RENTABILIDADE ",{"$f":"IFERROR(Tabela1319[[#Totals],[VALOR]]/Tabela13[[#Totals],[VALOR]],0)-1","v":-1}]
[]
[]
[]
[]
["________________________________________",null,null,null,"________________________________________"]
[{"$f":"UPPER('INFORMAÇÕES GERAIS'!F19)","v":""},null,null,null,{"$f":"UPPER('INFORMAÇÕES GERAIS'!H15)","v":""}]
["Proponente",null,null,null,"Responsável Técnico"]

{"sheet":"CAPACIDADE DE PAGAMENTO","index":9,"n_rows":120,"n_cols":15,"rows_kept":120,"cut":false,"hidden":true,"merged":[[6,1,6,8],[0,1,0,8],[106,1,106,4],[105,1,105,3],[29,1,29,8],[98,1,98,8],[99,5,99,8],[99,1,99,4],[102,5,102,7],[103,5,103,7],[52,1,52,8],[119,5,119,8],[118,1,118,4],[119,1,119,4],[100,5,100,7],[101,5,101,7],[105,5,105,7],[100,1,100,3],[101,1,101,3],[104,5,104,7],[104,1,104,3],[110,5,110,7],[110,1,110,3],[107,5,107,7],[117,5,117,8],[117,1,117,4],[112,1,112,3],[118,5,118,8],[112,5,112,7],[108,1,108,3],[109,1,109,3],[108,5,108,7],[109,5,109,7],[7,12,7,13],[107,1,107,3],[106,5,106,8],[53,1,53,8],[75,1,75,8],[7,1,7,8]]}
[]
[]
[]
[]
[]
[]
[null,"ATIVIDADE AGRÍCOLAS"]
[null,"RECEITAS PREVISTAS"]
[null,"CULTURA","EMPRESA / GRUPO","PARTICIPAÇÃO\n(%)","ÁREA\n(ha)","PRODUTIVIDADE (kg/ha)","RECEITA\n(R$/kg)","RECEITA TOTAL\n(R$)","RECEITA PART. \n(R$)",null,{"$f":"SUM(L10:L29)","v":1},null,{"$f":"SUM(N10:N29)","v":0},null,"Os que estão em amarelo, são contadores. O primeiro é um controle de quantas linhas estão inseridas. O segundo é um controle de quantas linhas estão completamente preenchidas. Se eles estiverem diferente, significa que existe linha sem todos os dados preenchidos."]
[null,null,null,null,null,null,null,{"$f":"IFERROR(IF(G10=\"\",\"\",G10*F10*E10),\"\")","v":""},{"$f":"IFERROR(IF(G10=\"\",\"\",D10*H10),\" \")","v":""},null,null,1,{"$f":"IF(AND(I10<>\"\",OR(H10<>\"\",G10<>\"\",F10<>\"\",E10<>\"\",D10<>\"\",C10<>\"\",B10<>\"\")),1,0)","v":0},{"$f":"M10*L10","v":0}]
[null,null,null,null,null,null,null,{"$f":"IFERROR(IF(G11=\"\",\"\",G11*F11*E11),\"\")","v":""},{"$f":"IFERROR(IF(G11=\"\",\"\",D11*H11),\"\")","v":""},null,null,null,0,{"$f":"M11*L11","v":0}]
[null,null,null,null,null,null,null,"","",null,null,null,0,0]
[null,null,null,null,null,null,null,{"$f":"IFERROR(IF(G13=\"\",\"\",G13*F13*E13),\"\")","v":""},"",null,null,null,0,0]
[null,null,null,null,null,null,null,"","",null,null,null,0,0]
[null,null,null,null,null,null,null,"","",null,null,null,0,0]
[null,null,null,null,null,null,null,"","",null,null,null,0,0]
[null,null,null,null,null,null,null,"","",null,null,null,0,0]
[null,null,null,null,null,null,null,"","",null,null,null,0,0]
[null,null,null,null,null,null,null,"","",null,null,null,0,0]
[null,null,null,null,null,null,null,"","",null,null,null,0,0]
[null,null,null,null,null,null,null,"","",null,null,null,0,0]
[null,null,null,null,null,null,null,"","",null,null,null,0,0]
[null,null,null,null,null,null,null,"","",null,null,null,0,0]
[null,null,null,null,null,null,null,"","",null,null,null,0,0]
[null,null,null,null,null,null,null,"","",null,null,null,0,0]
[null,null,null,null,null,null,null,"","",null,null,null,0,0]
[null,null,null,null,null,null,null,"","",null,null,null,0,0]
[null,null,null,null,null,null,null,"","",null,null,null,0,0]
[null,null,null,null,null,null,null,"","",null,null,null,0,0]
[null,"CUSTOS DE PRODUÇÃO"]
[null,"CULTURA","EMPRESA / GRUPO","PARTICIPAÇÃO\n(%)","ÁREA\n(ha)","PRODUTIVIDADE (kg/ha)","CUSTO\n(R$/kg)","CUSTO TOTAL\n (R$)","CUSTO PART.\n (R$)",null,{"$f":"SUM(L32:L51)","v":1},null,{"$f":"SUM(N32:N51)","v":0}]
[null,{"$f":"IF(B10=\"\",\"\",B10)","v":""},{"$f":"IF(C10=\"\",\"\",C10)","v":""},{"$f":"IF(D10=\"\",\"\",D10)","v":""},{"$f":"IF(E10=\"\",\"\",E10)","v":""},{"$f":"IF(F10=\"\",\"\",F10)","v":""},null,{"$f":"IFERROR(IF(G32=\"\",\"\",G32*F32*E32),\"\")","v":""},{"$f":"IFERROR(IF(G32=\"\",\"\",D32*H32),\"\")","v":""},null,null,1,{"$f":"IF(AND(I32<>\"\",OR(H32<>\"\",G32<>\"\",F32<>\"\",E32<>\"\",D32<>\"\",C32<>\"\",B32<>\"\")),1,0)","v":0},{"$f":"M32*L32","v":0}]
[null,{"$f":"IF(B11=\"\",\"\",B11)","v":""},{"$f":"IF(C11=\"\",\"\",C11)","v":""},"","","",null,{"$f":"IFERROR(IF(G33=\"\",\"\",G33*F33*E33),\"\")","v":""},{"$f":"IFERROR(IF(G33=\"\",\"\",D33*H33),\"\")","v":""},null,null,null,{"$f":"IF(AND(I33<>\"\",OR(H33<>\"\",G33<>\"\",F33<>\"\",E33<>\"\",D33<>\"\",C33<>\"\",B33<>\"\")),1,0)","v":0},{"$f":"M33*L33","v":0}]
[null,{"$f":"IF(B12=\"\",\"\",B12)","v":""},"","","","",null,"","",null,null,null,0,0]
[null,{"$f":"IF(B13=\"\",\"\",B13)","v":""},"","","","",null,"","",null,null,null,0,0]
[null,{"$f":"IF(B14=\"\",\"\",B14)","v":""},"","","","",null,"","",null,null,null,0,0]
[null,{"$f":"IF(B15=\"\",\"\",B15)","v":""},"","","","",null,"","",null,null,null,0,0]
[null,{"$f":"IF(B16=\"\",\"\",B16)","v":""},"","","","",null,"","",null,null,null,0,0]
[null,{"$f":"IF(B17=\"\",\"\",B17)","v":""},"","","","",null,"","",null,null,null,0,0]
[null,{"$f":"IF(B18=\"\",\"\",B18)","v":""},"","","","",null,"","",null,null,null,0,0]
[null,{"$f":"IF(B19=\"\",\"\",B19)","v":""},"","","","",null,"","",null,null,null,0,0]
[null,{"$f":"IF(B20=\"\",\"\",B20)","v":""},"","","","",null,"","",null,null,null,0,0]
[null,{"$f":"IF(B21=\"\",\"\",B21)","v":""},"","","","",null,"","",null,null,null,0,0]
[null,{"$f":"IF(B22=\"\",\"\",B22)","v":""},"","","","",null,"","",null,null,null,0,0]
[null,{"$f":"IF(B23=\"\",\"\",B23)","v":""},"","","","",null,"","",null,null,null,0,0]
[null,{"$f":"IF(B24=\"\",\"\",B24)","v":""},"","","","",null,"","",null,null,null,0,0]
[null,{"$f":"IF(B25=\"\",\"\",B25)","v":""},"","","","",null,"","",null,null,null,0,0]
[null,{"$f":"IF(B26=\"\",\"\",B26)","v":""},"","","","",null,"","",null,null,null,0,0]
[null,{"$f":"IF(B27=\"\",\"\",B27)","v":""},"","","","",null,"","",null,null,null,0,0]
[null,{"$f":"IF(B28=\"\",\"\",B28)","v":""},"","","","",null,"","",null,null,null,0,0]
[null,{"$f":"IF(B29=\"\",\"\",B29)","v":""},"","","","",null,{"$f":"IFERROR(IF(G51=\"\",\"\",G51*F51*E51),\"\")","v":""},{"$f":"IFERROR(IF(G51=\"\",\"\",D51*H51),\"\")","v":""},null,null,null,0,0]
[null," ",null,null," "]
[null,"ATIVIDADES PECUÁRIAS"]
[null,"RECEITAS PREVISTAS"]
[null,"ATIVIDADE","EMPRESA / GRUPO","PARTICIPAÇÃO\n(%)","UNIDADE DE PRODUÇÃO","PRODUTIVIDADE","RECEITA\n(R$/UN)","RECEITA TOTAL\n(R$)","RECEITA PART. \n(R$)",null,{"$f":"SUM(L56:L75)","v":1},null,{"$f":"SUM(N56:N75)","v":0}]
[null,null,null,null,{"$f":"IF(B56=\"LEITE\",\"LITROS\",IF(B56=\"\",\"\",\"CABEÇAS\"))","v":""},null,null,{"$f":"IF(G56=\"\",\"\",G56*F56)","v":""},{"$f":"IF(G56=\"\",\"\",H56*D56)","v":""},null,null,1,{"$f":"IF(AND(I56<>\"\",OR(H56<>\"\",G56<>\"\",F56<>\"\",E56<>\"\",D56<>\"\",C56<>\"\",B56<>\"\")),1,0)","v":0},{"$f":"M56*L56","v":0}]
[null,null,null,null,{"$f":"IF(B57=\"LEITE\",\"LITROS\",IF(B57=\"\",\"\",\"CABEÇAS\"))","v":""},null,null,{"$f":"IF(G57=\"\",\"\",G57*F57)","v":""},{"$f":"IF(G57=\"\",\"\",H57*D57)","v":""},null,null,null,{"$f":"IF(AND(I57<>\"\",OR(H57<>\"\",G57<>\"\",F57<>\"\",E57<>\"\",D57<>\"\",C57<>\"\",B57<>\"\")),1,0)","v":0},{"$f":"M57*L57","v":0}]
[null,null,null,null,"",null,null,{"$f":"IF(G58=\"\",\"\",G58*F58)","v":""},{"$f":"IF(G58=\"\",\"\",H58*D58)","v":""},null,null,null,0,0]
[null,null,null,null,{"$f":"IF(B59=\"LEITE\",\"LITROS\",IF(B59=\"\",\"\",\"CABEÇAS\"))","v":""},null,null,{"$f":"IF(G59=\"\",\"\",G59*F59)","v":""},{"$f":"IF(G59=\"\",\"\",H59*D59)","v":""},null,null,null,0,0]
[null,null,null,null,"",null,null,"","",null,null,null,0,0]
[null,null,null,null,"",null,null,"","",null,null,null,0,0]
[null,null,null,null,"",null,null,"","",null,null,null,0,0]
[null,null,null,null,"",null,null,"","",null,null,null,0,0]
[null,null,null,null,"",null,null,"","",null,null,null,0,0]
[null,null,null,null,"",null,null,"","",null,null,null,0,0]
[null,null,null,null,"",null,null,"","",null,null,null,0,0]
[null,null,null,null,"",null,null,"","",null,null,null,0,0]
[null,null,null,null,"",null,null,"","",null,null,null,0,0]
[null,null,null,null,"",null,null,"","",null,null,null,0,0]
[null,null,null,null,{"$f":"IF(B70=\"LEITE\",\"LITROS\",IF(B70=\"\",\"\",\"CABEÇAS\"))","v":""},null,null,{"$f":"IF(G70=\"\",\"\",G70*F70)","v":""},{"$f":"IF(G70=\"\",\"\",H70*D70)","v":""},null,null,null,0,0]
[null,null,null,null,"",null,null,"","",null,null,null,0,0]
[null,null,null,null,"",null,null,"","",null,null,null,0,0]
[null,null,null,null,"",null,null,"","",null,null,null,0,0]
[null,null,null,null,"",null,null,"","",null,null,null,0,0]
[null,null,null,null,"",null,null,"","",null,null,null,0,0]
[null,"CUSTOS DE PRODUÇÃO"]
[null,"ATIVIDADE","EMPRESA / GRUPO","PARTICIPAÇÃO\n(%)","UNIDADE DE PRODUÇÃO","PRODUTIVIDADE","CUSTO \n(R$/U.A)","CUSTO TOTAL\n (R$)","CUSTO PART.\n (R$)",null,{"$f":"SUM(L78:L97)","v":1},null,{"$f":"SUM(N78:N97)","v":0}]
[null,{"$f":"IF(B56=\"\",\"\",B56)","v":""},"","","","",null,{"$f":"IF(G78=\"\",\"\",G78*F78)","v":""},{"$f":"IF(G78=\"\",\"\",H78*D78)","v":""},null,null,1,{"$f":"IF(AND(I78<>\"\",OR(H78<>\"\",G78<>\"\",F78<>\"\",E78<>\"\",D78<>\"\",C78<>\"\",B78<>\"\")),1,0)","v":0},{"$f":"M78*L78","v":0}]
[null,"","","","","",null,{"$f":"IF(G79=\"\",\"\",G79*F79)","v":""},{"$f":"IF(G79=\"\",\"\",H79*D79)","v":""},null,null,null,{"$f":"IF(AND(I79<>\"\",OR(H79<>\"\",G79<>\"\",F79<>\"\",E79<>\"\",D79<>\"\",C79<>\"\",B79<>\"\")),1,0)","v":0},{"$f":"M79*L79","v":0}]
[null,"","","","","",null,{"$f":"IF(G80=\"\",\"\",G80*F80)","v":""},{"$f":"IF(G80=\"\",\"\",H80*D80)","v":""},null,null,null,0,0]
[null,{"$f":"IF(B59=\"\",\"\",B59)","v":""},"","","","",null,{"$f":"IF(G81=\"\",\"\",G81*F81)","v":""},{"$f":"IF(G81=\"\",\"\",H81*D81)","v":""},null,null,null,0,0]
[null,"","","","","",null,"","",null,null,null,0,0]
[null,"","","","","",null,"","",null,null,null,0,0]
[null,"","","","","",null,"","",null,null,null,0,0]
[null,"","","","","",null,"","",null,null,null,0,0]
[null,"","","","","",null,"","",null,null,null,0,0]
[null,"","","","","",null,"","",null,null,null,0,0]
[null,"","","","","",null,"","",null,null,null,0,0]
[null,"","","","","",null,"","",null,null,null,0,0]
[null,"","","","","",null,"","",null,null,null,0,0]
[null,"","","","","",null,"","",null,null,null,0,0]
[null,"","","","","",null,"","",null,null,null,0,0]
[null,"","","","","",null,"","",null,null,null,0,0]
[null,"","","","","",null,"","",null,null,null,0,0]
[null,"","","","","",null,"","",null,null,null,0,0]
[null,"","","","","",null,"","",null,null,null,0,0]
[null,"","","","","",null,"","",null,null,null,0,0]
[]
[null,"CAPACIDADE DE PAGAMENTO"]
[null,"RECEITAS",null,null,null,"DESPESAS"]
[null,"RECEITA PREVISTA ATIVIDADES AGRÍCOLAS",null,null,{"$f":"SUM(I10:I29)","v":0},"CUSTO PREVISTO ATIVIDADES AGRÍCOLAS",null,null,{"$f":"SUM(I32:I51)","v":0}]
[null,"RECEITA PREVISTA ATIVIDADES PECUÁRIAS",null,null,{"$f":"SUM(I56:I75)","v":0},"CUSTO PREVISTO ATIVIDADES PECUÁRIAS",null,null,{"$f":"SUM(I78:I97)","v":0}]
[null,null,null,null,null,"OUTROS ARRENDAMENTOS"]
[null,null,null,null,null,"JUROS DE OUTROS FINANCIAMENTOS"]
[null,null,null,null,null,"MANUTENÇÃO DE MAQUINÁRIO"]
[null,null,null,null,null,"MANUTENÇÃO FAMILIAR MENSAL"]
[null,"OUTRAS RECEITAS PREVISTAS:",null,null,null,"OUTRAS DESPESAS PREVISTAS:"]
[]
[]
[]
[null,"TOTAL RECEITAS:",null,null,{"$f":"IF(SUM(E101:E104,E108:E110)=0,\"-\",SUM(E101:E104,E108:E110))","v":"-"},"TOTAL DESPESAS:",null,null,{"$f":"IFERROR(IF(SUM(I101:I110)+(I106*(VLOOKUP(PRAZO,LISTAS!O1:P9999,2,0)-1))=0,\"-\",SUM(I101:I110)+I106*(VLOOKUP(PRAZO,LISTAS!O1:P9999,2,0)-1)),\"-\")","v":"-"}]
[]
[null,"RESULTADO (RECEITAS - DESPESAS): ",null,null,{"$f":"IFERROR(E111-I111,\"-\")","v":"-"},"RENTABILIDADE (RESULTADO/DESPESAS):",null,null,{"$f":"IFERROR(((E111-I111)/I111),\"-\")","v":"-"}]
[]
[]
[]
[]
[null,"________________________________________",null,null,null,"________________________________________"]
[null,{"$f":"UPPER('INFORMAÇÕES GERAIS'!F19)","v":""},null,null,null,{"$f":"UPPER('INFORMAÇÕES GERAIS'!H15)","v":""}]
[null,"Proponente",null,null,null,"Responsável Técnico"]

{"sheet":"PATRIMÔNIO","index":10,"n_rows":496,"n_cols":58,"rows_kept":496,"cut":false,"hidden":true,"merged":[[109,33,109,35],[162,0,162,28],[162,29,162,32],[367,0,367,29],[367,30,367,32],[422,0,422,25],[422,26,422,32],[475,0,475,29],[475,30,475,32],[475,33,475,38],[475,39,475,44],[423,0,423,44],[107,33,107,35],[107,36,107,39],[108,33,108,35],[108,36,108,39],[109,36,109,39],[109,40,109,44],[162,33,162,38],[162,39,162,44],[367,33,367,38],[367,39,367,44],[413,0,413,6],[413,7,413,12],[460,7,460,29],[460,30,460,32],[460,33,460,38],[460,39,460,44],[468,0,468,6],[468,7,468,29],[468,30,468,32],[468,33,468,38],[468,39,468,44],[469,0,469,6],[469,7,469,29],[469,33,469,38],[109,0,109,32],[67,33,67,35],[67,36,67,39],[0,46,0,47],[493,0,493,19],[493,25,493,44],[461,0,461,6],[461,7,461,29],[461,30,461,32],[461,33,461,38],[461,39,461,44],[462,0,462,6],[462,7,462,29],[462,30,462,32],[462,33,462,38],[462,39,462,44],[429,0,429,6],[429,7,429,29],[429,30,429,32],[429,33,429,38],[429,39,429,44],[460,0,460,6],[427,0,427,6],[427,7,427,29],[8,5,8,32],[9,5,9,32],[10,5,10,32],[428,39,428,44],[425,39,425,44],[424,39,424,44],[424,33,424,38],[418,33,418,38],[418,39,418,44],[467,33,467,38],[467,39,467,44],[463,0,463,6],[421,0,421,6],[421,7,421,12],[421,13,421,18],[421,19,421,25],[421,26,421,32],[421,33,421,38],[465,0,465,6],[465,7,465,29],[465,30,465,32],[464,0,464,6],[464,7,464,29],[464,30,464,32],[464,33,464,38],[428,30,428,32],[450,0,450,6],[450,7,450,29],[450,30,450,32],[450,33,450,38],[454,30,454,32],[454,33,454,38],[458,0,458,6],[458,7,458,29],[458,30,458,32],[458,33,458,38],[442,30,442,32],[442,33,442,38],[449,0,449,6],[449,7,449,29],[449,30,449,32],[427,39,427,44],[428,0,428,6],[428,7,428,29],[413,13,413,18],[419,0,419,6],[417,0,417,6],[419,39,419,44],[417,26,417,32],[417,33,417,38],[425,7,425,29],[424,0,424,6],[425,0,425,6],[426,0,426,6],[424,7,424,29],[426,30,426,32],[426,33,426,38],[425,33,425,38],[422,39,422,44],[414,33,414,38],[418,13,418,18],[418,19,418,25],[418,26,418,32],[416,7,416,12],[416,13,416,18],[416,19,416,25],[416,26,416,32],[416,33,416,38],[375,19,375,25],[375,26,375,32],[375,33,375,38],[375,39,375,44],[406,0,406,6],[406,7,406,12],[406,13,406,18],[406,19,406,25],[406,26,406,32],[406,33,406,38],[406,39,406,44],[171,33,171,38],[166,33,166,38],[170,33,170,38],[354,0,354,5],[167,33,167,38],[168,33,168,38],[166,0,166,5],[169,33,169,38],[167,0,167,5],[168,0,168,5],[169,0,169,5],[371,33,371,38],[365,0,365,5],[365,33,365,38],[371,39,371,44],[375,0,375,6],[305,0,305,5],[353,6,353,29],[353,30,353,32],[353,33,353,38],[353,39,353,44],[6,0,6,44],[494,0,494,19],[360,39,360,44],[359,39,359,44],[357,39,357,44],[358,39,358,44],[354,33,354,38],[358,33,358,38],[170,39,170,44],[107,40,107,44],[108,40,108,44],[107,0,107,1],[108,0,108,1],[107,2,107,4],[108,2,108,4],[151,0,151,4],[151,5,151,28],[151,29,151,32],[357,33,357,38],[356,0,356,5],[361,33,361,38],[155,33,155,38],[155,39,155,44],[156,0,156,4],[156,5,156,28],[156,29,156,32],[373,39,373,44],[156,33,156,38],[156,39,156,44],[364,39,364,44],[157,0,157,4],[157,5,157,28],[478,11,478,27],[409,0,409,6],[409,7,409,12],[409,13,409,18],[409,19,409,25],[409,26,409,32],[409,33,409,38],[409,39,409,44],[410,0,410,6],[465,33,465,38],[425,30,425,32],[428,33,428,38],[495,0,495,19],[424,30,424,32],[410,7,410,12],[410,13,410,18],[410,19,410,25],[410,26,410,32],[410,33,410,38],[410,39,410,44],[420,0,420,6],[420,7,420,12],[420,13,420,18],[420,19,420,25],[420,26,420,32],[420,33,420,38],[427,30,427,32],[412,7,412,12],[474,0,474,6],[466,0,466,6],[466,7,466,29],[466,30,466,32],[467,0,467,6],[473,0,473,6],[471,0,471,6],[471,7,471,29],[471,30,471,32],[471,33,471,38],[471,39,471,44],[472,0,472,6],[472,7,472,29],[470,0,470,6],[470,7,470,29],[470,30,470,32],[408,19,408,25],[408,26,408,32],[408,33,408,38],[408,39,408,44],[469,39,469,44],[473,39,473,44],[466,33,466,38],[430,33,430,38],[438,0,438,6],[438,7,438,29],[438,30,438,32],[438,33,438,38],[422,33,422,38],[415,13,415,18],[415,19,415,25],[415,26,415,32],[415,33,415,38],[427,33,427,38],[415,39,415,44],[416,0,416,6],[407,0,407,6],[426,39,426,44],[465,39,465,44],[420,39,420,44],[413,19,413,25],[413,26,413,32],[413,33,413,38],[413,39,413,44],[414,0,414,6],[486,11,486,27],[474,7,474,29],[474,30,474,32],[466,39,466,44],[489,28,489,33],[482,11,482,27],[478,28,478,33],[467,7,467,29],[467,30,467,32],[473,7,473,29],[473,30,473,32],[487,11,487,27],[487,28,487,33],[488,11,488,27],[488,28,488,33],[480,11,480,27],[480,28,480,33],[472,30,472,32],[472,33,472,38],[472,39,472,44],[469,30,469,32],[486,28,486,33],[473,33,473,38],[485,11,485,27],[485,28,485,33],[474,33,474,38],[474,39,474,44],[470,33,470,38],[470,39,470,44],[482,28,482,33],[170,30,170,32],[171,6,171,29],[171,30,171,32],[172,6,172,29],[172,30,172,32],[173,6,173,29],[173,30,173,32],[354,6,354,29],[354,30,354,32],[354,39,354,44],[304,33,304,38],[304,39,304,44],[305,6,305,29],[305,30,305,32],[305,33,305,38],[305,39,305,44],[418,0,418,6],[418,7,418,12],[452,0,452,6],[452,7,452,29],[452,30,452,32],[452,33,452,38],[430,0,430,6],[430,7,430,29],[430,30,430,32],[7,0,7,44],[110,0,110,44],[111,29,111,32],[111,33,111,38],[111,39,111,44],[105,40,105,44],[106,40,106,44],[370,0,370,44],[358,6,358,29],[358,30,358,32],[359,6,359,29],[359,30,359,32],[360,6,360,29],[360,30,360,32],[361,6,361,29],[361,30,361,32],[362,6,362,29],[166,39,166,44],[169,39,169,44],[173,0,173,5],[172,33,172,38],[173,33,173,38],[172,0,172,5],[355,0,355,5],[355,33,355,38],[167,30,167,32],[167,6,167,29],[168,6,168,29],[168,30,168,32],[169,6,169,29],[169,30,169,32],[170,6,170,29],[416,39,416,44],[417,7,417,12],[417,13,417,18],[417,19,417,25],[415,0,415,6],[415,7,415,12],[364,0,364,5],[365,39,365,44],[364,33,364,38],[371,0,371,6],[371,7,371,12],[371,13,371,18],[371,19,371,25],[371,26,371,32],[366,39,366,44],[369,0,369,44],[366,33,366,38],[414,7,414,12],[414,13,414,18],[414,19,414,25],[414,26,414,32],[374,39,374,44],[366,0,366,5],[373,0,373,6],[373,7,373,12],[412,0,412,6],[417,39,417,44],[412,13,412,18],[412,19,412,25],[412,26,412,32],[412,33,412,38],[374,0,374,6],[150,0,150,4],[112,5,112,28],[149,0,149,4],[149,5,149,28],[362,30,362,32],[363,6,363,29],[363,30,363,32],[364,6,364,29],[364,30,364,32],[365,6,365,29],[160,33,160,38],[164,0,164,44],[173,39,173,44],[355,39,355,44],[171,0,171,5],[167,39,167,44],[168,39,168,44],[155,29,155,32],[158,0,158,4],[158,5,158,28],[158,29,158,32],[361,39,361,44],[362,39,362,44],[362,0,362,5],[362,33,362,38],[357,0,357,5],[171,39,171,44],[352,6,352,29],[352,30,352,32],[352,33,352,38],[352,39,352,44],[353,0,353,5],[160,39,160,44],[159,33,159,38],[159,39,159,44],[112,33,112,38],[112,39,112,44],[150,29,150,32],[151,33,151,38],[151,39,151,44],[152,29,152,32],[152,33,152,38],[152,39,152,44],[153,29,153,32],[153,33,153,38],[153,39,153,44],[154,29,154,32],[154,33,154,38],[154,39,154,44],[113,33,113,38],[113,39,113,44],[150,33,150,38],[150,39,150,44],[114,33,114,38],[114,39,114,44],[117,29,117,32],[157,29,157,32],[157,33,157,38],[157,39,157,44],[158,33,158,38],[158,39,158,44],[118,33,118,38],[118,39,118,44],[149,33,149,38],[19,33,19,35],[19,36,19,39],[100,33,100,35],[100,36,100,39],[101,36,101,39],[102,33,102,35],[102,36,102,39],[103,33,103,35],[103,36,103,39],[101,33,101,35],[90,33,90,35],[90,36,90,39],[90,40,90,44],[91,33,91,35],[91,36,91,39],[91,40,91,44],[92,33,92,35],[92,36,92,39],[92,40,92,44],[98,33,98,35],[98,36,98,39],[98,40,98,44],[99,33,99,35],[99,36,99,39],[99,40,99,44],[26,40,26,44],[34,36,34,39],[34,40,34,44],[74,40,74,44],[67,40,67,44],[25,40,25,44],[30,40,30,44],[8,40,8,44],[9,40,9,44],[10,40,10,44],[11,40,11,44],[12,40,12,44],[13,40,13,44],[15,40,15,44],[16,40,16,44],[17,40,17,44],[8,36,8,39],[9,36,9,39],[9,33,9,35],[8,33,8,35],[10,33,10,35],[10,36,10,39],[11,36,11,39],[12,33,12,35],[12,36,12,39],[13,36,13,39],[11,33,11,35],[15,36,15,39],[16,33,16,35],[16,36,16,39],[17,33,17,35],[17,36,17,39],[15,33,15,35],[14,33,14,35],[14,36,14,39],[14,40,14,44],[19,5,19,32],[366,30,366,32],[359,0,359,5],[359,33,359,38],[360,0,360,5],[360,33,360,38],[170,0,170,5],[356,39,356,44],[356,33,356,38],[358,0,358,5],[363,39,363,44],[363,33,363,38],[363,0,363,5],[365,30,365,32],[366,6,366,29],[16,0,16,1],[16,2,16,4],[100,5,100,32],[101,5,101,32],[102,5,102,32],[112,29,112,32],[90,0,90,1],[90,2,90,4],[90,5,90,32],[18,40,18,44],[19,40,19,44],[100,40,100,44],[101,40,101,44],[102,40,102,44],[103,40,103,44],[104,40,104,44],[104,33,104,35],[374,7,374,12],[374,13,374,18],[374,19,374,25],[374,26,374,32],[374,33,374,38],[375,7,375,12],[375,13,375,18],[411,0,411,6],[373,13,373,18],[373,19,373,25],[373,26,373,32],[373,33,373,38],[407,7,407,12],[407,13,407,18],[407,19,407,25],[407,26,407,32],[407,33,407,38],[396,0,396,6],[396,7,396,12],[396,13,396,18],[396,19,396,25],[396,26,396,32],[396,33,396,38],[386,0,386,6],[386,7,386,12],[386,13,386,18],[386,19,386,25],[386,26,386,32],[386,33,386,38],[405,0,405,6],[405,7,405,12],[405,13,405,18],[407,39,407,44],[408,0,408,6],[408,7,408,12],[408,13,408,18],[172,39,172,44],[361,0,361,5],[372,0,372,6],[372,7,372,12],[372,13,372,18],[372,19,372,25],[372,26,372,32],[372,33,372,38],[372,39,372,44],[357,6,357,29],[357,30,357,32],[347,0,347,5],[347,6,347,29],[347,30,347,32],[347,33,347,38],[347,39,347,44],[304,6,304,29],[304,30,304,32],[355,6,355,29],[355,30,355,32],[356,6,356,29],[356,30,356,32],[352,0,352,5],[350,0,350,5],[350,6,350,29],[350,30,350,32],[350,33,350,38],[350,39,350,44],[495,25,495,44],[494,25,494,44],[411,39,411,44],[411,33,411,38],[411,26,411,32],[411,19,411,25],[411,13,411,18],[411,7,411,12],[412,39,412,44],[479,11,479,27],[481,11,481,27],[479,28,479,33],[481,28,481,33],[483,11,483,27],[483,28,483,33],[484,11,484,27],[484,28,484,33],[419,7,419,12],[419,13,419,18],[419,19,419,25],[419,26,419,32],[463,39,463,44],[419,33,419,38],[414,39,414,44],[421,39,421,44],[464,39,464,44],[426,7,426,29],[463,33,463,38],[463,30,463,32],[463,7,463,29],[489,11,489,27],[477,11,477,33],[91,0,91,1],[91,2,91,4],[91,5,91,32],[93,0,93,1],[93,2,93,4],[93,5,93,32],[95,0,95,1],[95,2,95,4],[18,0,18,1],[18,2,18,4],[100,0,100,1],[100,2,100,4],[102,0,102,1],[102,2,102,4],[104,0,104,1],[68,2,68,4],[68,5,68,32],[39,0,39,1],[39,5,39,32],[43,0,43,1],[43,2,43,4],[43,5,43,32],[47,0,47,1],[47,2,47,4],[47,5,47,32],[51,0,51,1],[51,2,51,4],[51,5,51,32],[55,0,55,1],[55,2,55,4],[55,5,55,32],[59,0,59,1],[114,0,114,4],[11,0,11,1],[111,0,111,4],[103,5,103,32],[104,5,104,32],[105,5,105,32],[101,2,101,4],[19,0,19,1],[19,2,19,4],[105,0,105,1],[105,2,105,4],[103,0,103,1],[103,2,103,4],[117,5,117,28],[106,5,106,32],[107,5,107,32],[108,5,108,32],[112,0,112,4],[104,2,104,4],[116,29,116,32],[92,0,92,1],[92,2,92,4],[92,5,92,32],[116,0,116,4],[115,5,115,28],[115,29,115,32],[74,2,74,4],[74,5,74,32],[26,0,26,1],[74,0,74,1],[68,0,68,1],[39,2,39,4],[18,36,18,39],[18,33,18,35],[13,33,13,35],[8,0,8,1],[9,0,9,1],[10,0,10,1],[12,0,12,1],[13,0,13,1],[8,2,8,4],[9,2,9,4],[10,2,10,4],[11,2,11,4],[12,2,12,4],[13,2,13,4],[14,0,14,1],[14,2,14,4],[26,2,26,4],[26,5,26,32],[17,0,17,1],[17,2,17,4],[15,0,15,1],[15,2,15,4],[26,33,26,35],[26,36,26,39],[11,5,11,32],[12,5,12,32],[13,5,13,32],[14,5,14,32],[15,5,15,32],[16,5,16,32],[17,5,17,32],[18,5,18,32],[149,39,149,44],[104,36,104,39],[105,33,105,35],[105,36,105,39],[106,33,106,35],[106,36,106,39],[114,5,114,28],[115,33,115,38],[115,39,115,44],[116,5,116,28],[116,33,116,38],[116,39,116,44],[117,33,117,38],[117,39,117,44],[161,33,161,38],[161,39,161,44],[166,30,166,32],[165,0,165,44],[159,0,159,4],[160,0,160,4],[161,0,161,4],[166,6,166,29],[155,5,155,28],[115,0,115,4],[161,5,161,28],[161,29,161,32],[160,29,160,32],[152,0,152,4],[152,5,152,28],[153,0,153,4],[153,5,153,28],[154,0,154,4],[154,5,154,28],[155,0,155,4],[159,5,159,28],[159,29,159,32],[160,5,160,28],[118,0,118,4],[118,5,118,28],[118,29,118,32],[98,5,98,32],[99,0,99,1],[99,2,99,4],[99,5,99,32],[143,5,143,28],[143,29,143,32],[132,0,132,4],[132,5,132,28],[132,29,132,32],[122,5,122,28],[122,29,122,32],[123,5,123,28],[123,29,123,32],[101,0,101,1],[106,0,106,1],[106,2,106,4],[149,29,149,32],[111,5,111,28],[113,0,113,4],[113,5,113,28],[113,29,113,32],[150,5,150,28],[114,29,114,32],[117,0,117,4],[95,5,95,32],[95,33,95,35],[95,36,95,39],[95,40,95,44],[96,0,96,1],[96,2,96,4],[96,5,96,32],[96,33,96,35],[96,36,96,39],[96,40,96,44],[93,33,93,35],[93,36,93,39],[93,40,93,44],[94,0,94,1],[94,2,94,4],[94,5,94,32],[94,33,94,35],[94,36,94,39],[94,40,94,44],[84,36,84,39],[84,40,84,44],[85,0,85,1],[80,0,80,1],[80,2,80,4],[80,5,80,32],[80,33,80,35],[80,36,80,39],[80,40,80,44],[81,0,81,1],[81,2,81,4],[81,5,81,32],[81,33,81,35],[81,36,81,39],[81,40,81,44],[82,0,82,1],[82,2,82,4],[82,5,82,32],[82,33,82,35],[82,36,82,39],[82,40,82,44],[73,36,73,39],[73,40,73,44],[77,0,77,1],[97,0,97,1],[97,2,97,4],[97,5,97,32],[97,33,97,35],[97,36,97,39],[97,40,97,44],[98,0,98,1],[98,2,98,4],[85,5,85,32],[85,33,85,35],[85,36,85,39],[70,5,70,32],[85,40,85,44],[86,0,86,1],[86,2,86,4],[86,5,86,32],[86,33,86,35],[86,36,86,39],[86,40,86,44],[83,0,83,1],[83,2,83,4],[83,5,83,32],[83,33,83,35],[83,36,83,39],[83,40,83,44],[84,0,84,1],[84,2,84,4],[84,5,84,32],[84,33,84,35],[88,33,88,35],[88,36,88,39],[88,40,88,44],[85,2,85,4],[78,2,78,4],[78,5,78,32],[78,33,78,35],[78,36,78,39],[78,40,78,44],[75,0,75,1],[75,2,75,4],[75,5,75,32],[75,33,75,35],[70,33,70,35],[70,36,70,39],[70,40,70,44],[71,0,71,1],[71,2,71,4],[71,5,71,32],[71,33,71,35],[71,36,71,39],[71,40,71,44],[72,0,72,1],[72,2,72,4],[72,5,72,32],[72,33,72,35],[72,36,72,39],[72,40,72,44],[73,0,73,1],[73,2,73,4],[73,5,73,32],[73,33,73,35],[20,0,20,1],[20,2,20,4],[20,5,20,32],[20,33,20,35],[20,36,20,39],[20,40,20,44],[21,0,21,1],[21,2,21,4],[21,5,21,32],[21,33,21,35],[21,36,21,39],[21,40,21,44],[22,0,22,1],[22,2,22,4],[22,5,22,32],[22,33,22,35],[22,36,22,39],[22,40,22,44],[31,2,31,4],[31,5,31,32],[31,33,31,35],[31,36,31,39],[31,40,31,44],[32,0,32,1],[32,2,32,4],[32,5,32,32],[23,0,23,1],[23,2,23,4],[23,5,23,32],[23,33,23,35],[23,36,23,39],[23,40,23,44],[24,0,24,1],[24,2,24,4],[24,5,24,32],[24,33,24,35],[24,36,24,39],[24,40,24,44],[27,0,27,1],[27,2,27,4],[27,5,27,32],[27,33,27,35],[27,36,27,39],[27,40,27,44],[25,0,25,1],[25,2,25,4],[25,5,25,32],[25,33,25,35],[25,36,25,39],[33,5,33,32],[33,33,33,35],[33,36,33,39],[33,40,33,44],[34,0,34,1],[34,2,34,4],[34,5,34,32],[34,33,34,35],[38,0,38,1],[38,2,38,4],[38,5,38,32],[38,33,38,35],[38,36,38,39],[38,40,38,44],[28,0,28,1],[28,2,28,4],[28,5,28,32],[28,33,28,35],[28,36,28,39],[28,40,28,44],[29,0,29,1],[29,2,29,4],[29,5,29,32],[29,33,29,35],[29,36,29,39],[29,40,29,44],[30,0,30,1],[30,2,30,4],[30,5,30,32],[30,33,30,35],[30,36,30,39],[31,0,31,1],[39,33,39,35],[39,36,39,39],[39,40,39,44],[40,0,40,1],[40,2,40,4],[40,5,40,32],[40,33,40,35],[40,36,40,39],[40,40,40,44],[32,33,32,35],[32,36,32,39],[32,40,32,44],[37,0,37,1],[37,2,37,4],[37,5,37,32],[37,33,37,35],[37,36,37,39],[37,40,37,44]],"merged_total":2538,"flags":["merged_cut"]}
[null,null,null,null,null,null,null,null,null,null,null,null,null,null,null,null,null,null,null,null,null,null,null,null,null,null,null,null,null,null,null,null,null,null,null,null,null,null,null,null,null,null,null,null,null,null,"SINALIZADORES DE INCLUSÃO E EXCLUSÃO (IMPORTANTES)!!!!"]
[]
[]
[]
[]
[]
["I - BENS IMÓVEIS"]
["IMÓVEIS RURAIS E URBANOS"]
["REF",null,"TIPO",null,null,"DESCRIÇÃO",null,null,null,null,null,null,null,null,null,null,null,null,null,null,null,null,null,null,null,null,null,null,null,null,null,null,null,"PART.\n%",null,null,"VALOR BEM\n (R$)",null,null,null,"VALOR %\n(R$)"]
[{"$f":"IF(C10<>\"\",1,\"\")","v":""},null,null,null,null,null,null,null,null,null,null,null,null,null,null,null,null,null,null,null,null,null,null,null,null,null,null,null,null,null,null,null,null,null,null,null,null,null,null,null,{"$f":"IF(OR(AH10=\"\",AK10=\"\"),\"\",AK10*AH10)","v":""},null,null,null,null,null,{"$f":"SUM(AV10:AV109)","v":1},1,null,null,null,null,null,null,null,null,{"$f":"_xlfn.CONCAT(\"IMÓVEL \",A10)","v":"IMÓVEL "},{"$f":"_xlfn.CONCAT(\"Be10:Be\"&(9+LARGE(A10:C109,1)))","v":{"$error":"#NUM!"}}]
[{"$f":"IF(C11<>\"\",1+A10,\"\")","v":""},null,null,null,null,null,null,null,null,null,null,null,null,null,null,null,null,null,null,null,null,null,null,null,null,null,null,null,null,null,null,null,null,null,null,null,null,null,null,null,{"$f":"IF(OR(AH11=\"\",AK11=\"\"),\"\",AK11*AH11)","v":""},null,null,null,null,null,null,null,null,null,null,null,null,null,null,null,"IMÓVEL "]
[{"$f":"IF(C12<>\"\",1+A11,\"\")","v":""},null,null,null,null,null,null,null,null,null,null,null,null,null,null,null,null,null,null,null,null,null,null,null,null,null,null,null,null,null,null,null,null,null,null,null,null,null,null,null,"",null,null,null,null,null,null,null,null,null,null,null,null,null,null,null,"IMÓVEL "]
["",null,null,null,null,null,null,null,null,null,null,null,null,null,null,null,null,null,null,null,null,null,null,null,null,null,null,null,null,null,null,null,null,null,null,null,null,null,null,null,"",null,null,null,null,null,null,null,null,null,null,null,null,null,null,null,"IMÓVEL "]
["",null,null,null,null,null,null,null,null,null,null,null,null,null,null,null,null,null,null,null,null,null,null,null,null,null,null,null,null,null,null,null,null,null,null,null,null,null,null,null,"",null,null,null,null,null,null,null,null,null,null,null,null,null,null,null,"IMÓVEL "]
["",null,null,null,null,null,null,null,null,null,null,null,null,null,null,null,null,null,null,null,null,null,null,null,null,null,null,null,null,null,null,null,null,null,null,null,null,null,null,null,"",null,null,null,null,null,null,null,null,null,null,null,null,null,null,null,{"$f":"_xlfn.CONCAT(\"IMÓVEL \",A15)","v":"IMÓVEL "}]
["",null,null,null,null,null,null,null,null,null,null,null,null,null,null,null,null,null,null,null,null,null,null,null,null,null,null,null,null,null,null,null,null,null,null,null,null,null,null,null,"",null,null,null,null,null,null,null,null,null,null,null,null,null,null,null,"IMÓVEL "]
["",null,null,null,null,null,null,null,null,null,null,null,null,null,null,null,null,null,null,null,null,null,null,null,null,null,null,null,null,null,null,null,null,null,null,null,null,null,null,null,"",null,null,null,null,null,null,null,null,null,null,null,null,null,null,null,"IMÓVEL "]
["",null,null,null,null,null,null,null,null,null,null,null,null,null,null,null,null,null,null,null,null,null,null,null,null,null,null,null,null,null,null,null,null,null,null,null,null,null,null,null,"",null,null,null,null,null,null,null,null,null,null,null,null,null,null,null,"IMÓVEL "]
["",null,null,null,null,null,null,null,null,null,null,null,null,null,null,null,null,null,null,null,null,null,null,null,null,null,null,null,null,null,null,null,null,null,null,null,null,null,null,null,"",null,null,null,null,null,null,null,null,null,null,null,null,null,null,null,"IMÓVEL "]
["",null,null,null,null,null,null,null,null,null,null,null,null,null,null,null,null,null,null,null,null,null,null,null,null,null,null,null,null,null,null,null,null,null,null,null,null,null,null,null,"",null,null,null,null,null,null,null,null,null,null,null,null,null,null,null,"IMÓVEL "]
["",null,null,null,null,null,null,null,null,null,null,null,null,null,null,null,null,null,null,null,null,null,null,null,null,null,null,null,null,null,null,null,null,null,null,null,null,null,null,null,"",null,null,null,null,null,null,null,null,null,null,null,null,null,null,null,"IMÓVEL "]
["",null,null,null,null,null,null,null,null,null,null,null,null,null,null,null,null,null,null,null,null,null,null,null,null,null,null,null,null,null,null,null,null,null,null,null,null,null,null,null,"",null,null,null,null,null,null,null,null,null,null,null,null,null,null,null,"IMÓVEL "]
["",null,null,null,null,null,null,null,null,null,null,null,null,null,null,null,null,null,null,null,null,null,null,null,null,null,null,null,null,null,null,null,null,null,null,null,null,null,null,null,"",null,null,null,null,null,null,null,null,null,null,null,null,null,null,null,"IMÓVEL "]
["",null,null,null,null,null,null,null,null,null,null,null,null,null,null,null,null,null,null,null,null,null,null,null,null,null,null,null,null,null,null,null,null,null,null,null,null,null,null,null,"",null,null,null,null,null,null,null,null,null,null,null,null,null,null,null,"IMÓVEL "]
["",null,null,null,null,null,null,null,null,null,null,null,null,null,null,null,null,null,null,null,null,null,null,null,null,null,null,null,null,null,null,null,null,null,null,null,null,null,null,null,"",null,null,null,null,null,null,null,null,null,null,null,null,null,null,null,"IMÓVEL "]
["",null,null,null,null,null,null,null,null,null,null,null,null,null,null,null,null,null,null,null,null,null,null,null,null,null,null,null,null,null,null,null,null,null,null,null,null,null,null,null,"",null,null,null,null,null,null,null,null,null,null,null,null,null,null,null,"IMÓVEL "]
["",null,null,null,null,null,null,null,null,null,null,null,null,null,null,null,null,null,null,null,null,null,null,null,null,null,null,null,null,null,null,null,null,null,null,null,null,null,null,null,"",null,null,null,null,null,null,null,null,null,null,null,null,null,null,null,"IMÓVEL "]
["",null,null,null,null,null,null,null,null,null,null,null,null,null,null,null,null,null,null,null,null,null,null,null,null,null,null,null,null,null,null,null,null,null,null,null,null,null,null,null,"",null,null,null,null,null,null,null,null,null,null,null,null,null,null,null,"IMÓVEL "]
["",null,null,null,null,null,null,null,null,null,null,null,null,null,null,null,null,null,null,null,null,null,null,null,null,null,null,null,null,null,null,null,null,null,null,null,null,null,null,null,"",null,null,null,null,null,null,null,null,null,null,null,null,null,null,null,{"$f":"_xlfn.CONCAT(\"IMÓVEL \",A29)","v":"IMÓVEL "}]
["",null,null,null,null,null,null,null,null,null,null,null,null,null,null,null,null,null,null,null,null,null,null,null,null,null,null,null,null,null,null,null,null,null,null,null,null,null,null,null,"",null,null,null,null,null,null,null,null,null,null,null,null,null,null,null,"IMÓVEL "]
["",null,null,null,null,null,null,null,null,null,null,null,null,null,null,null,null,null,null,null,null,null,null,null,null,null,null,null,null,null,null,null,null,null,null,null,null,null,null,null,"",null,null,null,null,null,null,null,null,null,null,null,null,null,null,null,"IMÓVEL "]
["",null,null,null,null,null,null,null,null,null,null,null,null,null,null,null,null,null,null,null,null,null,null,null,null,null,null,null,null,null,null,null,null,null,null,null,null,null,null,null,"",null,null,null,null,null,null,null,null,null,null,null,null,null,null,null,"IMÓVEL "]
["",null,null,null,null,null,null,null,null,null,null,null,null,null,null,null,null,null,null,null,null,null,null,null,null,null,null,null,null,null,null,null,null,null,null,null,null,null,null,null,"",null,null,null,null,null,null,null,null,null,null,null,null,null,null,null,"IMÓVEL "]
["",null,null,null,null,null,null,null,null,null,null,null,null,null,null,null,null,null,null,null,null,null,null,null,null,null,null,null,null,null,null,null,null,null,null,null,null,null,null,null,"",null,null,null,null,null,null,null,null,null,null,null,null,null,null,null,"IMÓVEL "]
["",null,null,null,null,null,null,null,null,null,null,null,null,null,null,null,null,null,null,null,null,null,null,null,null,null,null,null,null,null,null,null,null,null,null,null,null,null,null,null,"",null,null,null,null,null,null,null,null,null,null,null,null,null,null,null,"IMÓVEL "]
["",null,null,null,null,null,null,null,null,null,null,null,null,null,null,null,null,null,null,null,null,null,null,null,null,null,null,null,null,null,null,null,null,null,null,null,null,null,null,null,"",null,null,null,null,null,null,null,null,null,null,null,null,null,null,null,"IMÓVEL "]
["",null,null,null,null,null,null,null,null,null,null,null,null,null,null,null,null,null,null,null,null,null,null,null,null,null,null,null,null,null,null,null,null,null,null,null,null,null,null,null,"",null,null,null,null,null,null,null,null,null,null,null,null,null,null,null,"IMÓVEL "]
["",null,null,null,null,null,null,null,null,null,null,null,null,null,null,null,null,null,null,null,null,null,null,null,null,null,null,null,null,null,null,null,null,null,null,null,null,null,null,null,"",null,null,null,null,null,null,null,null,null,null,null,null,null,null,null,"IMÓVEL "]
["",null,null,null,null,null,null,null,null,null,null,null,null,null,null,null,null,null,null,null,null,null,null,null,null,null,null,null,null,null,null,null,null,null,null,null,null,null,null,null,"",null,null,null,null,null,null,null,null,null,null,null,null,null,null,null,"IMÓVEL "]
["",null,null,null,null,null,null,null,null,null,null,null,null,null,null,null,null,null,null,null,null,null,null,null,null,null,null,null,null,null,null,null,null,null,null,null,null,null,null,null,"",null,null,null,null,null,null,null,null,null,null,null,null,null,null,null,"IMÓVEL "]
["",null,null,null,null,null,null,null,null,null,null,null,null,null,null,null,null,null,null,null,null,null,null,null,null,null,null,null,null,null,null,null,null,null,null,null,null,null,null,null,"",null,null,null,null,null,null,null,null,null,null,null,null,null,null,null,"IMÓVEL "]
["",null,null,null,null,null,null,null,null,null,null,null,null,null,null,null,null,null,null,null,null,null,null,null,null,null,null,null,null,null,null,null,null,null,null,null,null,null,null,null,"",null,null,null,null,null,null,null,null,null,null,null,null,null,null,null,"IMÓVEL "]
["",null,null,null,null,null,null,null,null,null,null,null,null,null,null,null,null,null,null,null,null,null,null,null,null,null,null,null,null,null,null,null,null,null,null,null,null,null,null,null,"",null,null,null,null,null,null,null,null,null,null,null,null,null,null,null,"IMÓVEL "]
["",null,null,null,null,null,null,null,null,null,null,null,null,null,null,null,null,null,null,null,null,null,null,null,null,null,null,null,null,null,null,null,null,null,null,null,null,null,null,null,"",null,null,null,null,null,null,null,null,null,null,null,null,null,null,null,"IMÓVEL "]
["",null,null,null,null,null,null,null,null,null,null,null,null,null,null,null,null,null,null,null,null,null,null,null,null,null,null,null,null,null,null,null,null,null,null,null,null,null,null,null,"",null,null,null,null,null,null,null,null,null,null,null,null,null,null,null,"IMÓVEL "]
["",null,null,null,null,null,null,null,null,null,null,null,null,null,null,null,null,null,null,null,null,null,null,null,null,null,null,null,null,null,null,null,null,null,null,null,null,null,null,null,"",null,null,null,null,null,null,null,null,null,null,null,null,null,null,null,"IMÓVEL "]
["",null,null,null,null,null,null,null,null,null,null,null,null,null,null,null,null,null,null,null,null,null,null,null,null,null,null,null,null,null,null,null,null,null,null,null,null,null,null,null,"",null,null,null,null,null,null,null,null,null,null,null,null,null,null,null,"IMÓVEL "]
["",null,null,null,null,null,null,null,null,null,null,null,null,null,null,null,null,null,null,null,null,null,null,null,null,null,null,null,null,null,null,null,null,null,null,null,null,null,null,null,"",null,null,null,null,null,null,null,null,null,null,null,null,null,null,null,"IMÓVEL "]
["",null,null,null,null,null,null,null,null,null,null,null,null,null,null,null,null,null,null,null,null,null,null,null,null,null,null,null,null,null,null,null,null,null,null,null,null,null,null,null,"",null,null,null,null,null,null,null,null,null,null,null,null,null,null,null,"IMÓVEL "]
["",null,null,null,null,null,null,null,null,null,null,null,null,null,null,null,null,null,null,null,null,null,null,null,null,null,null,null,null,null,null,null,null,null,null,null,null,null,null,null,"",null,null,null,null,null,null,null,null,null,null,null,null,null,null,null,"IMÓVEL "]
["",null,null,null,null,null,null,null,null,null,null,null,null,null,null,null,null,null,null,null,null,null,null,null,null,null,null,null,null,null,null,null,null,null,null,null,null,null,null,null,"",null,null,null,null,null,null,null,null,null,null,null,null,null,null,null,"IMÓVEL "]
["",null,null,null,null,null,null,null,null,null,null,null,null,null,null,null,null,null,null,null,null,null,null,null,null,null,null,null,null,null,null,null,null,null,null,null,null,null,null,null,"",null,null,null,null,null,null,null,null,null,null,null,null,null,null,null,"IMÓVEL "]
["",null,null,null,null,null,null,null,null,null,null,null,null,null,null,null,null,null,null,null,null,null,null,null,null,null,null,null,null,null,null,null,null,null,null,null,null,null,null,null,"",null,null,null,null,null,null,null,null,null,null,null,null,null,null,null,"IMÓVEL "]
["",null,null,null,null,null,null,null,null,null,null,null,null,null,null,null,null,null,null,null,null,null,null,null,null,null,null,null,null,null,null,null,null,null,null,null,null,null,null,null,"",null,null,null,null,null,null,null,null,null,null,null,null,null,null,null,"IMÓVEL "]
["",null,null,null,null,null,null,null,null,null,null,null,null,null,null,null,null,null,null,null,null,null,null,null,null,null,null,null,null,null,null,null,null,null,null,null,null,null,null,null,"",null,null,null,null,null,null,null,null,null,null,null,null,null,null,null,"IMÓVEL "]
["",null,null,null,null,null,null,null,null,null,null,null,null,null,null,null,null,null,null,null,null,null,null,null,null,null,null,null,null,null,null,null,null,null,null,null,null,null,null,null,"",null,null,null,null,null,null,null,null,null,null,null,null,null,null,null,"IMÓVEL "]
["",null,null,null,null,null,null,null,null,null,null,null,null,null,null,null,null,null,null,null,null,null,null,null,null,null,null,null,null,null,null,null,null,null,null,null,null,null,null,null,"",null,null,null,null,null,null,null,null,null,null,null,null,null,null,null,"IMÓVEL "]
["",null,null,null,null,null,null,null,null,null,null,null,null,null,null,null,null,null,null,null,null,null,null,null,null,null,null,null,null,null,null,null,null,null,null,null,null,null,null,null,"",null,null,null,null,null,null,null,null,null,null,null,null,null,null,null,"IMÓVEL "]
["",null,null,null,null,null,null,null,null,null,null,null,null,null,null,null,null,null,null,null,null,null,null,null,null,null,null,null,null,null,null,null,null,null,null,null,null,null,null,null,"",null,null,null,null,null,null,null,null,null,null,null,null,null,null,null,"IMÓVEL "]
["",null,null,null,null,null,null,null,null,null,null,null,null,null,null,null,null,null,null,null,null,null,null,null,null,null,null,null,null,null,null,null,null,null,null,null,null,null,null,null,"",null,null,null,null,null,null,null,null,null,null,null,null,null,null,null,"IMÓVEL "]
["",null,null,null,null,null,null,null,null,null,null,null,null,null,null,null,null,null,null,null,null,null,null,null,null,null,null,null,null,null,null,null,null,null,null,null,null,null,null,null,"",null,null,null,null,null,null,null,null,null,null,null,null,null,null,null,"IMÓVEL "]
["",null,null,null,null,null,null,null,null,null,null,null,null,null,null,null,null,null,null,null,null,null,null,null,null,null,null,null,null,null,null,null,null,null,null,null,null,null,null,null,"",null,null,null,null,null,null,null,null,null,null,null,null,null,null,null,"IMÓVEL "]
["",null,null,null,null,null,null,null,null,null,null,null,null,null,null,null,null,null,null,null,null,null,null,null,null,null,null,null,null,null,null,null,null,null,null,null,null,null,null,null,"",null,null,null,null,null,null,null,null,null,null,null,null,null,null,null,"IMÓVEL "]
["",null,null,null,null,null,null,null,null,null,null,null,null,null,null,null,null,null,null,null,null,null,null,null,null,null,null,null,null,null,null,null,null,null,null,null,null,null,null,null,"",null,null,null,null,null,null,null,null,null,null,null,null,null,null,null,"IMÓVEL "]
["",null,null,null,null,null,null,null,null,null,null,null,null,null,null,null,null,null,null,null,null,null,null,null,null,null,null,null,null,null,null,null,null,null,null,null,null,null,null,null,"",null,null,null,null,null,null,null,null,null,null,null,null,null,null,null,"IMÓVEL "]
["",null,null,null,null,null,null,null,null,null,null,null,null,null,null,null,null,null,null,null,null,null,null,null,null,null,null,null,null,null,null,null,null,null,null,null,null,null,null,null,"",null,null,null,null,null,null,null,null,null,null,null,null,null,null,null,"IMÓVEL "]
["",null,null,null,null,null,null,null,null,null,null,null,null,null,null,null,null,null,null,null,null,null,null,null,null,null,null,null,null,null,null,null,null,null,null,null,null,null,null,null,"",null,null,null,null,null,null,null,null,null,null,null,null,null,null,null,"IMÓVEL "]
["",null,null,null,null,null,null,null,null,null,null,null,null,null,null,null,null,null,null,null,null,null,null,null,null,null,null,null,null,null,null,null,null,null,null,null,null,null,null,null,"",null,null,null,null,null,null,null,null,null,null,null,null,null,null,null,"IMÓVEL "]
["",null,null,null,null,null,null,null,null,null,null,null,null,null,null,null,null,null,null,null,null,null,null,null,null,null,null,null,null,null,null,null,null,null,null,null,null,null,null,null,"",null,null,null,null,null,null,null,null,null,null,null,null,null,null,null,"IMÓVEL "]
["",null,null,null,null,null,null,null,null,null,null,null,null,null,null,null,null,null,null,null,null,null,null,null,null,null,null,null,null,null,null,null,null,null,null,null,null,null,null,null,"",null,null,null,null,null,null,null,null,null,null,null,null,null,null,null,"IMÓVEL "]
["",null,null,null,null,null,null,null,null,null,null,null,null,null,null,null,null,null,null,null,null,null,null,null,null,null,null,null,null,null,null,null,null,null,null,null,null,null,null,null,"",null,null,null,null,null,null,null,null,null,null,null,null,null,null,null,{"$f":"_xlfn.CONCAT(\"IMÓVEL \",A71)","v":"IMÓVEL "}]
["",null,null,null,null,null,null,null,null,null,null,null,null,null,null,null,null,null,null,null,null,null,null,null,null,null,null,null,null,null,null,null,null,null,null,null,null,null,null,null,"",null,null,null,null,null,null,null,null,null,null,null,null,null,null,null,"IMÓVEL "]
["",null,null,null,null,null,null,null,null,null,null,null,null,null,null,null,null,null,null,null,null,null,null,null,null,null,null,null,null,null,null,null,null,null,null,null,null,null,null,null,"",null,null,null,null,null,null,null,null,null,null,null,null,null,null,null,"IMÓVEL "]
["",null,null,null,null,null,null,null,null,null,null,null,null,null,null,null,null,null,null,null,null,null,null,null,null,null,null,null,null,null,null,null,null,null,null,null,null,null,null,null,"",null,null,null,null,null,null,null,null,null,null,null,null,null,null,null,"IMÓVEL "]
["",null,null,null,null,null,null,null,null,null,null,null,null,null,null,null,null,null,null,null,null,null,null,null,null,null,null,null,null,null,null,null,null,null,null,null,null,null,null,null,{"$f":"IF(OR(AH75=\"\",AK75=\"\"),\"\",AK75*AH75)","v":""},null,null,null,null,null,null,null,null,null,null,null,null,null,null,null,"IMÓVEL "]
[{"$f":"IF(C76<>\"\",1+A75,\"\")","v":""},null,null,null,null,null,null,null,null,null,null,null,null,null,null,null,null,null,null,null,null,null,null,null,null,null,null,null,null,null,null,null,null,null,null,null,null,null,null,null,"",null,null,null,null,null,null,null,null,null,null,null,null,null,null,null,"IMÓVEL "]
["",null,null,null,null,null,null,null,null,null,null,null,null,null,null,null,null,null,null,null,null,null,null,null,null,null,null,null,null,null,null,null,null,null,null,null,null,null,null,null,"",null,null,null,null,null,null,null,null,null,null,null,null,null,null,null,"IMÓVEL "]
["",null,null,null,null,null,null,null,null,null,null,null,null,null,null,null,null,null,null,null,null,null,null,null,null,null,null,null,null,null,null,null,null,null,null,null,null,null,null,null,"",null,null,null,null,null,null,null,null,null,null,null,null,null,null,null,"IMÓVEL "]
["",null,null,null,null,null,null,null,null,null,null,null,null,null,null,null,null,null,null,null,null,null,null,null,null,null,null,null,null,null,null,null,null,null,null,null,null,null,null,null,"",null,null,null,null,null,null,null,null,null,null,null,null,null,null,null,"IMÓVEL "]
["",null,null,null,null,null,null,null,null,null,null,null,null,null,null,null,null,null,null,null,null,null,null,null,null,null,null,null,null,null,null,null,null,null,null,null,null,null,null,null,"",null,null,null,null,null,null,null,null,null,null,null,null,null,null,null,"IMÓVEL "]
["",null,null,null,null,null,null,null,null,null,null,null,null,null,null,null,null,null,null,null,null,null,null,null,null,null,null,null,null,null,null,null,null,null,null,null,null,null,null,null,"",null,null,null,null,null,null,null,null,null,null,null,null,null,null,null,"IMÓVEL "]
["",null,null,null,null,null,null,null,null,null,null,null,null,null,null,null,null,null,null,null,null,null,null,null,null,null,null,null,null,null,null,null,null,null,null,null,null,null,null,null,"",null,null,null,null,null,null,null,null,null,null,null,null,null,null,null,"IMÓVEL "]
["",null,null,null,null,null,null,null,null,null,null,null,null,null,null,null,null,null,null,null,null,null,null,null,null,null,null,null,null,null,null,null,null,null,null,null,null,null,null,null,"",null,null,null,null,null,null,null,null,null,null,null,null,null,null,null,"IMÓVEL "]
["",null,null,null,null,null,null,null,null,null,null,null,null,null,null,null,null,null,null,null,null,null,null,null,null,null,null,null,null,null,null,null,null,null,null,null,null,null,null,null,"",null,null,null,null,null,null,null,null,null,null,null,null,null,null,null,"IMÓVEL "]
["",null,null,null,null,null,null,null,null,null,null,null,null,null,null,null,null,null,null,null,null,null,null,null,null,null,null,null,null,null,null,null,null,null,null,null,null,null,null,null,"",null,null,null,null,null,null,null,null,null,null,null,null,null,null,null,"IMÓVEL "]
["",null,null,null,null,null,null,null,null,null,null,null,null,null,null,null,null,null,null,null,null,null,null,null,null,null,null,null,null,null,null,null,null,null,null,null,null,null,null,null,"",null,null,null,null,null,null,null,null,null,null,null,null,null,null,null,"IMÓVEL "]
["",null,null,null,null,null,null,null,null,null,null,null,null,null,null,null,null,null,null,null,null,null,null,null,null,null,null,null,null,null,null,null,null,null,null,null,null,null,null,null,"",null,null,null,null,null,null,null,null,null,null,null,null,null,null,null,"IMÓVEL "]
["",null,null,null,null,null,null,null,null,null,null,null,null,null,null,null,null,null,null,null,null,null,null,null,null,null,null,null,null,null,null,null,null,null,null,null,null,null,null,null,"",null,null,null,null,null,null,null,null,null,null,null,null,null,null,null,"IMÓVEL "]
["",null,null,null,null,null,null,null,null,null,null,null,null,null,null,null,null,null,null,null,null,null,null,null,null,null,null,null,null,null,null,null,null,null,null,null,null,null,null,null,"",null,null,null,null,null,null,null,null,null,null,null,null,null,null,null,"IMÓVEL "]
["",null,null,null,null,null,null,null,null,null,null,null,null,null,null,null,null,null,null,null,null,null,null,null,null,null,null,null,null,null,null,null,null,null,null,null,null,null,null,null,"",null,null,null,null,null,null,null,null,null,null,null,null,null,null,null,"IMÓVEL "]
["",null,null,null,null,null,null,null,null,null,null,null,null,null,null,null,null,null,null,null,null,null,null,null,null,null,null,null,null,null,null,null,null,null,null,null,null,null,null,null,"",null,null,null,null,null,null,null,null,null,null,null,null,null,null,null,{"$f":"_xlfn.CONCAT(\"IMÓVEL \",A91)","v":"IMÓVEL "}]
["",null,null,null,null,null,null,null,null,null,null,null,null,null,null,null,null,null,null,null,null,null,null,null,null,null,null,null,null,null,null,null,null,null,null,null,null,null,null,null,"",null,null,null,null,null,null,null,null,null,null,null,null,null,null,null,"IMÓVEL "]
["",null,null,null,null,null,null,null,null,null,null,null,null,null,null,null,null,null,null,null,null,null,null,null,null,null,null,null,null,null,null,null,null,null,null,null,null,null,null,null,"",null,null,null,null,null,null,null,null,null,null,null,null,null,null,null,"IMÓVEL "]
["",null,null,null,null,null,null,null,null,null,null,null,null,null,null,null,null,null,null,null,null,null,null,null,null,null,null,null,null,null,null,null,null,null,null,null,null,null,null,null,"",null,null,null,null,null,null,null,null,null,null,null,null,null,null,null,"IMÓVEL "]
["",null,null,null,null,null,null,null,null,null,null,null,null,null,null,null,null,null,null,null,null,null,null,null,null,null,null,null,null,null,null,null,null,null,null,null,null,null,null,null,"",null,null,null,null,null,null,null,null,null,null,null,null,null,null,null,"IMÓVEL "]
["",null,null,null,null,null,null,null,null,null,null,null,null,null,null,null,null,null,null,null,null,null,null,null,null,null,null,null,null,null,null,null,null,null,null,null,null,null,null,null,"",null,null,null,null,null,null,null,null,null,null,null,null,null,null,null,"IMÓVEL "]
["",null,null,null,null,null,null,null,null,null,null,null,null,null,null,null,null,null,null,null,null,null,null,null,null,null,null,null,null,null,null,null,null,null,null,null,null,null,null,null,"",null,null,null,null,null,null,null,null,null,null,null,null,null,null,null,"IMÓVEL "]
["",null,null,null,null,null,null,null,null,null,null,null,null,null,null,null,null,null,null,null,null,null,null,null,null,null,null,null,null,null,null,null,null,null,null,null,null,null,null,null,"",null,null,null,null,null,null,null,null,null,null,null,null,null,null,null,"IMÓVEL "]
["",null,null,null,null,null,null,null,null,null,null,null,null,null,null,null,null,null,null,null,null,null,null,null,null,null,null,null,null,null,null,null,null,null,null,null,null,null,null,null,"",null,null,null,null,null,null,null,null,null,null,null,null,null,null,null,"IMÓVEL "]
["",null,null,null,null,null,null,null,null,null,null,null,null,null,null,null,null,null,null,null,null,null,null,null,null,null,null,null,null,null,null,null,null,null,null,null,null,null,null,null,"",null,null,null,null,null,null,null,null,null,null,null,null,null,null,null,"IMÓVEL "]
["",null,null,null,null,null,null,null,null,null,null,null,null,null,null,null,null,null,null,null,null,null,null,null,null,null,null,null,null,null,null,null,null,null,null,null,null,null,null,null,"",null,null,null,null,null,null,null,null,null,null,null,null,null,null,null,"IMÓVEL "]
["",null,null,null,null,null,null,null,null,null,null,null,null,null,null,null,null,null,null,null,null,null,null,null,null,null,null,null,null,null,null,null,null,null,null,null,null,null,null,null,"",null,null,null,null,null,null,null,null,null,null,null,null,null,null,null,"IMÓVEL "]
["",null,null,null,null,null,null,null,null,null,null,null,null,null,null,null,null,null,null,null,null,null,null,null,null,null,null,null,null,null,null,null,null,null,null,null,null,null,null,null,"",null,null,null,null,null,null,null,null,null,null,null,null,null,null,null,"IMÓVEL "]
["",null,null,null,null,null,null,null,null,null,null,null,null,null,null,null,null,null,null,null,null,null,null,null,null,null,null,null,null,null,null,null,null,null,null,null,null,null,null,null,"",null,null,null,null,null,null,null,null,null,null,null,null,null,null,null,"IMÓVEL "]
["",null,null,null,null,null,null,null,null,null,null,null,null,null,null,null,null,null,null,null,null,null,null,null,null,null,null,null,null,null,null,null,null,null,null,null,null,null,null,null,"",null,null,null,null,null,null,null,null,null,null,null,null,null,null,null,"IMÓVEL "]
["",null,null,null,null,null,null,null,null,null,null,null,null,null,null,null,null,null,null,null,null,null,null,null,null,null,null,null,null,null,null,null,null,null,null,null,null,null,null,null,"",null,null,null,null,null,null,null,null,null,null,null,null,null,null,null,"IMÓVEL "]
["",null,null,null,null,null,null,null,null,null,null,null,null,null,null,null,null,null,null,null,null,null,null,null,null,null,null,null,null,null,null,null,null,null,null,null,null,null,null,null,"",null,null,null,null,null,null,null,null,null,null,null,null,null,null,null,"IMÓVEL "]
["",null,null,null,null,null,null,null,null,null,null,null,null,null,null,null,null,null,null,null,null,null,null,null,null,null,null,null,null,null,null,null,null,null,null,null,null,null,null,null,"",null,null,null,null,null,null,null,null,null,null,null,null,null,null,null,"IMÓVEL "]
["",null,null,null,null,null,null,null,null,null,null,null,null,null,null,null,null,null,null,null,null,null,null,null,null,null,null,null,null,null,null,null,null,null,null,null,null,null,null,null,"",null,null,null,null,null,null,null,null,null,null,null,null,null,null,null,"IMÓVEL "]
["TOTAL",null,null,null,null,null,null,null,null,null,null,null,null,null,null,null,null,null,null,null,null,null,null,null,null,null,null,null,null,null,null,null,null,{"$f":"IF(SUM(AH10:AJ109)=0,\"-\",SUM(AH10:AJ109))","v":"-"},null,null,{"$f":"IF(SUM(AK10:AN109)=0,\"-\",SUM(AK10:AN109))","v":"-"},null,null,null,{"$f":"IF(SUM(AO10:AS109)=0,\"-\",SUM(AO10:AS109))","v":"-"}]
["BENFEITORIAS"]
["IMÓVEL REF",null,null,null,null,"DESCRIÇÃO",null,null,null,null,null,null,null,null,null,null,null,null,null,null,null,null,null,null,null,null,null,null,null,"QTDE",null,null,null,"VALOR UNITÁRIO (R$)",null,null,null,null,null,"VALOR TOTAL\n(R$)"]
[null,null,null,null,null,null,null,null,null,null,null,null,null,null,null,null,null,null,null,null,null,null,null,null,null,null,null,null,null,null,null,null,null,null,null,null,null,null,null,{"$f":"IF(OR(AD113=\"\",AH113=\"\"),\"\",AH113*AD113)","v":""},null,null,null,null,null,null,{"$f":"SUM(AV113:AV162)","v":1},1]
[null,null,null,null,null,null,null,null,null,null,null,null,null,null,null,null,null,null,null,null,null,null,null,null,null,null,null,null,null,null,null,null,null,null,null,null,null,null,null,{"$f":"IF(OR(AD114=\"\",AH114=\"\"),\"\",AH114*AD114)","v":""}]
[null,null,null,null,null,null,null,null,null,null,null,null,null,null,null,null,null,null,null,null,null,null,null,null,null,null,null,null,null,null,null,null,null,null,null,null,null,null,null,""]
[null,null,null,null,null,null,null,null,null,null,null,null,null,null,null,null,null,null,null,null,null,null,null,null,null,null,null,null,null,null,null,null,null,null,null,null,null,null,null,""]
[null,null,null,null,null,null,null,null,null,null,null,null,null,null,null,null,null,null,null,null,null,null,null,null,null,null,null,null,null,null,null,null,null,null,null,null,null,null,null,""]
[null,null,null,null,null,null,null,null,null,null,null,null,null,null,null,null,null,null,null,null,null,null,null,null,null,null,null,null,null,null,null,null,null,null,null,null,null,null,null,""]
[null,null,null,null,null,null,null,null,null,null,null,null,null,null,null,null,null,null,null,null,null,null,null,null,null,null,null,null,null,null,null,null,null,null,null,null,null,null,null,""]
[null,null,null,null,null,null,null,null,null,null,null,null,null,null,null,null,null,null,null,null,null,null,null,null,null,null,null,null,null,null,null,null,null,null,null,null,null,null,null,{"$f":"IF(OR(AD120=\"\",AH120=\"\"),\"\",AH120*AD120)","v":""}]
[null,null,null,null,null,null,null,null,null,null,null,null,null,null,null,null,null,null,null,null,null,null,null,null,null,null,null,null,null,null,null,null,null,null,null,null,null,null,null,""]
[null,null,null,null,null,null,null,null,null,null,null,null,null,null,null,null,null,null,null,null,null,null,null,null,null,null,null,null,null,null,null,null,null,null,null,null,null,null,null,""]
[null,null,null,null,null,null,null,null,null,null,null,null,null,null,null,null,null,null,null,null,null,null,null,null,null,null,null,null,null,null,null,null,null,null,null,null,null,null,null,""]
[null,null,null,null,null,null,null,null,null,null,null,null,null,null,null,null,null,null,null,null,null,null,null,null,null,null,null,null,null,null,null,null,null,null,null,null,null,null,null,""]
[null,null,null,null,null,null,null,null,null,null,null,null,null,null,null,null,null,null,null,null,null,null,null,null,null,null,null,null,null,null,null,null,null,null,null,null,null,null,null,""]
[null,null,null,null,null,null,null,null,null,null,null,null,null,null,null,null,null,null,null,null,null,null,null,null,null,null,null,null,null,null,null,null,null,null,null,null,null,null,null,""]
[null,null,null,null,null,null,null,null,null,null,null,null,null,null,null,null,null,null,null,null,null,null,null,null,null,null,null,null,null,null,null,null,null,null,null,null,null,null,null,""]
[null,null,null,null,null,null,null,null,null,null,null,null,null,null,null,null,null,null,null,null,null,null,null,null,null,null,null,null,null,null,null,null,null,null,null,null,null,null,null,""]
[null,null,null,null,null,null,null,null,null,null,null,null,null,null,null,null,null,null,null,null,null,null,null,null,null,null,null,null,null,null,null,null,null,null,null,null,null,null,null,""]
[null,null,null,null,null,null,null,null,null,null,null,null,null,null,null,null,null,null,null,null,null,null,null,null,null,null,null,null,null,null,null,null,null,null,null,null,null,null,null,""]
[null,null,null,null,null,null,null,null,null,null,null,null,null,null,null,null,null,null,null,null,null,null,null,null,null,null,null,null,null,null,null,null,null,null,null,null,null,null,null,""]
[null,null,null,null,null,null,null,null,null,null,null,null,null,null,null,null,null,null,null,null,null,null,null,null,null,null,null,null,null,null,null,null,null,null,null,null,null,null,null,""]
[null,null,null,null,null,null,null,null,null,null,null,null,null,null,null,null,null,null,null,null,null,null,null,null,null,null,null,null,null,null,null,null,null,null,null,null,null,null,null,""]
[null,null,null,null,null,null,null,null,null,null,null,null,null,null,null,null,null,null,null,null,null,null,null,null,null,null,null,null,null,null,null,null,null,null,null,null,null,null,null,""]
[null,null,null,null,null,null,null,null,null,null,null,null,null,null,null,null,null,null,null,null,null,null,null,null,null,null,null,null,null,null,null,null,null,null,null,null,null,null,null,""]
[null,null,null,null,null,null,null,null,null,null,null,null,null,null,null,null,null,null,null,null,null,null,null,null,null,null,null,null,null,null,null,null,null,null,null,null,null,null,null,""]
[null,null,null,null,null,null,null,null,null,null,null,null,null,null,null,null,null,null,null,null,null,null,null,null,null,null,null,null,null,null,null,null,null,null,null,null,null,null,null,""]
[null,null,null,null,null,null,null,null,null,null,null,null,null,null,null,null,null,null,null,null,null,null,null,null,null,null,null,null,null,null,null,null,null,null,null,null,null,null,null,""]
[null,null,null,null,null,null,null,null,null,null,null,null,null,null,null,null,null,null,null,null,null,null,null,null,null,null,null,null,null,null,null,null,null,null,null,null,null,null,null,""]
[null,null,null,null,null,null,null,null,null,null,null,null,null,null,null,null,null,null,null,null,null,null,null,null,null,null,null,null,null,null,null,null,null,null,null,null,null,null,null,{"$f":"IF(OR(AD140=\"\",AH140=\"\"),\"\",AH140*AD140)","v":""}]
[null,null,null,null,null,null,null,null,null,null,null,null,null,null,null,null,null,null,null,null,null,null,null,null,null,null,null,null,null,null,null,null,null,null,null,null,null,null,null,""]
[null,null,null,null,null,null,null,null,null,null,null,null,null,null,null,null,null,null,null,null,null,null,null,null,null,null,null,null,null,null,null,null,null,null,null,null,null,null,null,""]
[null,null,null,null,null,null,null,null,null,null,null,null,null,null,null,null,null,null,null,null,null,null,null,null,null,null,null,null,null,null,null,null,null,null,null,null,null,null,null,""]
[null,null,null,null,null,null,null,null,null,null,null,null,null,null,null,null,null,null,null,null,null,null,null,null,null,null,null,null,null,null,null,null,null,null,null,null,null,null,null,""]
[null,null,null,null,null,null,null,null,null,null,null,null,null,null,null,null,null,null,null,null,null,null,null,null,null,null,null,null,null,null,null,null,null,null,null,null,null,null,null,""]
[null,null,null,null,null,null,null,null,null,null,null,null,null,null,null,null,null,null,null,null,null,null,null,null,null,null,null,null,null,null,null,null,null,null,null,null,null,null,null,""]
[null,null,null,null,null,null,null,null,null,null,null,null,null,null,null,null,null,null,null,null,null,null,null,null,null,null,null,null,null,null,null,null,null,null,null,null,null,null,null,""]
[null,null,null,null,null,null,null,null,null,null,null,null,null,null,null,null,null,null,null,null,null,null,null,null,null,null,null,null,null,null,null,null,null,null,null,null,null,null,null,""]
[null,null,null,null,null,null,null,null,null,null,null,null,null,null,null,null,null,null,null,null,null,null,null,null,null,null,null,null,null,null,null,null,null,null,null,null,null,null,null,""]
[null,null,null,null,null,null,null,null,null,null,null,null,null,null,null,null,null,null,null,null,null,null,null,null,null,null,null,null,null,null,null,null,null,null,null,null,null,null,null,""]
[null,null,null,null,null,null,null,null,null,null,null,null,null,null,null,null,null,null,null,null,null,null,null,null,null,null,null,null,null,null,null,null,null,null,null,null,null,null,null,""]
[null,null,null,null,null,null,null,null,null,null,null,null,null,null,null,null,null,null,null,null,null,null,null,null,null,null,null,null,null,null,null,null,null,null,null,null,null,null,null,""]
[null,null,null,null,null,null,null,null,null,null,null,null,null,null,null,null,null,null,null,null,null,null,null,null,null,null,null,null,null,null,null,null,null,null,null,null,null,null,null,""]
[null,null,null,null,null,null,null,null,null,null,null,null,null,null,null,null,null,null,null,null,null,null,null,null,null,null,null,null,null,null,null,null,null,null,null,null,null,null,null,""]
[null,null,null,null,null,null,null,null,null,null,null,null,null,null,null,null,null,null,null,null,null,null,null,null,null,null,null,null,null,null,null,null,null,null,null,null,null,null,null,""]
[null,null,null,null,null,null,null,null,null,null,null,null,null,null,null,null,null,null,null,null,null,null,null,null,null,null,null,null,null,null,null,null,null,null,null,null,null,null,null,""]
[null,null,null,null,null,null,null,null,null,null,null,null,null,null,null,null,null,null,null,null,null,null,null,null,null,null,null,null,null,null,null,null,null,null,null,null,null,null,null,""]
[null,null,null,null,null,null,null,null,null,null,null,null,null,null,null,null,null,null,null,null,null,null,null,null,null,null,null,null,null,null,null,null,null,null,null,null,null,null,null,""]
[null,null,null,null,null,null,null,null,null,null,null,null,null,null,null,null,null,null,null,null,null,null,null,null,null,null,null,null,null,null,null,null,null,null,null,null,null,null,null,""]
[null,null,null,null,null,null,null,null,null,null,null,null,null,null,null,null,null,null,null,null,null,null,null,null,null,null,null,null,null,null,null,null,null,null,null,null,null,null,null,""]
[null,null,null,null,null,null,null,null,null,null,null,null,null,null,null,null,null,null,null,null,null,null,null,null,null,null,null,null,null,null,null,null,null,null,null,null,null,null,null,""]
[null,null,null,null,null,null,null,null,null,null,null,null,null,null,null,null,null,null,null,null,null,null,null,null,null,null,null,null,null,null,null,null,null,null,null,null,null,null,null,""]
["TOTAL",null,null,null,null,null,null,null,null,null,null,null,null,null,null,null,null,null,null,null,null,null,null,null,null,null,null,null,null,{"$f":"IF(SUM(AD113:AG162)=0,\"-\",SUM(AD113:AG162))","v":"-"},null,null,null,{"$f":"IF(SUM(AH113:AM162)=0,\"-\",SUM(AH113:AM162))","v":"-"},null,null,null,null,null,{"$f":"IF(SUM(AN113:AS162)=0,\"-\",SUM(AN113:AS162))","v":"-"}]
[]
["II - BENS MÓVEIS"]
[" VEÍCULOS, MÁQUINAS E EQUIPAMENTOS"]
["TIPO",null,null,null,null,null,"DESCRIÇÃO",null,null,null,null,null,null,null,null,null,null,null,null,null,null,null,null,null,null,null,null,null,null,null,"QTD",null,null,"VALOR UNITÁRIO (R$)",null,null,null,null,null,"VALOR TOTAL\n(R$)"]
[null,null,null,null,null,null,null,null,null,null,null,null,null,null,null,null,null,null,null,null,null,null,null,null,null,null,null,null,null,null,null,null,null,null,null,null,null,null,null,{"$f":"IF(AH168=\"\",\"\",AE168*AH168)","v":""},null,null,null,null,null,null,{"$f":"SUM(AV167:AV367)","v":1},1]
[null,null,null,null,null,null,null,null,null,null,null,null,null,null,null,null,null,null,null,null,null,null,null,null,null,null,null,null,null,null,null,null,null,null,null,null,null,null,null,{"$f":"IF(AH169=\"\",\"\",AE169*AH169)","v":""},null,null,null,null,null,null,null,null,1]
[null,null,null,null,null,null,null,null,null,null,null,null,null,null,null,null,null,null,null,null,null,null,null,null,null,null,null,null,null,null,null,null,null,null,null,null,null,null,null,"",null,null,null,null,null,null,null,null,null,null,null,null,1]
[null,null,null,null,null,null,null,null,null,null,null,null,null,null,null,null,null,null,null,null,null,null,null,null,null,null,null,null,null,null,null,null,null,null,null,null,null,null,null,""]
[null,null,null,null,null,null,null,null,null,null,null,null,null,null,null,null,null,null,null,null,null,null,null,null,null,null,null,null,null,null,null,null,null,null,null,null,null,null,null,""]
[null,null,null,null,null,null,null,null,null,null,null,null,null,null,null,null,null,null,null,null,null,null,null,null,null,null,null,null,null,null,null,null,null,null,null,null,null,null,null,""]
[null,null,null,null,null,null,null,null,null,null,null,null,null,null,null,null,null,null,null,null,null,null,null,null,null,null,null,null,null,null,null,null,null,null,null,null,null,null,null,""]
[null,null,null,null,null,null,null,null,null,null,null,null,null,null,null,null,null,null,null,null,null,null,null,null,null,null,null,null,null,null,null,null,null,null,null,null,null,null,null,{"$f":"IF(AH175=\"\",\"\",AE175*AH175)","v":""}]
[null,null,null,null,null,null,null,null,null,null,null,null,null,null,null,null,null,null,null,null,null,null,null,null,null,null,null,null,null,null,null,null,null,null,null,null,null,null,null,""]
[null,null,null,null,null,null,null,null,null,null,null,null,null,null,null,null,null,null,null,null,null,null,null,null,null,null,null,null,null,null,null,null,null,null,null,null,null,null,null,""]
[null,null,null,null,null,null,null,null,null,null,null,null,null,null,null,null,null,null,null,null,null,null,null,null,null,null,null,null,null,null,null,null,null,null,null,null,null,null,null,""]
[null,null,null,null,null,null,null,null,null,null,null,null,null,null,null,null,null,null,null,null,null,null,null,null,null,null,null,null,null,null,null,null,null,null,null,null,null,null,null,""]
[null,null,null,null,null,null,null,null,null,null,null,null,null,null,null,null,null,null,null,null,null,null,null,null,null,null,null,null,null,null,null,null,null,null,null,null,null,null,null,""]
[null,null,null,null,null,null,null,null,null,null,null,null,null,null,null,null,null,null,null,null,null,null,null,null,null,null,null,null,null,null,null,null,null,null,null,null,null,null,null,""]
[null,null,null,null,null,null,null,null,null,null,null,null,null,null,null,null,null,null,null,null,null,null,null,null,null,null,null,null,null,null,null,null,null,null,null,null,null,null,null,""]
[null,null,null,null,null,null,null,null,null,null,null,null,null,null,null,null,null,null,null,null,null,null,null,null,null,null,null,null,null,null,null,null,null,null,null,null,null,null,null,""]
[null,null,null,null,null,null,null,null,null,null,null,null,null,null,null,null,null,null,null,null,null,null,null,null,null,null,null,null,null,null,null,null,null,null,null,null,null,null,null,""]
[null,null,null,null,null,null,null,null,null,null,null,null,null,null,null,null,null,null,null,null,null,null,null,null,null,null,null,null,null,null,null,null,null,null,null,null,null,null,null,""]
[null,null,null,null,null,null,null,null,null,null,null,null,null,null,null,null,null,null,null,null,null,null,null,null,null,null,null,null,null,null,null,null,null,null,null,null,null,null,null,""]
[null,null,null,null,null,null,null,null,null,null,null,null,null,null,null,null,null,null,null,null,null,null,null,null,null,null,null,null,null,null,null,null,null,null,null,null,null,null,null,""]
[null,null,null,null,null,null,null,null,null,null,null,null,null,null,null,null,null,null,null,null,null,null,null,null,null,null,null,null,null,null,null,null,null,null,null,null,null,null,null,""]
[null,null,null,null,null,null,null,null,null,null,null,null,null,null,null,null,null,null,null,null,null,null,null,null,null,null,null,null,null,null,null,null,null,null,null,null,null,null,null,""]
[null,null,null,null,null,null,null,null,null,null,null,null,null,null,null,null,null,null,null,null,null,null,null,null,null,null,null,null,null,null,null,null,null,null,null,null,null,null,null,""]
[null,null,null,null,null,null,null,null,null,null,null,null,null,null,null,null,null,null,null,null,null,null,null,null,null,null,null,null,null,null,null,null,null,null,null,null,null,null,null,""]
[null,null,null,null,null,null,null,null,null,null,null,null,null,null,null,null,null,null,null,null,null,null,null,null,null,null,null,null,null,null,null,null,null,null,null,null,null,null,null,""]
[null,null,null,null,null,null,null,null,null,null,null,null,null,null,null,null,null,null,null,null,null,null,null,null,null,null,null,null,null,null,null,null,null,null,null,null,null,null,null,""]
[null,null,null,null,null,null,null,null,null,null,null,null,null,null,null,null,null,null,null,null,null,null,null,null,null,null,null,null,null,null,null,null,null,null,null,null,null,null,null,""]
[null,null,null,null,null,null,null,null,null,null,null,null,null,null,null,null,null,null,null,null,null,null,null,null,null,null,null,null,null,null,null,null,null,null,null,null,null,null,null,""]
[null,null,null,null,null,null,null,null,null,null,null,null,null,null,null,null,null,null,null,null,null,null,null,null,null,null,null,null,null,null,null,null,null,null,null,null,null,null,null,""]
[null,null,null,null,null,null,null,null,null,null,null,null,null,null,null,null,null,null,null,null,null,null,null,null,null,null,null,null,null,null,null,null,null,null,null,null,null,null,null,""]
[null,null,null,null,null,null,null,null,null,null,null,null,null,null,null,null,null,null,null,null,null,null,null,null,null,null,null,null,null,null,null,null,null,null,null,null,null,null,null,""]
[null,null,null,null,null,null,null,null,null,null,null,null,null,null,null,null,null,null,null,null,null,null,null,null,null,null,null,null,null,null,null,null,null,null,null,null,null,null,null,""]
[null,null,null,null,null,null,null,null,null,null,null,null,null,null,null,null,null,null,null,null,null,null,null,null,null,null,null,null,null,null,null,null,null,null,null,null,null,null,null,""]
[null,null,null,null,null,null,null,null,null,null,null,null,null,null,null,null,null,null,null,null,null,null,null,null,null,null,null,null,null,null,null,null,null,null,null,null,null,null,null,""]
[null,null,null,null,null,null,null,null,null,null,null,null,null,null,null,null,null,null,null,null,null,null,null,null,null,null,null,null,null,null,null,null,null,null,null,null,null,null,null,""]
[null,null,null,null,null,null,null,null,null,null,null,null,null,null,null,null,null,null,null,null,null,null,null,null,null,null,null,null,null,null,null,null,null,null,null,null,null,null,null,""]
[null,null,null,null,null,null,null,null,null,null,null,null,null,null,null,null,null,null,null,null,null,null,null,null,null,null,null,null,null,null,null,null,null,null,null,null,null,null,null,""]
[null,null,null,null,null,null,null,null,null,null,null,null,null,null,null,null,null,null,null,null,null,null,null,null,null,null,null,null,null,null,null,null,null,null,null,null,null,null,null,""]
[null,null,null,null,null,null,null,null,null,null,null,null,null,null,null,null,null,null,null,null,null,null,null,null,null,null,null,null,null,null,null,null,null,null,null,null,null,null,null,""]
[null,null,null,null,null,null,null,null,null,null,null,null,null,null,null,null,null,null,null,null,null,null,null,null,null,null,null,null,null,null,null,null,null,null,null,null,null,null,null,""]
[null,null,null,null,null,null,null,null,null,null,null,null,null,null,null,null,null,null,null,null,null,null,null,null,null,null,null,null,null,null,null,null,null,null,null,null,null,null,null,""]
[null,null,null,null,null,null,null,null,null,null,null,null,null,null,null,null,null,null,null,null,null,null,null,null,null,null,null,null,null,null,null,null,null,null,null,null,null,null,null,""]
[null,null,null,null,null,null,null,null,null,null,null,null,null,null,null,null,null,null,null,null,null,null,null,null,null,null,null,null,null,null,null,null,null,null,null,null,null,null,null,""]
[null,null,null,null,null,null,null,null,null,null,null,null,null,null,null,null,null,null,null,null,null,null,null,null,null,null,null,null,null,null,null,null,null,null,null,null,null,null,null,""]
[null,null,null,null,null,null,null,null,null,null,null,null,null,null,null,null,null,null,null,null,null,null,null,null,null,null,null,null,null,null,null,null,null,null,null,null,null,null,null,""]
[null,null,null,null,null,null,null,null,null,null,null,null,null,null,null,null,null,null,null,null,null,null,null,null,null,null,null,null,null,null,null,null,null,null,null,null,null,null,null,""]
[null,null,null,null,null,null,null,null,null,null,null,null,null,null,null,null,null,null,null,null,null,null,null,null,null,null,null,null,null,null,null,null,null,null,null,null,null,null,null,""]
[null,null,null,null,null,null,null,null,null,null,null,null,null,null,null,null,null,null,null,null,null,null,null,null,null,null,null,null,null,null,null,null,null,null,null,null,null,null,null,""]
[null,null,null,null,null,null,null,null,null,null,null,null,null,null,null,null,null,null,null,null,null,null,null,null,null,null,null,null,null,null,null,null,null,null,null,null,null,null,null,""]
[null,null,null,null,null,null,null,null,null,null,null,null,null,null,null,null,null,null,null,null,null,null,null,null,null,null,null,null,null,null,null,null,null,null,null,null,null,null,null,""]
[null,null,null,null,null,null,null,null,null,null,null,null,null,null,null,null,null,null,null,null,null,null,null,null,null,null,null,null,null,null,null,null,null,null,null,null,null,null,null,""]
[null,null,null,null,null,null,null,null,null,null,null,null,null,null,null,null,null,null,null,null,null,null,null,null,null,null,null,null,null,null,null,null,null,null,null,null,null,null,null,""]
[null,null,null,null,null,null,null,null,null,null,null,null,null,null,null,null,null,null,null,null,null,null,null,null,null,null,null,null,null,null,null,null,null,null,null,null,null,null,null,""]
[null,null,null,null,null,null,null,null,null,null,null,null,null,null,null,null,null,null,null,null,null,null,null,null,null,null,null,null,null,null,null,null,null,null,null,null,null,null,null,""]
[null,null,null,null,null,null,null,null,null,null,null,null,null,null,null,null,null,null,null,null,null,null,null,null,null,null,null,null,null,null,null,null,null,null,null,null,null,null,null,""]
[null,null,null,null,null,null,null,null,null,null,null,null,null,null,null,null,null,null,null,null,null,null,null,null,null,null,null,null,null,null,null,null,null,null,null,null,null,null,null,""]
[null,null,null,null,null,null,null,null,null,null,null,null,null,null,null,null,null,null,null,null,null,null,null,null,null,null,null,null,null,null,null,null,null,null,null,null,null,null,null,""]
[null,null,null,null,null,null,null,null,null,null,null,null,null,null,null,null,null,null,null,null,null,null,null,null,null,null,null,null,null,null,null,null,null,null,null,null,null,null,null,""]
[null,null,null,null,null,null,null,null,null,null,null,null,null,null,null,null,null,null,null,null,null,null,null,null,null,null,null,null,null,null,null,null,null,null,null,null,null,null,null,""]
[null,null,null,null,null,null,null,null,null,null,null,null,null,null,null,null,null,null,null,null,null,null,null,null,null,null,null,null,null,null,null,null,null,null,null,null,null,null,null,""]
[null,null,null,null,null,null,null,null,null,null,null,null,null,null,null,null,null,null,null,null,null,null,null,null,null,null,null,null,null,null,null,null,null,null,null,null,null,null,null,""]
[null,null,null,null,null,null,null,null,null,null,null,null,null,null,null,null,null,null,null,null,null,null,null,null,null,null,null,null,null,null,null,null,null,null,null,null,null,null,null,""]
[null,null,null,null,null,null,null,null,null,null,null,null,null,null,null,null,null,null,null,null,null,null,null,null,null,null,null,null,null,null,null,null,null,null,null,null,null,null,null,""]
[null,null,null,null,null,null,null,null,null,null,null,null,null,null,null,null,null,null,null,null,null,null,null,null,null,null,null,null,null,null,null,null,null,null,null,null,null,null,null,""]
[null,null,null,null,null,null,null,null,null,null,null,null,null,null,null,null,null,null,null,null,null,null,null,null,null,null,null,null,null,null,null,null,null,null,null,null,null,null,null,""]
[null,null,null,null,null,null,null,null,null,null,null,null,null,null,null,null,null,null,null,null,null,null,null,null,null,null,null,null,null,null,null,null,null,null,null,null,null,null,null,""]
[null,null,null,null,null,null,null,null,null,null,null,null,null,null,null,null,null,null,null,null,null,null,null,null,null,null,null,null,null,null,null,null,null,null,null,null,null,null,null,""]
[null,null,null,null,null,null,null,null,null,null,null,null,null,null,null,null,null,null,null,null,null,null,null,null,null,null,null,null,null,null,null,null,null,null,null,null,null,null,null,""]
[null,null,null,null,null,null,null,null,null,null,null,null,null,null,null,null,null,null,null,null,null,null,null,null,null,null,null,null,null,null,null,null,null,null,null,null,null,null,null,{"$f":"IF(AH236=\"\",\"\",AE236*AH236)","v":""}]
[null,null,null,null,null,null,null,null,null,null,null,null,null,null,null,null,null,null,null,null,null,null,null,null,null,null,null,null,null,null,null,null,null,null,null,null,null,null,null,""]
[null,null,null,null,null,null,null,null,null,null,null,null,null,null,null,null,null,null,null,null,null,null,null,null,null,null,null,null,null,null,null,null,null,null,null,null,null,null,null,""]
[null,null,null,null,null,null,null,null,null,null,null,null,null,null,null,null,null,null,null,null,null,null,null,null,null,null,null,null,null,null,null,null,null,null,null,null,null,null,null,""]
[null,null,null,null,null,null,null,null,null,null,null,null,null,null,null,null,null,null,null,null,null,null,null,null,null,null,null,null,null,null,null,null,null,null,null,null,null,null,null,""]
[null,null,null,null,null,null,null,null,null,null,null,null,null,null,null,null,null,null,null,null,null,null,null,null,null,null,null,null,null,null,null,null,null,null,null,null,null,null,null,""]
[null,null,null,null,null,null,null,null,null,null,null,null,null,null,null,null,null,null,null,null,null,null,null,null,null,null,null,null,null,null,null,null,null,null,null,null,null,null,null,""]
[null,null,null,null,null,null,null,null,null,null,null,null,null,null,null,null,null,null,null,null,null,null,null,null,null,null,null,null,null,null,null,null,null,null,null,null,null,null,null,""]
[null,null,null,null,null,null,null,null,null,null,null,null,null,null,null,null,null,null,null,null,null,null,null,null,null,null,null,null,null,null,null,null,null,null,null,null,null,null,null,""]
[null,null,null,null,null,null,null,null,null,null,null,null,null,null,null,null,null,null,null,null,null,null,null,null,null,null,null,null,null,null,null,null,null,null,null,null,null,null,null,""]
[null,null,null,null,null,null,null,null,null,null,null,null,null,null,null,null,null,null,null,null,null,null,null,null,null,null,null,null,null,null,null,null,null,null,null,null,null,null,null,""]
[null,null,null,null,null,null,null,null,null,null,null,null,null,null,null,null,null,null,null,null,null,null,null,null,null,null,null,null,null,null,null,null,null,null,null,null,null,null,null,""]
[null,null,null,null,null,null,null,null,null,null,null,null,null,null,null,null,null,null,null,null,null,null,null,null,null,null,null,null,null,null,null,null,null,null,null,null,null,null,null,""]
[null,null,null,null,null,null,null,null,null,null,null,null,null,null,null,null,null,null,null,null,null,null,null,null,null,null,null,null,null,null,null,null,null,null,null,null,null,null,null,""]
[null,null,null,null,null,null,null,null,null,null,null,null,null,null,null,null,null,null,null,null,null,null,null,null,null,null,null,null,null,null,null,null,null,null,null,null,null,null,null,""]
[null,null,null,null,null,null,null,null,null,null,null,null,null,null,null,null,null,null,null,null,null,null,null,null,null,null,null,null,null,null,null,null,null,null,null,null,null,null,null,""]
[null,null,null,null,null,null,null,null,null,null,null,null,null,null,null,null,null,null,null,null,null,null,null,null,null,null,null,null,null,null,null,null,null,null,null,null,null,null,null,""]
[null,null,null,null,null,null,null,null,null,null,null,null,null,null,null,null,null,null,null,null,null,null,null,null,null,null,null,null,null,null,null,null,null,null,null,null,null,null,null,""]
[null,null,null,null,null,null,null,null,null,null,null,null,null,null,null,null,null,null,null,null,null,null,null,null,null,null,null,null,null,null,null,null,null,null,null,null,null,null,null,""]
[null,null,null,null,null,null,null,null,null,null,null,null,null,null,null,null,null,null,null,null,null,null,null,null,null,null,null,null,null,null,null,null,null,null,null,null,null,null,null,""]
[null,null,null,null,null,null,null,null,null,null,null,null,null,null,null,null,null,null,null,null,null,null,null,null,null,null,null,null,null,null,null,null,null,null,null,null,null,null,null,""]
[null,null,null,null,null,null,null,null,null,null,null,null,null,null,null,null,null,null,null,null,null,null,null,null,null,null,null,null,null,null,null,null,null,null,null,null,null,null,null,""]
[null,null,null,null,null,null,null,null,null,null,null,null,null,null,null,null,null,null,null,null,null,null,null,null,null,null,null,null,null,null,null,null,null,null,null,null,null,null,null,""]
[null,null,null,null,null,null,null,null,null,null,null,null,null,null,null,null,null,null,null,null,null,null,null,null,null,null,null,null,null,null,null,null,null,null,null,null,null,null,null,""]
[null,null,null,null,null,null,null,null,null,null,null,null,null,null,null,null,null,null,null,null,null,null,null,null,null,null,null,null,null,null,null,null,null,null,null,null,null,null,null,""]
[null,null,null,null,null,null,null,null,null,null,null,null,null,null,null,null,null,null,null,null,null,null,null,null,null,null,null,null,null,null,null,null,null,null,null,null,null,null,null,""]
[null,null,null,null,null,null,null,null,null,null,null,null,null,null,null,null,null,null,null,null,null,null,null,null,null,null,null,null,null,null,null,null,null,null,null,null,null,null,null,""]
[null,null,null,null,null,null,null,null,null,null,null,null,null,null,null,null,null,null,null,null,null,null,null,null,null,null,null,null,null,null,null,null,null,null,null,null,null,null,null,""]
[null,null,null,null,null,null,null,null,null,null,null,null,null,null,null,null,null,null,null,null,null,null,null,null,null,null,null,null,null,null,null,null,null,null,null,null,null,null,null,""]
[null,null,null,null,null,null,null,null,null,null,null,null,null,null,null,null,null,null,null,null,null,null,null,null,null,null,null,null,null,null,null,null,null,null,null,null,null,null,null,""]
[null,null,null,null,null,null,null,null,null,null,null,null,null,null,null,null,null,null,null,null,null,null,null,null,null,null,null,null,null,null,null,null,null,null,null,null,null,null,null,""]
[null,null,null,null,null,null,null,null,null,null,null,null,null,null,null,null,null,null,null,null,null,null,null,null,null,null,null,null,null,null,null,null,null,null,null,null,null,null,null,""]
[null,null,null,null,null,null,null,null,null,null,null,null,null,null,null,null,null,null,null,null,null,null,null,null,null,null,null,null,null,null,null,null,null,null,null,null,null,null,null,""]
[null,null,null,null,null,null,null,null,null,null,null,null,null,null,null,null,null,null,null,null,null,null,null,null,null,null,null,null,null,null,null,null,null,null,null,null,null,null,null,""]
[null,null,null,null,null,null,null,null,null,null,null,null,null,null,null,null,null,null,null,null,null,null,null,null,null,null,null,null,null,null,null,null,null,null,null,null,null,null,null,""]
[null,null,null,null,null,null,null,null,null,null,null,null,null,null,null,null,null,null,null,null,null,null,null,null,null,null,null,null,null,null,null,null,null,null,null,null,null,null,null,""]
[null,null,null,null,null,null,null,null,null,null,null,null,null,null,null,null,null,null,null,null,null,null,null,null,null,null,null,null,null,null,null,null,null,null,null,null,null,null,null,""]
[null,null,null,null,null,null,null,null,null,null,null,null,null,null,null,null,null,null,null,null,null,null,null,null,null,null,null,null,null,null,null,null,null,null,null,null,null,null,null,""]
[null,null,null,null,null,null,null,null,null,null,null,null,null,null,null,null,null,null,null,null,null,null,null,null,null,null,null,null,null,null,null,null,null,null,null,null,null,null,null,""]
[null,null,null,null,null,null,null,null,null,null,null,null,null,null,null,null,null,null,null,null,null,null,null,null,null,null,null,null,null,null,null,null,null,null,null,null,null,null,null,""]
[null,null,null,null,null,null,null,null,null,null,null,null,null,null,null,null,null,null,null,null,null,null,null,null,null,null,null,null,null,null,null,null,null,null,null,null,null,null,null,""]
[null,null,null,null,null,null,null,null,null,null,null,null,null,null,null,null,null,null,null,null,null,null,null,null,null,null,null,null,null,null,null,null,null,null,null,null,null,null,null,""]
[null,null,null,null,null,null,null,null,null,null,null,null,null,null,null,null,null,null,null,null,null,null,null,null,null,null,null,null,null,null,null,null,null,null,null,null,null,null,null,""]
[null,null,null,null,null,null,null,null,null,null,null,null,null,null,null,null,null,null,null,null,null,null,null,null,null,null,null,null,null,null,null,null,null,null,null,null,null,null,null,""]
[null,null,null,null,null,null,null,null,null,null,null,null,null,null,null,null,null,null,null,null,null,null,null,null,null,null,null,null,null,null,null,null,null,null,null,null,null,null,null,""]
[null,null,null,null,null,null,null,null,null,null,null,null,null,null,null,null,null,null,null,null,null,null,null,null,null,null,null,null,null,null,null,null,null,null,null,null,null,null,null,""]
[null,null,null,null,null,null,null,null,null,null,null,null,null,null,null,null,null,null,null,null,null,null,null,null,null,null,null,null,null,null,null,null,null,null,null,null,null,null,null,""]
[null,null,null,null,null,null,null,null,null,null,null,null,null,null,null,null,null,null,null,null,null,null,null,null,null,null,null,null,null,null,null,null,null,null,null,null,null,null,null,""]
[null,null,null,null,null,null,null,null,null,null,null,null,null,null,null,null,null,null,null,null,null,null,null,null,null,null,null,null,null,null,null,null,null,null,null,null,null,null,null,""]
[null,null,null,null,null,null,null,null,null,null,null,null,null,null,null,null,null,null,null,null,null,null,null,null,null,null,null,null,null,null,null,null,null,null,null,null,null,null,null,""]
[null,null,null,null,null,null,null,null,null,null,null,null,null,null,null,null,null,null,null,null,null,null,null,null,null,null,null,null,null,null,null,null,null,null,null,null,null,null,null,""]
[null,null,null,null,null,null,null,null,null,null,null,null,null,null,null,null,null,null,null,null,null,null,null,null,null,null,null,null,null,null,null,null,null,null,null,null,null,null,null,""]
[null,null,null,null,null,null,null,null,null,null,null,null,null,null,null,null,null,null,null,null,null,null,null,null,null,null,null,null,null,null,null,null,null,null,null,null,null,null,null,""]
[null,null,null,null,null,null,null,null,null,null,null,null,null,null,null,null,null,null,null,null,null,null,null,null,null,null,null,null,null,null,null,null,null,null,null,null,null,null,null,""]
[null,null,null,null,null,null,null,null,null,null,null,null,null,null,null,null,null,null,null,null,null,null,null,null,null,null,null,null,null,null,null,null,null,null,null,null,null,null,null,""]
[null,null,null,null,null,null,null,null,null,null,null,null,null,null,null,null,null,null,null,null,null,null,null,null,null,null,null,null,null,null,null,null,null,null,null,null,null,null,null,""]
[null,null,null,null,null,null,null,null,null,null,null,null,null,null,null,null,null,null,null,null,null,null,null,null,null,null,null,null,null,null,null,null,null,null,null,null,null,null,null,""]
[null,null,null,null,null,null,null,null,null,null,null,null,null,null,null,null,null,null,null,null,null,null,null,null,null,null,null,null,null,null,null,null,null,null,null,null,null,null,null,""]
[null,null,null,null,null,null,null,null,null,null,null,null,null,null,null,null,null,null,null,null,null,null,null,null,null,null,null,null,null,null,null,null,null,null,null,null,null,null,null,""]
[null,null,null,null,null,null,null,null,null,null,null,null,null,null,null,null,null,null,null,null,null,null,null,null,null,null,null,null,null,null,null,null,null,null,null,null,null,null,null,{"$f":"IF(AH295=\"\",\"\",AE295*AH295)","v":""}]
[null,null,null,null,null,null,null,null,null,null,null,null,null,null,null,null,null,null,null,null,null,null,null,null,null,null,null,null,null,null,null,null,null,null,null,null,null,null,null,""]
[null,null,null,null,null,null,null,null,null,null,null,null,null,null,null,null,null,null,null,null,null,null,null,null,null,null,null,null,null,null,null,null,null,null,null,null,null,null,null,""]
[null,null,null,null,null,null,null,null,null,null,null,null,null,null,null,null,null,null,null,null,null,null,null,null,null,null,null,null,null,null,null,null,null,null,null,null,null,null,null,""]
[null,null,null,null,null,null,null,null,null,null,null,null,null,null,null,null,null,null,null,null,null,null,null,null,null,null,null,null,null,null,null,null,null,null,null,null,null,null,null,""]
[null,null,null,null,null,null,null,null,null,null,null,null,null,null,null,null,null,null,null,null,null,null,null,null,null,null,null,null,null,null,null,null,null,null,null,null,null,null,null,""]
[null,null,null,null,null,null,null,null,null,null,null,null,null,null,null,null,null,null,null,null,null,null,null,null,null,null,null,null,null,null,null,null,null,null,null,null,null,null,null,""]
[null,null,null,null,null,null,null,null,null,null,null,null,null,null,null,null,null,null,null,null,null,null,null,null,null,null,null,null,null,null,null,null,null,null,null,null,null,null,null,""]
[null,null,null,null,null,null,null,null,null,null,null,null,null,null,null,null,null,null,null,null,null,null,null,null,null,null,null,null,null,null,null,null,null,null,null,null,null,null,null,""]
[null,null,null,null,null,null,null,null,null,null,null,null,null,null,null,null,null,null,null,null,null,null,null,null,null,null,null,null,null,null,null,null,null,null,null,null,null,null,null,""]
[null,null,null,null,null,null,null,null,null,null,null,null,null,null,null,null,null,null,null,null,null,null,null,null,null,null,null,null,null,null,null,null,null,null,null,null,null,null,null,""]
[null,null,null,null,null,null,null,null,null,null,null,null,null,null,null,null,null,null,null,null,null,null,null,null,null,null,null,null,null,null,null,null,null,null,null,null,null,null,null,""]
[null,null,null,null,null,null,null,null,null,null,null,null,null,null,null,null,null,null,null,null,null,null,null,null,null,null,null,null,null,null,null,null,null,null,null,null,null,null,null,""]
[null,null,null,null,null,null,null,null,null,null,null,null,null,null,null,null,null,null,null,null,null,null,null,null,null,null,null,null,null,null,null,null,null,null,null,null,null,null,null,""]
[null,null,null,null,null,null,null,null,null,null,null,null,null,null,null,null,null,null,null,null,null,null,null,null,null,null,null,null,null,null,null,null,null,null,null,null,null,null,null,""]
[null,null,null,null,null,null,null,null,null,null,null,null,null,null,null,null,null,null,null,null,null,null,null,null,null,null,null,null,null,null,null,null,null,null,null,null,null,null,null,""]
[null,null,null,null,null,null,null,null,null,null,null,null,null,null,null,null,null,null,null,null,null,null,null,null,null,null,null,null,null,null,null,null,null,null,null,null,null,null,null,""]
[null,null,null,null,null,null,null,null,null,null,null,null,null,null,null,null,null,null,null,null,null,null,null,null,null,null,null,null,null,null,null,null,null,null,null,null,null,null,null,""]
[null,null,null,null,null,null,null,null,null,null,null,null,null,null,null,null,null,null,null,null,null,null,null,null,null,null,null,null,null,null,null,null,null,null,null,null,null,null,null,""]
[null,null,null,null,null,null,null,null,null,null,null,null,null,null,null,null,null,null,null,null,null,null,null,null,null,null,null,null,null,null,null,null,null,null,null,null,null,null,null,""]
[null,null,null,null,null,null,null,null,null,null,null,null,null,null,null,null,null,null,null,null,null,null,null,null,null,null,null,null,null,null,null,null,null,null,null,null,null,null,null,""]
[null,null,null,null,null,null,null,null,null,null,null,null,null,null,null,null,null,null,null,null,null,null,null,null,null,null,null,null,null,null,null,null,null,null,null,null,null,null,null,""]
[null,null,null,null,null,null,null,null,null,null,null,null,null,null,null,null,null,null,null,null,null,null,null,null,null,null,null,null,null,null,null,null,null,null,null,null,null,null,null,{"$f":"IF(AH317=\"\",\"\",AE317*AH317)","v":""}]
[null,null,null,null,null,null,null,null,null,null,null,null,null,null,null,null,null,null,null,null,null,null,null,null,null,null,null,null,null,null,null,null,null,null,null,null,null,null,null,""]
[null,null,null,null,null,null,null,null,null,null,null,null,null,null,null,null,null,null,null,null,null,null,null,null,null,null,null,null,null,null,null,null,null,null,null,null,null,null,null,""]
[null,null,null,null,null,null,null,null,null,null,null,null,null,null,null,null,null,null,null,null,null,null,null,null,null,null,null,null,null,null,null,null,null,null,null,null,null,null,null,""]
[null,null,null,null,null,null,null,null,null,null,null,null,null,null,null,null,null,null,null,null,null,null,null,null,null,null,null,null,null,null,null,null,null,null,null,null,null,null,null,""]
[null,null,null,null,null,null,null,null,null,null,null,null,null,null,null,null,null,null,null,null,null,null,null,null,null,null,null,null,null,null,null,null,null,null,null,null,null,null,null,""]
[null,null,null,null,null,null,null,null,null,null,null,null,null,null,null,null,null,null,null,null,null,null,null,null,null,null,null,null,null,null,null,null,null,null,null,null,null,null,null,""]
[null,null,null,null,null,null,null,null,null,null,null,null,null,null,null,null,null,null,null,null,null,null,null,null,null,null,null,null,null,null,null,null,null,null,null,null,null,null,null,""]
[null,null,null,null,null,null,null,null,null,null,null,null,null,null,null,null,null,null,null,null,null,null,null,null,null,null,null,null,null,null,null,null,null,null,null,null,null,null,null,""]
[null,null,null,null,null,null,null,null,null,null,null,null,null,null,null,null,null,null,null,null,null,null,null,null,null,null,null,null,null,null,null,null,null,null,null,null,null,null,null,""]
[null,null,null,null,null,null,null,null,null,null,null,null,null,null,null,null,null,null,null,null,null,null,null,null,null,null,null,null,null,null,null,null,null,null,null,null,null,null,null,""]
[null,null,null,null,null,null,null,null,null,null,null,null,null,null,null,null,null,null,null,null,null,null,null,null,null,null,null,null,null,null,null,null,null,null,null,null,null,null,null,""]
[null,null,null,null,null,null,null,null,null,null,null,null,null,null,null,null,null,null,null,null,null,null,null,null,null,null,null,null,null,null,null,null,null,null,null,null,null,null,null,""]
[null,null,null,null,null,null,null,null,null,null,null,null,null,null,null,null,null,null,null,null,null,null,null,null,null,null,null,null,null,null,null,null,null,null,null,null,null,null,null,""]
[null,null,null,null,null,null,null,null,null,null,null,null,null,null,null,null,null,null,null,null,null,null,null,null,null,null,null,null,null,null,null,null,null,null,null,null,null,null,null,""]
[null,null,null,null,null,null,null,null,null,null,null,null,null,null,null,null,null,null,null,null,null,null,null,null,null,null,null,null,null,null,null,null,null,null,null,null,null,null,null,""]
[null,null,null,null,null,null,null,null,null,null,null,null,null,null,null,null,null,null,null,null,null,null,null,null,null,null,null,null,null,null,null,null,null,null,null,null,null,null,null,""]
[null,null,null,null,null,null,null,null,null,null,null,null,null,null,null,null,null,null,null,null,null,null,null,null,null,null,null,null,null,null,null,null,null,null,null,null,null,null,null,""]
[null,null,null,null,null,null,null,null,null,null,null,null,null,null,null,null,null,null,null,null,null,null,null,null,null,null,null,null,null,null,null,null,null,null,null,null,null,null,null,""]
[null,null,null,null,null,null,null,null,null,null,null,null,null,null,null,null,null,null,null,null,null,null,null,null,null,null,null,null,null,null,null,null,null,null,null,null,null,null,null,""]
[null,null,null,null,null,null,null,null,null,null,null,null,null,null,null,null,null,null,null,null,null,null,null,null,null,null,null,null,null,null,null,null,null,null,null,null,null,null,null,""]
[null,null,null,null,null,null,null,null,null,null,null,null,null,null,null,null,null,null,null,null,null,null,null,null,null,null,null,null,null,null,null,null,null,null,null,null,null,null,null,""]
[null,null,null,null,null,null,null,null,null,null,null,null,null,null,null,null,null,null,null,null,null,null,null,null,null,null,null,null,null,null,null,null,null,null,null,null,null,null,null,""]
[null,null,null,null,null,null,null,null,null,null,null,null,null,null,null,null,null,null,null,null,null,null,null,null,null,null,null,null,null,null,null,null,null,null,null,null,null,null,null,""]
[null,null,null,null,null,null,null,null,null,null,null,null,null,null,null,null,null,null,null,null,null,null,null,null,null,null,null,null,null,null,null,null,null,null,null,null,null,null,null,""]
[null,null,null,null,null,null,null,null,null,null,null,null,null,null,null,null,null,null,null,null,null,null,null,null,null,null,null,null,null,null,null,null,null,null,null,null,null,null,null,""]
[null,null,null,null,null,null,null,null,null,null,null,null,null,null,null,null,null,null,null,null,null,null,null,null,null,null,null,null,null,null,null,null,null,null,null,null,null,null,null,""]
[null,null,null,null,null,null,null,null,null,null,null,null,null,null,null,null,null,null,null,null,null,null,null,null,null,null,null,null,null,null,null,null,null,null,null,null,null,null,null,""]
[null,null,null,null,null,null,null,null,null,null,null,null,null,null,null,null,null,null,null,null,null,null,null,null,null,null,null,null,null,null,null,null,null,null,null,null,null,null,null,{"$f":"IF(AH345=\"\",\"\",AE345*AH345)","v":""}]
[null,null,null,null,null,null,null,null,null,null,null,null,null,null,null,null,null,null,null,null,null,null,null,null,null,null,null,null,null,null,null,null,null,null,null,null,null,null,null,""]
[null,null,null,null,null,null,null,null,null,null,null,null,null,null,null,null,null,null,null,null,null,null,null,null,null,null,null,null,null,null,null,null,null,null,null,null,null,null,null,""]
[null,null,null,null,null,null,null,null,null,null,null,null,null,null,null,null,null,null,null,null,null,null,null,null,null,null,null,null,null,null,null,null,null,null,null,null,null,null,null,""]
[null,null,null,null,null,null,null,null,null,null,null,null,null,null,null,null,null,null,null,null,null,null,null,null,null,null,null,null,null,null,null,null,null,null,null,null,null,null,null,""]
[null,null,null,null,null,null,null,null,null,null,null,null,null,null,null,null,null,null,null,null,null,null,null,null,null,null,null,null,null,null,null,null,null,null,null,null,null,null,null,""]
[null,null,null,null,null,null,null,null,null,null,null,null,null,null,null,null,null,null,null,null,null,null,null,null,null,null,null,null,null,null,null,null,null,null,null,null,null,null,null,""]
[null,null,null,null,null,null,null,null,null,null,null,null,null,null,null,null,null,null,null,null,null,null,null,null,null,null,null,null,null,null,null,null,null,null,null,null,null,null,null,""]
[null,null,null,null,null,null,null,null,null,null,null,null,null,null,null,null,null,null,null,null,null,null,null,null,null,null,null,null,null,null,null,null,null,null,null,null,null,null,null,""]
[null,null,null,null,null,null,null,null,null,null,null,null,null,null,null,null,null,null,null,null,null,null,null,null,null,null,null,null,null,null,null,null,null,null,null,null,null,null,null,""]
[null,null,null,null,null,null,null,null,null,null,null,null,null,null,null,null,null,null,null,null,null,null,null,null,null,null,null,null,null,null,null,null,null,null,null,null,null,null,null,""]
[null,null,null,null,null,null,null,null,null,null,null,null,null,null,null,null,null,null,null,null,null,null,null,null,null,null,null,null,null,null,null,null,null,null,null,null,null,null,null,""]
[null,null,null,null,null,null,null,null,null,null,null,null,null,null,null,null,null,null,null,null,null,null,null,null,null,null,null,null,null,null,null,null,null,null,null,null,null,null,null,""]
[null,null,null,null,null,null,null,null,null,null,null,null,null,null,null,null,null,null,null,null,null,null,null,null,null,null,null,null,null,null,null,null,null,null,null,null,null,null,null,""]
[null,null,null,null,null,null,null,null,null,null,null,null,null,null,null,null,null,null,null,null,null,null,null,null,null,null,null,null,null,null,null,null,null,null,null,null,null,null,null,""]
[null,null,null,null,null,null,null,null,null,null,null,null,null,null,null,null,null,null,null,null,null,null,null,null,null,null,null,null,null,null,null,null,null,null,null,null,null,null,null,""]
[null,null,null,null,null,null,null,null,null,null,null,null,null,null,null,null,null,null,null,null,null,null,null,null,null,null,null,null,null,null,null,null,null,null,null,null,null,null,null,""]
[null,null,null,null,null,null,null,null,null,null,null,null,null,null,null,null,null,null,null,null,null,null,null,null,null,null,null,null,null,null,null,null,null,null,null,null,null,null,null,""]
[null,null,null,null,null,null,null,null,null,null,null,null,null,null,null,null,null,null,null,null,null,null,null,null,null,null,null,null,null,null,null,null,null,null,null,null,null,null,null,""]
[null,null,null,null,null,null,null,null,null,null,null,null,null,null,null,null,null,null,null,null,null,null,null,null,null,null,null,null,null,null,null,null,null,null,null,null,null,null,null,""]
[null,null,null,null,null,null,null,null,null,null,null,null,null,null,null,null,null,null,null,null,null,null,null,null,null,null,null,null,null,null,null,null,null,null,null,null,null,null,null,""]
[null,null,null,null,null,null,null,null,null,null,null,null,null,null,null,null,null,null,null,null,null,null,null,null,null,null,null,null,null,null,null,null,null,null,null,null,null,null,null,""]
[null,null,null,null,null,null,null,null,null,null,null,null,null,null,null,null,null,null,null,null,null,null,null,null,null,null,null,null,null,null,null,null,null,null,null,null,null,null,null,""]
["TOTAL",null,null,null,null,null,null,null,null,null,null,null,null,null,null,null,null,null,null,null,null,null,null,null,null,null,null,null,null,null,{"$f":"IF(SUM(AE168:AG367)=0,\"-\",SUM(AE168:AG367))","v":"-"},null,null,{"$f":"IF(SUM(AH168:AM367)=0,\"-\",SUM(AH168:AM367))","v":"-"},null,null,null,null,null,{"$f":"IF(SUM(AN168:AS367)=0,\"-\",SUM(AN168:AS367))","v":"-"}]
[]
["III - SEMOVENTES"]
["BOVINOS"]
["TIPO DE ANIMAL",null,null,null,null,null,null,"IDADE MÉDIA\n(MESES)",null,null,null,null,null,"RAÇA:",null,null,null,null,null,"COR PREDOMINANTE",null,null,null,null,null,null,"QUANTIDADE \n(Nº CABEÇAS)",null,null,null,null,null,null,"VALOR  UN.\n (R$)",null,null,null,null,null,"VALOR \nTOTAL (R$)"]
[null,null,null,null,null,null,null,null,null,null,null,null,null,null,null,null,null,null,null,null,null,null,null,null,null,null,null,null,null,null,null,null,null,null,null,null,null,null,null,{"$f":"IF(OR(AH373=\"\",AA373=\"\"),\"\",AH373*AA373)","v":""},null,null,null,null,null,null,{"$f":"SUM(AV372:AV422)","v":1},1]
[null,null,null,null,null,null,null,null,null,null,null,null,null,null,null,null,null,null,null,null,null,null,null,null,null,null,null,null,null,null,null,null,null,null,null,null,null,null,null,{"$f":"IF(OR(AH374=\"\",AA374=\"\"),\"\",AH374*AA374)","v":""}]
[null,null,null,null,null,null,null,null,null,null,null,null,null,null,null,null,null,null,null,null,null,null,null,null,null,null,null,null,null,null,null,null,null,null,null,null,null,null,null,""]
[null,null,null,null,null,null,null,null,null,null,null,null,null,null,null,null,null,null,null,null,null,null,null,null,null,null,null,null,null,null,null,null,null,null,null,null,null,null,null,{"$f":"IF(OR(AH376=\"\",AA376=\"\"),\"\",AH376*AA376)","v":""}]
[null,null,null,null,null,null,null,null,null,null,null,null,null,null,null,null,null,null,null,null,null,null,null,null,null,null,null,null,null,null,null,null,null,null,null,null,null,null,null,{"$f":"IF(OR(AH377=\"\",AA377=\"\"),\"\",AH377*AA377)","v":""}]
[null,null,null,null,null,null,null,null,null,null,null,null,null,null,null,null,null,null,null,null,null,null,null,null,null,null,null,null,null,null,null,null,null,null,null,null,null,null,null,""]
[null,null,null,null,null,null,null,null,null,null,null,null,null,null,null,null,null,null,null,null,null,null,null,null,null,null,null,null,null,null,null,null,null,null,null,null,null,null,null,""]
[null,null,null,null,null,null,null,null,null,null,null,null,null,null,null,null,null,null,null,null,null,null,null,null,null,null,null,null,null,null,null,null,null,null,null,null,null,null,null,""]
[null,null,null,null,null,null,null,null,null,null,null,null,null,null,null,null,null,null,null,null,null,null,null,null,null,null,null,null,null,null,null,null,null,null,null,null,null,null,null,""]
[null,null,null,null,null,null,null,null,null,null,null,null,null,null,null,null,null,null,null,null,null,null,null,null,null,null,null,null,null,null,null,null,null,null,null,null,null,null,null,""]
[null,null,null,null,null,null,null,null,null,null,null,null,null,null,null,null,null,null,null,null,null,null,null,null,null,null,null,null,null,null,null,null,null,null,null,null,null,null,null,""]
[null,null,null,null,null,null,null,null,null,null,null,null,null,null,null,null,null,null,null,null,null,null,null,null,null,null,null,null,null,null,null,null,null,null,null,null,null,null,null,""]
[null,null,null,null,null,null,null,null,null,null,null,null,null,null,null,null,null,null,null,null,null,null,null,null,null,null,null,null,null,null,null,null,null,null,null,null,null,null,null,""]
[null,null,null,null,null,null,null,null,null,null,null,null,null,null,null,null,null,null,null,null,null,null,null,null,null,null,null,null,null,null,null,null,null,null,null,null,null,null,null,""]
[null,null,null,null,null,null,null,null,null,null,null,null,null,null,null,null,null,null,null,null,null,null,null,null,null,null,null,null,null,null,null,null,null,null,null,null,null,null,null,""]
[null,null,null,null,null,null,null,null,null,null,null,null,null,null,null,null,null,null,null,null,null,null,null,null,null,null,null,null,null,null,null,null,null,null,null,null,null,null,null,""]
[null,null,null,null,null,null,null,null,null,null,null,null,null,null,null,null,null,null,null,null,null,null,null,null,null,null,null,null,null,null,null,null,null,null,null,null,null,null,null,""]
[null,null,null,null,null,null,null,null,null,null,null,null,null,null,null,null,null,null,null,null,null,null,null,null,null,null,null,null,null,null,null,null,null,null,null,null,null,null,null,""]
[null,null,null,null,null,null,null,null,null,null,null,null,null,null,null,null,null,null,null,null,null,null,null,null,null,null,null,null,null,null,null,null,null,null,null,null,null,null,null,""]
[null,null,null,null,null,null,null,null,null,null,null,null,null,null,null,null,null,null,null,null,null,null,null,null,null,null,null,null,null,null,null,null,null,null,null,null,null,null,null,""]
[null,null,null,null,null,null,null,null,null,null,null,null,null,null,null,null,null,null,null,null,null,null,null,null,null,null,null,null,null,null,null,null,null,null,null,null,null,null,null,""]
[null,null,null,null,null,null,null,null,null,null,null,null,null,null,null,null,null,null,null,null,null,null,null,null,null,null,null,null,null,null,null,null,null,null,null,null,null,null,null,""]
[null,null,null,null,null,null,null,null,null,null,null,null,null,null,null,null,null,null,null,null,null,null,null,null,null,null,null,null,null,null,null,null,null,null,null,null,null,null,null,""]
[null,null,null,null,null,null,null,null,null,null,null,null,null,null,null,null,null,null,null,null,null,null,null,null,null,null,null,null,null,null,null,null,null,null,null,null,null,null,null,""]
[null,null,null,null,null,null,null,null,null,null,null,null,null,null,null,null,null,null,null,null,null,null,null,null,null,null,null,null,null,null,null,null,null,null,null,null,null,null,null,{"$f":"IF(OR(AH397=\"\",AA397=\"\"),\"\",AH397*AA397)","v":""}]
[null,null,null,null,null,null,null,null,null,null,null,null,null,null,null,null,null,null,null,null,null,null,null,null,null,null,null,null,null,null,null,null,null,null,null,null,null,null,null,""]
[null,null,null,null,null,null,null,null,null,null,null,null,null,null,null,null,null,null,null,null,null,null,null,null,null,null,null,null,null,null,null,null,null,null,null,null,null,null,null,""]
[null,null,null,null,null,null,null,null,null,null,null,null,null,null,null,null,null,null,null,null,null,null,null,null,null,null,null,null,null,null,null,null,null,null,null,null,null,null,null,""]
[null,null,null,null,null,null,null,null,null,null,null,null,null,null,null,null,null,null,null,null,null,null,null,null,null,null,null,null,null,null,null,null,null,null,null,null,null,null,null,""]
[null,null,null,null,null,null,null,null,null,null,null,null,null,null,null,null,null,null,null,null,null,null,null,null,null,null,null,null,null,null,null,null,null,null,null,null,null,null,null,""]
[null,null,null,null,null,null,null,null,null,null,null,null,null,null,null,null,null,null,null,null,null,null,null,null,null,null,null,null,null,null,null,null,null,null,null,null,null,null,null,""]
[null,null,null,null,null,null,null,null,null,null,null,null,null,null,null,null,null,null,null,null,null,null,null,null,null,null,null,null,null,null,null,null,null,null,null,null,null,null,null,""]
[null,null,null,null,null,null,null,null,null,null,null,null,null,null,null,null,null,null,null,null,null,null,null,null,null,null,null,null,null,null,null,null,null,null,null,null,null,null,null,""]
[null,null,null,null,null,null,null,null,null,null,null,null,null,null,null,null,null,null,null,null,null,null,null,null,null,null,null,null,null,null,null,null,null,null,null,null,null,null,null,""]
[null,null,null,null,null,null,null,null,null,null,null,null,null,null,null,null,null,null,null,null,null,null,null,null,null,null,null,null,null,null,null,null,null,null,null,null,null,null,null,""]
[null,null,null,null,null,null,null,null,null,null,null,null,null,null,null,null,null,null,null,null,null,null,null,null,null,null,null,null,null,null,null,null,null,null,null,null,null,null,null,""]
[null,null,null,null,null,null,null,null,null,null,null,null,null,null,null,null,null,null,null,null,null,null,null,null,null,null,null,null,null,null,null,null,null,null,null,null,null,null,null,""]
[null,null,null,null,null,null,null,null,null,null,null,null,null,null,null,null,null,null,null,null,null,null,null,null,null,null,null,null,null,null,null,null,null,null,null,null,null,null,null,""]
[null,null,null,null,null,null,null,null,null,null,null,null,null,null,null,null,null,null,null,null,null,null,null,null,null,null,null,null,null,null,null,null,null,null,null,null,null,null,null,""]
[null,null,null,null,null,null,null,null,null,null,null,null,null,null,null,null,null,null,null,null,null,null,null,null,null,null,null,null,null,null,null,null,null,null,null,null,null,null,null,""]
[null,null,null,null,null,null,null,null,null,null,null,null,null,null,null,null,null,null,null,null,null,null,null,null,null,null,null,null,null,null,null,null,null,null,null,null,null,null,null,""]
[null,null,null,null,null,null,null,null,null,null,null,null,null,null,null,null,null,null,null,null,null,null,null,null,null,null,null,null,null,null,null,null,null,null,null,null,null,null,null,""]
[null,null,null,null,null,null,null,null,null,null,null,null,null,null,null,null,null,null,null,null,null,null,null,null,null,null,null,null,null,null,null,null,null,null,null,null,null,null,null,""]
[null,null,null,null,null,null,null,null,null,null,null,null,null,null,null,null,null,null,null,null,null,null,null,null,null,null,null,null,null,null,null,null,null,null,null,null,null,null,null,""]
[null,null,null,null,null,null,null,null,null,null,null,null,null,null,null,null,null,null,null,null,null,null,null,null,null,null,null,null,null,null,null,null,null,null,null,null,null,null,null,""]
[null,null,null,null,null,null,null,null,null,null,null,null,null,null,null,null,null,null,null,null,null,null,null,null,null,null,null,null,null,null,null,null,null,null,null,null,null,null,null,""]
[null,null,null,null,null,null,null,null,null,null,null,null,null,null,null,null,null,null,null,null,null,null,null,null,null,null,null,null,null,null,null,null,null,null,null,null,null,null,null,""]
[null,null,null,null,null,null,null,null,null,null,null,null,null,null,null,null,null,null,null,null,null,null,null,null,null,null,null,null,null,null,null,null,null,null,null,null,null,null,null,""]
[null,null,null,null,null,null,null,null,null,null,null,null,null,null,null,null,null,null,null,null,null,null,null,null,null,null,null,null,null,null,null,null,null,null,null,null,null,null,null,""]
[null,null,null,null,null,null,null,null,null,null,null,null,null,null,null,null,null,null,null,null,null,null,null,null,null,null,null,null,null,null,null,null,null,null,null,null,null,null,null,""]
["TOTAL",null,null,null,null,null,null,null,null,null,null,null,null,null,null,null,null,null,null,null,null,null,null,null,null,null,{"$f":"IF(SUM(AA373:AG422)=0,\"-\",SUM(AA373:AG422))","v":"-"},null,null,null,null,null,null,{"$f":"IF(SUM(AH373:AM422)=0,\"-\",SUM(AH373:AM422))","v":"-"},null,null,null,null,null,{"$f":"IF(SUM(AN373:AS422)=0,\"-\",SUM(AN373:AS422))","v":"-"}]
["OUTROS ANIMAIS"]
["TIPO DE ANIMAL",null,null,null,null,null,null,"DESCRIÇÃO",null,null,null,null,null,null,null,null,null,null,null,null,null,null,null,null,null,null,null,null,null,null,"QTDE",null,null,"VALOR \nUNITÁRIO (R$)",null,null,null,null,null,"VALOR \nTOTAL (R$)"]
[null,null,null,null,null,null,null,null,null,null,null,null,null,null,null,null,null,null,null,null,null,null,null,null,null,null,null,null,null,null,null,null,null,null,null,null,null,null,null,{"$f":"IF(OR(AH426=\"\",AE426=\"\"),\"\",AE426*AH426)","v":""},null,null,null,null,null,null,{"$f":"SUM(AV426:AV475)","v":1},1]
[null,null,null,null,null,null,null,null,null,null,null,null,null,null,null,null,null,null,null,null,null,null,null,null,null,null,null,null,null,null,null,null,null,null,null,null,null,null,null,{"$f":"IF(OR(AH427=\"\",AE427=\"\"),\"\",AE427*AH427)","v":""}]
[null,null,null,null,null,null,null,null,null,null,null,null,null,null,null,null,null,null,null,null,null,null,null,null,null,null,null,null,null,null,null,null,null,null,null,null,null,null,null,{"$f":"IF(OR(AH428=\"\",AE428=\"\"),\"\",AE428*AH428)","v":""}]
[null,null,null,null,null,null,null,null,null,null,null,null,null,null,null,null,null,null,null,null,null,null,null,null,null,null,null,null,null,null,null,null,null,null,null,null,null,null,null,""]
[null,null,null,null,null,null,null,null,null,null,null,null,null,null,null,null,null,null,null,null,null,null,null,null,null,null,null,null,null,null,null,null,null,null,null,null,null,null,null,""]
[null,null,null,null,null,null,null,null,null,null,null,null,null,null,null,null,null,null,null,null,null,null,null,null,null,null,null,null,null,null,null,null,null,null,null,null,null,null,null,{"$f":"IF(OR(AH431=\"\",AE431=\"\"),\"\",AE431*AH431)","v":""}]
[null,null,null,null,null,null,null,null,null,null,null,null,null,null,null,null,null,null,null,null,null,null,null,null,null,null,null,null,null,null,null,null,null,null,null,null,null,null,null,""]
[null,null,null,null,null,null,null,null,null,null,null,null,null,null,null,null,null,null,null,null,null,null,null,null,null,null,null,null,null,null,null,null,null,null,null,null,null,null,null,""]
[null,null,null,null,null,null,null,null,null,null,null,null,null,null,null,null,null,null,null,null,null,null,null,null,null,null,null,null,null,null,null,null,null,null,null,null,null,null,null,""]
[null,null,null,null,null,null,null,null,null,null,null,null,null,null,null,null,null,null,null,null,null,null,null,null,null,null,null,null,null,null,null,null,null,null,null,null,null,null,null,""]
[null,null,null,null,null,null,null,null,null,null,null,null,null,null,null,null,null,null,null,null,null,null,null,null,null,null,null,null,null,null,null,null,null,null,null,null,null,null,null,""]
[null,null,null,null,null,null,null,null,null,null,null,null,null,null,null,null,null,null,null,null,null,null,null,null,null,null,null,null,null,null,null,null,null,null,null,null,null,null,null,""]
[null,null,null,null,null,null,null,null,null,null,null,null,null,null,null,null,null,null,null,null,null,null,null,null,null,null,null,null,null,null,null,null,null,null,null,null,null,null,null,""]
[null,null,null,null,null,null,null,null,null,null,null,null,null,null,null,null,null,null,null,null,null,null,null,null,null,null,null,null,null,null,null,null,null,null,null,null,null,null,null,""]
[null,null,null,null,null,null,null,null,null,null,null,null,null,null,null,null,null,null,null,null,null,null,null,null,null,null,null,null,null,null,null,null,null,null,null,null,null,null,null,""]
[null,null,null,null,null,null,null,null,null,null,null,null,null,null,null,null,null,null,null,null,null,null,null,null,null,null,null,null,null,null,null,null,null,null,null,null,null,null,null,""]
[null,null,null,null,null,null,null,null,null,null,null,null,null,null,null,null,null,null,null,null,null,null,null,null,null,null,null,null,null,null,null,null,null,null,null,null,null,null,null,""]
[null,null,null,null,null,null,null,null,null,null,null,null,null,null,null,null,null,null,null,null,null,null,null,null,null,null,null,null,null,null,null,null,null,null,null,null,null,null,null,""]
[null,null,null,null,null,null,null,null,null,null,null,null,null,null,null,null,null,null,null,null,null,null,null,null,null,null,null,null,null,null,null,null,null,null,null,null,null,null,null,""]
[null,null,null,null,null,null,null,null,null,null,null,null,null,null,null,null,null,null,null,null,null,null,null,null,null,null,null,null,null,null,null,null,null,null,null,null,null,null,null,""]
[null,null,null,null,null,null,null,null,null,null,null,null,null,null,null,null,null,null,null,null,null,null,null,null,null,null,null,null,null,null,null,null,null,null,null,null,null,null,null,""]
[null,null,null,null,null,null,null,null,null,null,null,null,null,null,null,null,null,null,null,null,null,null,null,null,null,null,null,null,null,null,null,null,null,null,null,null,null,null,null,""]
[null,null,null,null,null,null,null,null,null,null,null,null,null,null,null,null,null,null,null,null,null,null,null,null,null,null,null,null,null,null,null,null,null,null,null,null,null,null,null,""]
[null,null,null,null,null,null,null,null,null,null,null,null,null,null,null,null,null,null,null,null,null,null,null,null,null,null,null,null,null,null,null,null,null,null,null,null,null,null,null,""]
[null,null,null,null,null,null,null,null,null,null,null,null,null,null,null,null,null,null,null,null,null,null,null,null,null,null,null,null,null,null,null,null,null,null,null,null,null,null,null,""]
[null,null,null,null,null,null,null,null,null,null,null,null,null,null,null,null,null,null,null,null,null,null,null,null,null,null,null,null,null,null,null,null,null,null,null,null,null,null,null,{"$f":"IF(OR(AH451=\"\",AE451=\"\"),\"\",AE451*AH451)","v":""}]
[null,null,null,null,null,null,null,null,null,null,null,null,null,null,null,null,null,null,null,null,null,null,null,null,null,null,null,null,null,null,null,null,null,null,null,null,null,null,null,""]
[null,null,null,null,null,null,null,null,null,null,null,null,null,null,null,null,null,null,null,null,null,null,null,null,null,null,null,null,null,null,null,null,null,null,null,null,null,null,null,""]
[null,null,null,null,null,null,null,null,null,null,null,null,null,null,null,null,null,null,null,null,null,null,null,null,null,null,null,null,null,null,null,null,null,null,null,null,null,null,null,""]
[null,null,null,null,null,null,null,null,null,null,null,null,null,null,null,null,null,null,null,null,null,null,null,null,null,null,null,null,null,null,null,null,null,null,null,null,null,null,null,""]
[null,null,null,null,null,null,null,null,null,null,null,null,null,null,null,null,null,null,null,null,null,null,null,null,null,null,null,null,null,null,null,null,null,null,null,null,null,null,null,""]
[null,null,null,null,null,null,null,null,null,null,null,null,null,null,null,null,null,null,null,null,null,null,null,null,null,null,null,null,null,null,null,null,null,null,null,null,null,null,null,""]
[null,null,null,null,null,null,null,null,null,null,null,null,null,null,null,null,null,null,null,null,null,null,null,null,null,null,null,null,null,null,null,null,null,null,null,null,null,null,null,""]
[null,null,null,null,null,null,null,null,null,null,null,null,null,null,null,null,null,null,null,null,null,null,null,null,null,null,null,null,null,null,null,null,null,null,null,null,null,null,null,""]
[null,null,null,null,null,null,null,null,null,null,null,null,null,null,null,null,null,null,null,null,null,null,null,null,null,null,null,null,null,null,null,null,null,null,null,null,null,null,null,""]
[null,null,null,null,null,null,null,null,null,null,null,null,null,null,null,null,null,null,null,null,null,null,null,null,null,null,null,null,null,null,null,null,null,null,null,null,null,null,null,""]
[null,null,null,null,null,null,null,null,null,null,null,null,null,null,null,null,null,null,null,null,null,null,null,null,null,null,null,null,null,null,null,null,null,null,null,null,null,null,null,""]
[null,null,null,null,null,null,null,null,null,null,null,null,null,null,null,null,null,null,null,null,null,null,null,null,null,null,null,null,null,null,null,null,null,null,null,null,null,null,null,""]
[null,null,null,null,null,null,null,null,null,null,null,null,null,null,null,null,null,null,null,null,null,null,null,null,null,null,null,null,null,null,null,null,null,null,null,null,null,null,null,""]
[null,null,null,null,null,null,null,null,null,null,null,null,null,null,null,null,null,null,null,null,null,null,null,null,null,null,null,null,null,null,null,null,null,null,null,null,null,null,null,""]
[null,null,null,null,null,null,null,null,null,null,null,null,null,null,null,null,null,null,null,null,null,null,null,null,null,null,null,null,null,null,null,null,null,null,null,null,null,null,null,""]
[null,null,null,null,null,null,null,null,null,null,null,null,null,null,null,null,null,null,null,null,null,null,null,null,null,null,null,null,null,null,null,null,null,null,null,null,null,null,null,""]
[null,null,null,null,null,null,null,null,null,null,null,null,null,null,null,null,null,null,null,null,null,null,null,null,null,null,null,null,null,null,null,null,null,null,null,null,null,null,null,""]
[null,null,null,null,null,null,null,null,null,null,null,null,null,null,null,null,null,null,null,null,null,null,null,null,null,null,null,null,null,null,null,null,null,null,null,null,null,null,null,{"$f":"IF(OR(AH469=\"\",AE469=\"\"),\"\",AE469*AH469)","v":""}]
[null,null,null,null,null,null,null,null,null,null,null,null,null,null,null,null,null,null,null,null,null,null,null,null,null,null,null,null,null,null,null,null,null,null,null,null,null,null,null,""]
[null,null,null,null,null,null,null,null,null,null,null,null,null,null,null,null,null,null,null,null,null,null,null,null,null,null,null,null,null,null,null,null,null,null,null,null,null,null,null,""]
[null,null,null,null,null,null,null,null,null,null,null,null,null,null,null,null,null,null,null,null,null,null,null,null,null,null,null,null,null,null,null,null,null,null,null,null,null,null,null,""]
[null,null,null,null,null,null,null,null,null,null,null,null,null,null,null,null,null,null,null,null,null,null,null,null,null,null,null,null,null,null,null,null,null,null,null,null,null,null,null,""]
[null,null,null,null,null,null,null,null,null,null,null,null,null,null,null,null,null,null,null,null,null,null,null,null,null,null,null,null,null,null,null,null,null,null,null,null,null,null,null,""]
[null,null,null,null,null,null,null,null,null,null,null,null,null,null,null,null,null,null,null,null,null,null,null,null,null,null,null,null,null,null,null,null,null,null,null,null,null,null,null,""]
["TOTAL",null,null,null,null,null,null,null,null,null,null,null,null,null,null,null,null,null,null,null,null,null,null,null,null,null,null,null,null,null,{"$f":"IF(SUM(AE426:AG475)=0,\"-\",SUM(AE426:AG475))","v":"-"},null,null,{"$f":"IF(SUM(AH426:AM475)=0,\"-\",SUM(AH426:AM475))","v":"-"},null,null,null,null,null,{"$f":"IF(SUM(AN426:AS475)=0,\"-\",SUM(AN426:AS475))","v":"-"}]
[]
[null,null,null,null,null,null,null,null,null,null,null,"PATRIMÔNIO TOTAL"]
[null,null,null,null,null,null,null,null,null,null,null,{"$f":"A7","v":"I - BENS IMÓVEIS"},null,null,null,null,null,null,null,null,null,null,null,null,null,null,null,null,{"$f":"SUM(AC480:AH482)","v":0}]
[null,null,null,null,null,null,null,null,null,null,null,"RURAIS",null,null,null,null,null,null,null,null,null,null,null,null,null,null,null,null,{"$f":"SUMIF(C10:E109,\"RURAL\",AO10:AS109)","v":0}]
[null,null,null,null,null,null,null,null,null,null,null,"URBANOS",null,null,null,null,null,null,null,null,null,null,null,null,null,null,null,null,{"$f":"SUMIF(C10:E109,\"URBANO\",AO10:AS109)","v":0}]
[null,null,null,null,null,null,null,null,null,null,null,"BENFEITORIAS",null,null,null,null,null,null,null,null,null,null,null,null,null,null,null,null,{"$f":"SUM(AN113:AS162)","v":0}]
[null,null,null,null,null,null,null,null,null,null,null,{"$f":"A165","v":"II - BENS MÓVEIS"},null,null,null,null,null,null,null,null,null,null,null,null,null,null,null,null,{"$f":"SUM(AN168:AS367)","v":0}]
[null,null,null,null,null,null,null,null,null,null,null,"VEÍCULOS",null,null,null,null,null,null,null,null,null,null,null,null,null,null,null,null,{"$f":"SUMIF(A168:F367,\"VEÍCULO\",AN168:AS367)","v":0}]
[null,null,null,null,null,null,null,null,null,null,null,"MÁQUINAS",null,null,null,null,null,null,null,null,null,null,null,null,null,null,null,null,{"$f":"SUMIF(A168:F367,\"MÁQUINA\",AN168:AS367)","v":0}]
[null,null,null,null,null,null,null,null,null,null,null,"EQUIPAMENTOS",null,null,null,null,null,null,null,null,null,null,null,null,null,null,null,null,{"$f":"SUMIF(A168:F367,\"EQUIPAMENTO\",AN168:AS367)","v":0}]
[null,null,null,null,null,null,null,null,null,null,null,{"$f":"A370","v":"III - SEMOVENTES"},null,null,null,null,null,null,null,null,null,null,null,null,null,null,null,null,{"$f":"SUM(AC488:AH489)","v":0}]
[null,null,null,null,null,null,null,null,null,null,null,"BOVINOS",null,null,null,null,null,null,null,null,null,null,null,null,null,null,null,null,{"$f":"SUM(AN373:AS422)","v":0}]
[null,null,null,null,null,null,null,null,null,null,null,"OUTROS ANIMAIS",null,null,null,null,null,null,null,null,null,null,null,null,null,null,null,null,{"$f":"SUM(AN426:AS475)","v":0}]
[null,null,null,null,null,null,null,null,null,null,null,"TOTAL",null,null,null,null,null,null,null,null,null,null,null,null,null,null,null,null,{"$f":"PAT_SEMOVENTES+PAT_MOVEIS+PAT_IMOVEIS","v":0}]
[]
[]
[]
["________________________________________",null,null,null,null,null,null,null,null,null,null,null,null,null,null,null,null,null,null,null,null,null,null,null,null,"________________________________________"]
[{"$f":"UPPER('INFORMAÇÕES GERAIS'!F19)","v":""},null,null,null,null,null,null,null,null,null,null,null,null,null,null,null,null,null,null,null,null,null,null,null,null,{"$f":"UPPER('INFORMAÇÕES GERAIS'!H15)","v":""}]
["Proponente",null,null,null,null,null,null,null,null,null,null,null,null,null,null,null,null,null,null,null,null,null,null,null,null,"Responsável Técnico"]

{"sheet":"REGRAS","index":11,"n_rows":27,"n_cols":5,"rows_kept":27,"cut":false,"hidden":true,"merged":[]}
[null,null,null,null,{"$f":"COUNTIF(B:B,\"OK\")","v":16}]
["DESCRIÇÃO","SITUAÇÃO","PÁGINA"]
["INFORMAÇÕES OBRIGATÓRIAS DA EMPRESA ELABORADORA - AUSENTES",{"$f":"'INFORMAÇÕES GERAIS'!AT7","v":"AUSENTE"},"EMPREENDIMENTO"]
["INFORMAÇÕES OBRIGATÓRIAS DE IDENTIFICAÇÃO DO PROPONENTE  - AUSENTES",{"$f":"'INFORMAÇÕES GERAIS'!AT17","v":"AUSENTE"},"EMPREENDIMENTO"]
["DADOS DE IDENTIFICAÇÃO DO IMÓVEL 1 - AUSENTES",{"$f":"'INFORMAÇÕES GERAIS'!AT29","v":"AUSENTE"},"EMPREENDIMENTO"]
["DADOS DE IDENTIFICAÇÃO DO IMÓVEL 2 - AUSENTES",{"$f":"IF('INFORMAÇÕES GERAIS'!K27<2,\"OK\",'INFORMAÇÕES GERAIS'!AT37)","v":"AUSENTE"},"EMPREENDIMENTO"]
["DADOS DE IDENTIFICAÇÃO DO IMÓVEL 3 - AUSENTES",{"$f":"IF('INFORMAÇÕES GERAIS'!K27<3,\"OK\",'INFORMAÇÕES GERAIS'!AT45)","v":"OK"},"EMPREENDIMENTO"]
["INFORMAÇÕES OBRIGATÓRIAS SOBRE O EMPREENDIMENTO  - AUSENTES",{"$f":"'INFORMAÇÕES GERAIS'!AT53","v":"AUSENTE"},"EMPREENDIMENTO"]
["VALOR ORÇADO DEVE TER UM VALOR MAIOR QUE ZERO",{"$f":"IF(VALOR_ORÇADO<=0,\"NÃO\",\"OK\")","v":"NÃO"},"ORÇAMENTO"]
["VALOR FINANCIADO DEVE TER UM VALOR MAIOR QUE ZERO",{"$f":"IF(VALOR_FINANCIADO<=0,\"NÃO\",\"OK\")","v":"NÃO"},"ORÇAMENTO"]
["VALOR FINANCIADO NÃO PODE SER MAIOR QUE VALOR ORÇADO",{"$f":"IF(VALOR_ORÇADO<VALOR_FINANCIADO,\"NÃO\",\"OK\")","v":"OK"},"ORÇAMENTO"]
["EXISTE UMA OU MAIS LINHAS NA TABELA \"ALIMENTAÇÃO\" SEM TODOS OS CAMPOS PREENCHIDOS",{"$f":"IF(Tabela1[[#Totals],[EM BRANCO]]>0,\"AUSENTE\",\"OK\")","v":"OK"},"ORÇAMENTO"]
["EXISTE UMA OU MAIS LINHAS NA TABELA \"SANIDADE\" SEM TODOS OS CAMPOS PREENCHIDOS",{"$f":"IF(Tabela123[[#Totals],[EM BRANCO]]>0,\"AUSENTE\",\"OK\")","v":"OK"},"ORÇAMENTO"]
["EXISTE UMA OU MAIS LINHAS NA TABELA \"SERVIÇOS\" SEM TODOS OS CAMPOS PREENCHIDOS",{"$f":"IF(Tabela125[[#Totals],[EM BRANCO]]>0,\"AUSENTE\",\"OK\")","v":"OK"},"ORÇAMENTO"]
["A RENTABILIDADE DO EMPREENDIMENTO DEVE SER POSITIVA",{"$f":"IF('DEMONSTRATIVO DE VIABILIDADE'!F17<=0,\"ERRO\",\"OK\")","v":"ERRO"},"VIABILIDADE"]
["COORDENADAS DO IMÓVEL 1 AUSENTES","OK","EMPREENDIMENTO"]
["COORDENADAS DO IMÓVEL 2 AUSENTES","OK","EMPREENDIMENTO"]
["COORDENADAS DO IMÓVEL 3 AUSENTES","OK","EMPREENDIMENTO"]
["É NECESSÁRIO JUSTIFICATIVA QUANDO NÃO HOUVER A PRODUÇÃO DE 3 ANOS",{"$f":"IF(AND(OR('INFORMAÇÕES GERAIS'!AG112=\"\",'INFORMAÇÕES GERAIS'!AG113=\"\",'INFORMAÇÕES GERAIS'!AG114=\"\"),'INFORMAÇÕES GERAIS'!A116=\"\"),\"AUSENTE\",\"OK\")","v":"AUSENTE"},"EMPREENDIMENTO"]
["É NECESSÁRIO JUSTIFICAR VARIAÇÕES DE PRODUTIVDADE MAIORES QUE 10%","OK","EMPREENDIMENTO"]
["EXISTE UMA OU MAIS LINHAS DE ATIVIDADES AGRÍCOLAS SEM TODOS OS CAMPOS PREENCHIDOS",{"$f":"IF(AND(('CAPACIDADE DE PAGAMENTO'!K9+'CAPACIDADE DE PAGAMENTO'!K31)>('CAPACIDADE DE PAGAMENTO'!M9+'CAPACIDADE DE PAGAMENTO'!M31),'CAPACIDADE DE PAGAMENTO'!K9>=2),\"AUSENTE\",\"OK\")","v":"OK"},"CAPACIDADE GLOBAL"]
["EXISTE UMA OU MAIS LINHAS DE ATIVIDADES PECUÁRIAS SEM TODOS OS CAMPOS PREENCHIDOS",{"$f":"IF(AND(('CAPACIDADE DE PAGAMENTO'!K55+'CAPACIDADE DE PAGAMENTO'!K77>'CAPACIDADE DE PAGAMENTO'!M77+'CAPACIDADE DE PAGAMENTO'!M55),'CAPACIDADE DE PAGAMENTO'!K55>=2),\"AUSENTE\",\"OK\")","v":"OK"},"CAPACIDADE GLOBAL"]
["SOMATÓRIO DAS ÁREAS DOS IMÓVEIS DEVE SER IGUAL À AREA FINANCIADA TOTAL",{"$f":"IF(('INFORMAÇÕES GERAIS'!AP51+'INFORMAÇÕES GERAIS'!AP43+'INFORMAÇÕES GERAIS'!AP35)='INFORMAÇÕES GERAIS'!P71,\"OK\",\"ERRO\")","v":"OK"},"EMPREENDIMENTO"]
["ROTEIRO DE ACESSO DO IMÓVEL 1","OK","IMÓVEIS"]
["ROTEIRO DE ACESSO DO IMÓVEL 2","OK","IMÓVEIS"]
["ROTEIRO DE ACESSO DO IMÓVEL 3","OK","IMÓVEIS"]
["ASSISTÊNCIA TÉCNICA FINANCIADA PORÉM O VALOR NÃO FOI INFORMADO",{"$f":"IF(AND('INFORMAÇÕES GERAIS'!AK75=\"SIM\",'DEMONSTRATIVO DE VIABILIDADE'!B13=0),\"AUSENTE\",\"OK\")","v":"OK"},"VIABILIDADE"]